Reference,Date Paid,Supplier Name,Expenditure Description,Category,Value (�)
212678,31/05/2023,IDOX Software Limited,Info Tech - Support Costs,Credit Note,-4901.64
213205,26/04/2023,Tudor UK Ltd t/a Tudor Environmental,Street Clnsing - Other Mats,Waste Management - Materials,398
213266,19/04/2023,Geesink Norba Ltd,Refuse Coll Veh - Cap Pur Veh,Capital Purchases - Vehicles,201632
213416,05/04/2023,Porterhouse Building & Fire Solutions Lt,S/W Offices - Cap Wk L&B,Capital Works - Land & Buildings,3580
213430,05/04/2023,Lone Worker Solutions,Benefits Admin - Mobiles,Corporate mobile phones ,1687.2
213440,05/04/2023,Dennis Eagle Limited,Vehicle Maint - Other Mats,Waste Management - Materials,1363.47
213454,05/04/2023,Dennis Eagle Limited,Vehicle Maint - Other Mats,Waste Management - Materials,445.5
213489,05/04/2023,Dennis Eagle Limited,Vehicle Maint - Other Mats,Waste Management - Materials,1045.07
213515,05/04/2023,Regency Guarding & Events Ltd,Canfield Offices - Contractors,Security - Payments to Contractors,765
213540,05/04/2023,Police & Crime Commissioner for Essex,Community Support Officers - Oth Loc Auth,Staff (Professional) - Other Loc Aut,10415.25
213541,05/04/2023,Police & Crime Commissioner for Essex,Community Support Officers - Oth Loc Auth,Staff (Professional) - Other Loc Aut,20830.5
213542,05/04/2023,Phil Jones Associates Ltd,Climate Change - Consultants,Consultants - General,3537.5
213544,05/04/2023,Zehnder Group UK Ltd,GF Asset Mgt - Pl Repairs,Heating/Air Cond - Planned Repairs,481
213545,05/04/2023,Wenden Cricket Club,Leisure & Cult - Grants,Grant,3924
213547,05/04/2023,Sundry BACS,Hsg Rent Refunds Movements,Housing rent refund,263.7
213548,05/04/2023,Opus People Solution Ltd,Housing Servs - Agency Staff,Agency Staff (Professional),3825
213550,05/04/2023,Ex-Job Limited,Licensing - Other Mats,Signage - Other Materials,3098.98
213551,05/04/2023,Newsquest Media Group Ltd,Dev't Control - Advertising,Advertising,1074
213552,05/04/2023,Cromwell Polythene Limited,Street Clnsing - Other Mats,Waste Management - Materials,5520
213553,05/04/2023,Bytes Software Services,Info Tech - Support Costs,ICT Maintenance/Support - Support Costs,113986.4
213554,05/04/2023,CIPFA Business Ltd,Financial Srvs - Subscriptions,Subscriptions,4725
213555,12/04/2023,Tetra Tech,Waste Mgmt - Consultants,Consultants - General,7700
213556,05/04/2023,Chelmsford City Council,Procurement - Oth Loc Auth,Staff (Professional) - Other Loc Aut,25489.73
213557,05/04/2023,Vivid Resourcing Ltd,Env Protection - Consultants,Consultants - General,682.8
213558,05/04/2023,AdEPT Telecom PLC T/A Centrix Ltd,Telephony System (8x8) - Cap Pur IT,ICT Maintenance/Support - Support Costs,8265.27
213559,05/04/2023,Chelmsford Safety Supplies,Waste Mgmt - Clothing,Protective Clothing - Clothing & Uniform,1331.37
213566,05/04/2023,Newline Anglia Ltd,Waste Mgmt - Clothing,Protective Clothing - Clothing & Uniform,555.72
213568,05/04/2023,Cabinet Office,Internal Audit - Consultants,Consultants - General,2535
213569,05/04/2023,Flitch Green Parish Council,Community Grt - Cap Grt P&E,Grant ,1000
213570,05/04/2023,Henry Riley,New Depot Associated Capital Costs,Consultancy - Associated Capital Costs,2500
213571,05/04/2023,Regency Guarding & Events Ltd,Canfield Offices - Contractors,Security - Payments to Contractors,357
213572,05/04/2023,Sarto Thomas Ltd,Dev't Control - Agency Staff,Agency Staff (Professional),2775
213574,05/04/2023,Regency Guarding & Events Ltd,Canfield Offices - Contractors,Security - Payments to Contractors,1680
213575,19/04/2023,Linteum (Uttlesford) Ltd,PFI Financing LTL -Repaid,Leisure Services - LTL - Repaid,13910.58
213575,19/04/2023,Linteum (Uttlesford) Ltd,Int & Invest - Interest Pay,Leisure Services - Interest Payable,28968.5
213575,19/04/2023,Linteum (Uttlesford) Ltd,PFI - PFI Unitary,Leisure Services -PFI Unitary Charge,58794.29
213576,05/04/2023,Simply Air Conditioning & Heating Ltd,Dis Facil Grt - Cap Grt L&B,Grants - S106 Cap Grt L&B,1625
213577,05/04/2023,Total Gas & Power Limited,Common Servs - Gas,Corporate asset utilities ,3846.21
213579,05/04/2023,Npower Limited,Common Servs - Electricity,Credit Note,-4627.47
213581,05/04/2023,N&P Crayford MRF Ltd,Waste Mgmt - Mat Rec Fac,Waste Recycling - Materials Recycling,1659.75
213582,05/04/2023,N&P Crayford MRF Ltd,Waste Mgmt - Mat Rec Fac,Waste Recycling - Materials Recycling,1528.72
213583,05/04/2023,N&P Crayford MRF Ltd,Waste Mgmt - Mat Rec Fac,Waste Recycling - Materials Recycling,1246.6
213584,05/04/2023,Dennis Eagle Limited,Vehicle Maint - Other Mats,Waste Management - Materials,585.22
213587,05/04/2023,Dennis Eagle Limited,Vehicle Maint - Other Mats,Waste Management - Materials,300.2
213588,05/04/2023,Good People Recycling Ltd,Grounds Mtce  - Agency Staff,Agency Staff (Professional),1813
213589,05/04/2023,Good People Recycling Ltd,Waste Mgmt - Agency Staff,Agency Staff (Professional),4261.5
213591,05/04/2023,H B Commercial Ltd,Vehicle Maint - Other Mats,Waste Management - Materials,295
213592,05/04/2023,H B Commercial Ltd,Vehicle Maint - Other Mats,Waste Management - Materials,273.17
213603,05/04/2023,Saffron Vantage Ltd,Waste Mgmt - Agency Staff,Agency Staff (Professional),2571.67
213605,05/04/2023,WasteParts UK Ltd,Vehicle Maint - Other Mats,Waste Management - Materials,1198.89
213608,05/04/2023,Widdington Recycling,Grounds Mtce - Disposal Chg,Waste Recycling - Disposal Charge,328
213610,05/04/2023,Rossi Long Consulting Ltd,Unidentified New Build Sites - Cap Wk L&B,Capital - L & B,3558.67
213611,05/04/2023,Rossi Long Consulting Ltd,Unidentified New Build Sites - Cap Wk L&B,Capital - L & B,2570.17
213613,05/04/2023,Bartec Municipal Technologies Limited,Waste Mgmt - Subscriptions,Subscriptions,625
213614,05/04/2023,Omni Pump International Ltd T/A Edincare,Canfield Offices - Contractors,Works Consultancy - Contractors,505
213617,05/04/2023,Replicawarehouse,Museum S/W - Materials,Museum & Arts - Displays & Exhibitions,296.5
213618,05/04/2023,Powlett & Associates Ltd,Economic Development - Consultants,Consultants - General,4750
213621,05/04/2023,Contracts Support Services Ltd,Waste Mgmt - Prof Training,Training,695
213623,05/04/2023,Keep IT Simple Stationery Ltd,Info Tech - Support Costs,ICT Maintenance/Support - Support Costs,317
213625,05/04/2023,East of England Local Government Associa,Human Resource - Consultants,Consultants - General,1044
213627,05/04/2023,PortalPlanQuest Ltd,Dev't Control - Fees,Fees,462
213628,05/04/2023,Chelmsford City Council,Procurement - Oth Loc Auth,Staff (Professional) - Other Loc Aut,45000
213630,05/04/2023,NBS Enterprises Ltd,S/W Offices - Cap Wk L&B,Consultancy (Prop Works)- Cap Wk L&B,2410
213631,05/04/2023,Altair Consultancy and Advisory Services,Dev Ctrl Appls - Consultants,Consultants - General,7450
213636,05/04/2023,Oasis Hotel Harlow Limited,Homelessness - Accommodation,Homelessness - Accommodation,1237.5
213637,05/04/2023,Oasis Hotel Harlow Limited,Homelessness - Accommodation,Homelessness - Accommodation,1475
213638,05/04/2023,De Salis Hotel,Homelessness - Accommodation,Homelessness - Accommodation,7990
213639,05/04/2023,Nickolds HMO Management & Maintenance,Homelessness - Accommodation,Homelessness - Accommodation,595
213641,05/04/2023,Npower Limited,Thaxted CIC - Electricity,Corporate asset utilities ,29294.77
213644,05/04/2023,Vivid Resourcing Ltd,Env Protection - Consultants,Consultants - General,637.28
213645,05/04/2023,Anglian Water Business,Common Servs - Water,Credit Note,-296.34
213646,05/04/2023,Anglian Water Business,Thaxted CIC - Water,Corporate Asset utilities ,484.55
213648,05/04/2023,The Oyster Partnership Ltd,Dev't Control - Agency Staff,Agency Staff (Professional),1882.19
213649,05/04/2023,The Oyster Partnership Ltd,Dev't Control - Agency Staff,Agency Staff (Professional),1673
213650,05/04/2023,Vivid Resourcing Ltd,Plan Policy - Consultants,Consultants - General,4020
213651,05/04/2023,The Oyster Partnership Ltd,Plan Policy - Consultants,Consultants - General,2720
213654,05/04/2023,Abrey & Son Ltd,Grounds Mtce  - External Contracts,Tools/Equipment (Hire) - Grounds Maint,405.21
213655,05/04/2023,Abrey & Son Ltd,Grounds Mtce  - External Contracts,Horticultural (Misc) - Grounds Maint,314.85
213656,05/04/2023,Sundry BACS,Dev't Control - Charges,Charges,390
213657,05/04/2023,Carrington West Ltd,Dev't Control - Agency Staff,Agency Staff (Professional),1887
213658,05/04/2023,Park Avenue Recruitment Ltd,Plan Policy - Agency Staff,Agency Staff (Professional),2035
213659,05/04/2023,Daisy May Farm,NHB Ward Member - Grants,Grant ,400
213660,05/04/2023,Big Wave PR,Economic Development - Advertising,Advertising,3375
213661,05/04/2023,Driver Hire Chelmsford,Waste Mgmt - Agency Staff,Agency Staff (Professional),2916.34
213662,05/04/2023,Buckingham Futures Ltd,Commercial Team - Agency Staff,Agency Staff (Professional),736.25
213663,05/04/2023,Buckingham Futures Ltd,Commercial Team - Agency Staff,Agency Staff (Professional),1680
213664,05/04/2023,Uttlesford Norse Ltd.,Trunk/Access Rd - Cap Wk L&B,Capital Works - Land & Buildings,14511.18
213664,05/04/2023,Uttlesford Norse Ltd.,Cent Heating - Cap Rep P&E,Heating/Air Cond - Cap Wks P&E,13983.95
213664,05/04/2023,Uttlesford Norse Ltd.,Sheltered Impt - Cap Rep L&B,Buildings Repair/Maint - Cap Rep L&B,29804.82
213664,05/04/2023,Uttlesford Norse Ltd.,Add Dis Works - Cap Rep P&E,Social & Community Equip - Cap Rep P&E,76599.12
213664,05/04/2023,Uttlesford Norse Ltd.,Structural Wrk - Cap Rep L&B,Capital Repairs - Land & Buildings,90396.64
213664,05/04/2023,Uttlesford Norse Ltd.,Sewerage Plant - Cap Rep L&B,Sewerage - Cap Rep L&B,7992.85
213664,05/04/2023,Uttlesford Norse Ltd.,Major Roof Wrk - Cap Rep L&B,Roofing - Capital Rep L&B,88240.32
213664,05/04/2023,Uttlesford Norse Ltd.,Door Replace - Cap Rep P&E,Doors & Windows - Cap Rep P&E,75982.79
213664,05/04/2023,Uttlesford Norse Ltd.,Voids Prog - Cap Rep L&B,Capital Repairs - Land & Buildings,40149.76
213664,05/04/2023,Uttlesford Norse Ltd.,Bath/Kitch Rep - Cap Rep P&E,Bathrooms - Cap Rep P&E,92790.18
213664,05/04/2023,Uttlesford Norse Ltd.,Re-Windowing - Cap Rep P&E,Doors & Windows - Cap Rep P&E,23019.01
213664,05/04/2023,Uttlesford Norse Ltd.,Insulation Works - Cap Wk L&B,Capital Works - Land & Buildings,27099.91
213664,05/04/2023,Uttlesford Norse Ltd.,Fascias & Guttering - Cap Rep P&E,Capital Repairs - Plant & Equipment,25472.81
213664,05/04/2023,Uttlesford Norse Ltd.,Lift Replacement - Cap Rep P&E,Capital Repairs - Plant & Equipment,12620.38
213665,05/04/2023,Saffron Vantage Ltd,Waste Mgmt - Agency Staff,Agency Staff (Professional),3011.5
213666,05/04/2023,Porterhouse Building & Fire Solutions Lt,S/W Offices - Cap Wk L&B,Capital Works - Land & Buildings,340
213667,05/04/2023,Porterhouse Building & Fire Solutions Lt,S/W Offices - Cap Wk L&B,Capital Works - Land & Buildings,1375.73
213668,05/04/2023,Porterhouse Building & Fire Solutions Lt,S/W Offices - Cap Wk L&B,Capital Works - Land & Buildings,525.12
213669,05/04/2023,Porterhouse Building & Fire Solutions Lt,Sheltered Hsg - Ad Hoc Repair,General Materials - Ad hoc Repair,1500
213670,05/04/2023,Takeley Parish Council,Youth grant - Grants,Grant ,3010
213671,05/04/2023,Helena Romanes School,Youth grant - Grants,Grant ,3790
213672,05/04/2023,Essex Boys and Girls Clubs,Youth grant - Grants,Grant ,2000
213674,05/04/2023,Keep IT Simple Stationery Ltd,PSN CoCo - Cap Pur IT,ICT Hardware - Cap Pur IT,5190
213675,05/04/2023,Lodge Plumbing & Heating Services Ltd,Private Sector - Cap Grt L&B,Grants - S106 Cap Grt L&B,2166.67
213676,05/04/2023,East of England Local Government Associa,Stansted Airport - Consultants,Consultants - General,1031.25
213677,05/04/2023,Jellyfielder Studios Ltd,Economic Development - Advertising,Advertising,7300
213678,05/04/2023,Vivid Resourcing Ltd,Dev't Control - Agency Staff,Agency Staff (Professional),1517
213679,05/04/2023,ALH Building Services Design Ltd,Unidentified New Build Sites - Cap Wk L&B,Capital Works - Land & Buildings,575
213680,05/04/2023,Macdonald & Company,Dev't Control - Agency Staff,Agency Staff (Professional),2175
213681,05/04/2023,Rundle & Co Ltd,Revenues Admin - Fees,HMRC VAT,145.3
213682,05/04/2023,Duncan Cameron & Hutchinson Ltd,Thaxted Road - Cap Wk L&B,Consultancy (Prop Works)- Cap Wk L&B,173324.8
213683,05/04/2023,Radwinter Parish Council,Community Grt - Cap Grt P&E,Grant ,1000
213685,05/04/2023,Dunmow Skips Ltd,Street Clnsing - Disposal Chg,Waste Recycling - Disposal Charge,639.2
213687,05/04/2023,Autoquip (GB) Garage Equipment Ltd,Vehicle Maint - Prof Subs,Professional Subscriptions,1045
213688,05/04/2023,Applied Ecology Ltd,Parkside - Cap Wk L&B,Consultancy (Prop Works)- Cap Wk L&B,725
213689,05/04/2023,AdEPT Telecom PLC T/A Centrix Ltd,Info Tech - Support Costs,ICT Maintenance/Support - Support Costs,1967.46
213691,05/04/2023,Wimbish Parish Council,Community Grt - Cap Grt P&E,Grants,700
213692,05/04/2023,Thurrock Council,Env Protection - Consultants,Consultants - General,2687.31
213693,05/04/2023,Sundry BACS,Other LA's Movemt in year,Movement ,2153.84
213694,05/04/2023,Newsquest Media Group Ltd,Dev't Control - Advertising,Advertising,562
213696,05/04/2023,Print Image Facilities LLP,Elections - Postage,Postage,28497.69
213698,05/04/2023,Littoralis Limited,Comm Safe Part - Seminars,Conferences - Seminars & Meetings,2730
213699,05/04/2023,Ideagen Gael Ltd,Human Resource - Prof Training,Training,5200
213700,05/04/2023,Regency Guarding & Events Ltd,Sheltered Hsg - Ad Hoc Repair,General Materials - Ad hoc Repair,1512
213701,05/04/2023,Regency Guarding & Events Ltd,Sheltered Hsg - Ad Hoc Repair,General Materials - Ad hoc Repair,1512
213702,05/04/2023,Regency Guarding & Events Ltd,Sheltered Hsg - Ad Hoc Repair,General Materials - Ad hoc Repair,1512
213703,12/04/2023,Encore Envelopes Ltd,Mail Room - Stationery,Stationery,982.8
213705,05/04/2023,Oasis Hotel Harlow Limited,Homelessness - Accommodation,Homelessness - Accommodation,1278.75
213706,05/04/2023,Oasis Hotel Harlow Limited,Homelessness - Accommodation,Homelessness - Accommodation,786.67
213708,05/04/2023,Oasis Hotel Harlow Limited,Homelessness - Accommodation,Homelessness - Accommodation,618.75
213709,05/04/2023,Oasis Hotel Harlow Limited,Homelessness - Accommodation,Homelessness - Accommodation,1278.75
213710,05/04/2023,Nickolds HMO Management & Maintenance,Homelessness - Accommodation,Homelessness - Accommodation,595
213711,05/04/2023,Nickolds HMO Management & Maintenance,Homelessness - Accommodation,Homelessness - Accommodation,595
213712,05/04/2023,Mind in West Essex,NHB Ward Member - Grants,Grant ,307
213715,12/04/2023,Quadient UK LTD,Mail Room - Equip Rental,Office & Reprographics -Equipment Rental,3921.98
213716,12/04/2023,Sellick Partnership Ltd,Legal Services - Agency Staff,Agency Staff (Professional),1068.54
213717,12/04/2023,The Oyster Partnership Ltd,Dev't Control - Agency Staff,Agency Staff (Professional),1882.19
213718,12/04/2023,SGS (formally Concept Life Sciences),Border Inspect - Oth Prof Fees,Forensic & Lab Testing - Oth Prof Fees,2805.1
213719,12/04/2023,East Anglian Fire Protection Ltd,S/W Offices - Pl Repairs,Roofing - Planned Repairs,2100
213720,12/04/2023,Provide Care Solutions,Sheltered Hsg - Oth Loc Auth,Social&Community Care Misc - Oth Loc Aut,5558.42
213721,12/04/2023,Sarto Thomas Ltd,Dev't Control - Agency Staff,Agency Staff (Professional),2775
213722,12/04/2023,LDA Design Consulting Ltd,Plan Policy - Consultants,Consultants - General,7500
213723,12/04/2023,Sellick Partnership Ltd,Legal Services - Legal Fees,Legal Services - Legal Fees,1925
213724,12/04/2023,International Parking Systems (UK) Ltd,CP Overheads - Bank Charges,Bank Charges,5416.16
213725,12/04/2023,Landmark Office Ltd (Furniture),S/W Offices - Equipment,Office Furniture - Equipment,1071
213726,12/04/2023,International Parking Systems (UK) Ltd,CP Overheads - Equip Maint,Parking Machines - Equipment Maintenance,332.5
213727,12/04/2023,Browne Jacobson LLP,Property Servs Business Plan,Housing Dev - Business Plan,3215.15
213728,12/04/2023,Savills (L&P) Limited,Property Servs Business Plan,Consultancy - Business Plan,420000
213729,12/04/2023,Sellick Partnership Ltd,Legal Services - Legal Fees,Legal Services - Legal Fees,1441.24
213730,12/04/2023,Sellick Partnership Ltd,Legal Services - Legal Fees,Legal Services - Legal Fees,1446.35
213731,12/04/2023,Sellick Partnership Ltd,Legal Services - Fees,Legal Services - Fees,1290.94
213732,12/04/2023,The Oyster Partnership Ltd,Plan Policy - Consultants,Consultants - General,2720
213733,12/04/2023,JFL Services,Property Servs - Other Agency,Agency&Temp Staff (Prof) -Other Agencies,1450
213736,12/04/2023,Essex County Council,Corporate Man - Fees,Partnerships - Fees,85000
213737,12/04/2023,Laser Tech (UK) Ltd,Comm Safe Part - Seminars,Conferences - Seminars & Meetings,9599
213738,12/04/2023,Perrin Myddelton Limited,Property Servs - Fees,Housing (Misc) - Fees,262.5
213740,12/04/2023,Perrin Myddelton Limited,Property Servs - Fees,Housing (Misc) - Fees,1592.5
213743,12/04/2023,George (Bishop Stortford) Hotel LTD,Homelessness - Accommodation,Homelessness - Accommodation,8437.5
213744,12/04/2023,Mind in West Essex,Human Resource - Prof Training,Training,600
213746,12/04/2023,Sundry BACS,Dev't Control - Charges,Charges,300
213748,12/04/2023,Mill Green Services Ltd,New Depot Associated Capital Costs,Buildings Repair - Associated Cap Costs,2790
213749,12/04/2023,Sundry BACS,Hsg Rent Refunds Movements,Housing rent refund movement ,514.47
213750,12/04/2023,Mill Green Services Ltd,Dev't Control - Agency Staff,Credit Note,-1566
213752,12/04/2023,Penna PLC,Financial Srvs - Agency Staff,Agency Staff (Professional),12078
213753,12/04/2023,Hall Mark Meat Hygiene Limited,Border Inspect - Oth Prof Fees,Veterinary Services - Other Prof Fees,7200
213754,12/04/2023,The Monarch Partnership,Climate Change - Consultants,Consultants - General,360
213755,12/04/2023,Sellick Partnership Ltd,Legal Services - Agency Staff,Agency Staff (Professional),2473.65
213756,12/04/2023,Park Avenue Recruitment Ltd,Plan Policy - Agency Staff,Agency Staff (Professional),2035
213757,12/04/2023,Sellick Partnership Ltd,Legal Services - Legal Fees,Legal Services - Legal Fees,1925
213758,12/04/2023,Strategic Transport Solutions Ltd,Air/Noise Pol - Fees,Partnerships - Fees,2632
213759,12/04/2023,Beau Business Media Limited,Museum S/W - Advertising,Advertising,395
213760,12/04/2023,Newsquest Media Group Ltd,Economic Development - Advertising,Advertising,607.5
213761,12/04/2023,H B Commercial Ltd,Vehicle Maint - Other Mats,Waste Management - Materials,355
213764,12/04/2023,Sellick Partnership Ltd,Legal Services - Legal Fees,Legal Services - Legal Fees,1776
213765,12/04/2023,Sellick Partnership Ltd,Legal Services - Fees,Legal Services - Fees,1320.74
213766,12/04/2023,Greenacre Recruitment,Property Servs - Consultants,Consultants - General,1048.58
213767,12/04/2023,Entitledto Ltd,Benefits Admin - Software,ICT Software,2990
213768,12/04/2023,Good People Recycling Ltd,Grounds Mtce  - Agency Staff,Agency Staff (Professional),1813
213769,12/04/2023,Good People Recycling Ltd,Waste Mgmt - Agency Staff,Agency Staff (Professional),5212.25
213770,12/04/2023,Lindstrom Ltd,Vehicle Maint - Other Mats,Waste Management - Materials,469.1
213771,12/04/2023,Safetykleen UK Ltd,Vehicle Maint - Other Mats,Waste Management - Materials,521.17
213772,12/04/2023,Terberg Matec UK Ltd,Vehicle Maint - Other Mats,Waste Management - Materials,720.16
213775,26/04/2023,Aquajet Cleaning Equipment Ltd,Waste Mgmt - Other Mats,Waste Management - Materials,360.46
213777,12/04/2023,Cooleraid Ltd,Vending Serv - Equip Rental,Vending Machines - Equip Rental,311.5
213778,12/04/2023,Quadient UK LTD,Mail Room - Postage,Postage,447.74
213780,12/04/2023,Bevan Brittan LLP,Legal Services - Fees,Legal Services - Fees,5167.5
213781,12/04/2023,Locata (Housing Services) Ltd,Housing Servs - Fees,Housing (Misc) - Fees,5333.33
213782,12/04/2023,Good People Recycling Ltd,Waste Mgmt - Agency Staff,Agency Staff (Professional),4167.63
213783,12/04/2023,Source 24/7 LTD,Waste Mgmt - Agency Staff,Agency Staff (Professional),836
213784,12/04/2023,Mullucks Wells (BS),Legal Services - Legal Fees,Legal Services - Legal Fees,1250
213785,12/04/2023,Felsted Parish Council,Climate Change - Fees,Climate change fees,1200
213786,12/04/2023,Stansted Mountfitchet Parish Council,Climate Change - Fees,Climate change fees,27920
213787,12/04/2023,Easy Mobility (East Anglian) Ltd,Dis Facil Grt - Cap Grt L&B,Grants - S106 Cap Grt L&B,4661
213788,26/04/2023,Motex Automotive,Vehicle Maint - Other Mats,Credit Note ,-400
213791,12/04/2023,Essex County Council,Economic Development - Advertising,Advertising,300
213792,12/04/2023,Uttlesford Norse Ltd.,Norse Partnership Estates - Fees,Partnerships - Fees,19100.25
213792,12/04/2023,Uttlesford Norse Ltd.,Norse Partnership Hsg Rep - Fees,Partnerships - Fees,166399.33
213792,12/04/2023,Uttlesford Norse Ltd.,Norse Partnership Sheltered - Fees,Partnerships - Fees,10809.33
213792,12/04/2023,Uttlesford Norse Ltd.,Norse Partnership Sewerage - Fees,Partnerships - Fees,4604.42
213793,12/04/2023,Uttlesford Norse Ltd.,Norse Partnership Hsg Rep - Fees,Partnerships - Fees,42286.45
213794,12/04/2023,Uttlesford Norse Ltd.,Norse Partnership Admin - Fees,Partnerships - Fees,30785.59
213794,12/04/2023,Uttlesford Norse Ltd.,Norse Partnership Hsg Rep - Fees,Partnerships - Fees,56034.26
213795,12/04/2023,Uttlesford Norse Ltd.,Voids Prog - Cap Rep L&B,Buildings Repair/Maint - Cap Rep L&B,92033.33
213798,12/04/2023,WP Plumbing and Heating,S/W Offices - Cap Wk L&B,Capital Works - Land & Buildings,273
213801,12/04/2023,Kelly Rowland,Health Imp - Seminars,Room Hire - Seminars & Meetings,1160
213802,12/04/2023,Patricia Ackron,Health Imp - Seminars,Room Hire - Seminars & Meetings,602
213803,12/04/2023,Cushman & Wakefield Debenham Tie Leung L,"MOOG, Tawkesbury Cap Pur Acq",Construction - Capital Purchase Acquisit,3950
213805,12/04/2023,Sundry BACS,Climate Change - Fees,Climate change fees,27200
213808,12/04/2023,Steve Abbott Ltd,Private Sector - Cap Grt L&B,Grants - S106 Cap Grt L&B,2600
213809,12/04/2023,Gracelands CMS Ltd,Dis Facil Grt - Cap Grt L&B,Grants - S106 Cap Grt L&B,7024.24
213810,19/04/2023,NEC Software Solutions UK Ltd,Info Tech - Support Costs,ICT Maintenance/Support - Support Costs,4500
213811,19/04/2023,AdEPT Telecom PLC T/A Centrix Ltd,Info Tech - Support Costs,ICT Maintenance/Support - Support Costs,349.57
213812,19/04/2023,Huq Industries ltd,Economic Development - Subscriptions,Subscriptions,14800
213813,19/04/2023,Newsquest Media Group Ltd,Dev't Control - Advertising,Advertising,618
213814,19/04/2023,Newsquest Media Group Ltd,Elections - Stationery,Stationery,916.06
213815,19/04/2023,NewAuto Ltd T/A Mogo,Licensing - Other Mats,Signage - Other Materials,4606.9
213816,19/04/2023,Colchester Borough Council,CP Overheads - Fees,Partnerships - Fees,46550
213817,19/04/2023,Cushman & Wakefield Debenham Tie Leung L,"Amazon, Gloucester Cap Pur Acq",Construction - Capital Purchase Acquisit,3500
213818,19/04/2023,Sellick Partnership Ltd,Legal Services - Legal Fees,Legal Services - Legal Fees,1445.71
213819,19/04/2023,Sellick Partnership Ltd,Legal Services - Fees,Legal Services - Fees,1271.27
213820,19/04/2023,Uttlesford Norse Ltd.,Norse Partnership Asset Mgt - Fees,Partnerships - Fees,15560.42
213820,19/04/2023,Uttlesford Norse Ltd.,Norse Partnership Cleaning - Fees,Partnerships - Fees,20841.33
213821,19/04/2023,Tameside Metropolitan Borough,Revenues Admin - Consultants,Consultants - General,1700
213822,19/04/2023,Urban Design London,Planning Admin - Subscriptions,Subscriptions,750
213824,19/04/2023,Sellick Partnership Ltd,Legal Services - Agency Staff,Agency Staff (Professional),1068.54
213827,26/04/2023,Canon (UK) Limited,Print Room - Photocopier,Reprographics - Photocopier,626.1
213845,19/04/2023,Novus Environmental,Border Inspect - Disposal Chg,Waste Collection - Waste Disposal,468.2
213846,19/04/2023,Carrington West Ltd,Dev't Control - Agency Staff,Agency Staff (Professional),1887
213847,19/04/2023,Marlin Global Services Ltd - T/A Prokill,Canfield Offices - Pl Repairs,Pest & Animal Control - Planned Repairs,594.6
213848,19/04/2023,Sellick Partnership Ltd,Legal Services - Agency Staff,Agency Staff (Professional),1852.13
213849,19/04/2023,Canon (UK) Limited,Print Room - Equip Rental,Office & Reprographics -Equipment Rental,4016.09
213850,19/04/2023,Canon (UK) Limited,Print Room - Equip Rental,Office & Reprographics -Equipment Rental,959.3
213852,19/04/2023,Local Authority Publishing Co. Ltd,Museum S/W - Advertising,Advertising,250
213853,19/04/2023,Carrington West Ltd,Dev't Control - Agency Staff,Agency Staff (Professional),1836
213854,19/04/2023,Sellick Partnership Ltd,Legal Services - Legal Fees,Legal Services - Legal Fees,1776
213857,19/04/2023,Porterhouse Building & Fire Solutions Lt,S/W Offices - Cap Wk L&B,Capital Works - Land & Buildings,496.76
213859,19/04/2023,Porterhouse Building & Fire Solutions Lt,S/W Offices - Cap Wk L&B,Capital Works - Land & Buildings,445.12
213860,19/04/2023,Wilks Head & Eve,Financial Srvs - Consultants,Consultants - General,9250
213862,19/04/2023,Modes Users Association,Museum S/W - Subscriptions,Subscriptions,480
213863,19/04/2023,Conamar Building Services Ltd,New Depot Associated Capital Costs,Consultancy - Associated Capital Costs,35363.57
213864,19/04/2023,Sundry BACS,Other LA's Movemt in year,Movement ,2100
213865,19/04/2023,Sundry BACS,Hsg Rent Refunds Movements,Housing rent refunds movement ,486.45
213867,19/04/2023,Sundry BACS,Hsg Rent Refunds Movements,Housing rent refunds movement ,321.3
213870,19/04/2023,Macdonald & Company,Plan Policy - Agency Staff,Agency Staff (Professional),3932.57
213871,19/04/2023,Park Avenue Recruitment Ltd,Plan Policy - Agency Staff,Agency Staff (Professional),1677.5
213872,19/04/2023,Transport Initiatives LLP,Climate Change - Consultants,Consultants - General,4925
213873,19/04/2023,Vivid Resourcing Ltd,Plan Policy - Consultants,Consultants - General,5700
213874,19/04/2023,The Oyster Partnership Ltd,Plan Policy - Consultants,Consultants - General,2040
213875,19/04/2023,Greenacre Recruitment,Property Servs - Consultants,Consultants - General,868.92
213876,19/04/2023,VineHR Limited,Human Resource - Subscriptions,Subscriptions,3000
213877,19/04/2023,Creative Learning Systems Ltd,Human Resource - Subscriptions,Subscriptions,7889.4
213878,19/04/2023,Justin Gardner Consulting,Plan Policy - Consultants,Consultants - General,9900
213883,19/04/2023,Planned Environmental Services Ltd,Canfield Offices - Contractors,Works Consultancy - Contractors,550.57
213884,10/05/2023,PPK Services Limited,Vehicle Maint - Other Mats,Vehicle Parts - Other Materials,760
213885,19/04/2023,NEC Software Solutions UK Ltd,Revenues Admin - Consultants,Consultants - General,254.25
213886,19/04/2023,The Walden Local,Elections - Stationery,Stationery,250
213887,19/04/2023,Michael Page International Recruitment,Property Servs - Consultants,Consultants - General,2250
213889,19/04/2023,Sundry BACS,Debtors Control Refunds,Refunds ,2915.36
213891,19/04/2023,The Oyster Partnership Ltd,Dev't Control - Agency Staff,Agency Staff (Professional),1526.1
213892,19/04/2023,Carrington West Ltd,Dev't Control - Agency Staff,Agency Staff (Professional),1887
213893,19/04/2023,Vivid Resourcing Ltd,Dev't Control - Agency Staff,Agency Staff (Professional),1517
213895,19/04/2023,Vivid Resourcing Ltd,Dev't Control - Agency Staff,Agency Staff (Professional),1230
213896,19/04/2023,Macdonald & Company,Dev't Control - Agency Staff,Agency Staff (Professional),1856
213897,19/04/2023,Essex County Council,Specialists - Conservation - Consultants,Consultants - General,4897.73
213898,19/04/2023,Essex County Council,Dev Ctrl Appls - Consultants,Consultants - General,9974.25
213899,19/04/2023,Essex County Council,Plan Policy - Consultants,Consultants - General,474
213900,19/04/2023,Sundry BACS,Waste Mgmt - Other Mats,Waste,840
213901,26/04/2023,DWP Debt Management,Hsg Rent Refunds Movements,Housing rent refunds movement ,2234.44
213902,26/04/2023,Newsquest Media Group Ltd,Dev't Control - Advertising,Advertising,747.8
213903,19/04/2023,Regency Guarding & Events Ltd,Sheltered Hsg - Ad Hoc Repair,General Materials - Ad hoc Repair,1512
213904,26/04/2023,Opus People Solution Ltd,Housing Servs - Agency Staff,Agency Staff (Professional),8500
213905,26/04/2023,Opus People Solution Ltd,Housing Servs - Agency Staff,Agency Staff (Professional),3400
213906,26/04/2023,AdEPT Telecom PLC T/A Centrix Ltd,Info Tech - Support Costs,ICT Maintenance/Support - Support Costs,3960.35
213911,26/04/2023,WFL (UK) Ltd,Vehicle Maint - Other Mats,Waste Management - Materials,2650
213914,26/04/2023,Dennis Eagle Limited,Vehicle Maint - Other Mats,Waste Management - Materials,406.83
213915,26/04/2023,H B Commercial Ltd,Vehicle Maint - Other Mats,Waste Management - Materials,262.11
213916,26/04/2023,Source 24/7 LTD,Waste Mgmt - Agency Staff,Agency Staff (Professional),1163.28
213917,26/04/2023,WasteParts UK Ltd,Vehicle Maint - Other Mats,Waste Management - Materials,331.64
213918,26/04/2023,Keep IT Simple Stationery Ltd,Info Tech - Equipment,ICT Consumables - Equipment,1041.3
213919,26/04/2023,Michael Page International Recruitment,Property Servs - Consultants,Consultants - General,1800
213920,26/04/2023,Perrin Myddelton Limited,Property Servs - Fees,Legal Services - Fees,2656
213923,26/04/2023,ACS Limited,Benefits Admin - Consultants,Consultants - General,1600
213923,26/04/2023,ACS Limited,Revenues Admin - Consultants,Consultants - General,350
213929,26/04/2023,Environment Agency,Hsg Sewerage - Water,Water Assesment/Treatment-Water Services,1580
213930,26/04/2023,Environment Agency,Hsg Sewerage - Water,Water Assesment/Treatment-Water Services,890
213931,26/04/2023,Environment Agency,Hsg Sewerage - Water,Water Assesment/Treatment-Water Services,890
213932,26/04/2023,Environment Agency,Hsg Sewerage - Water,Water Assesment/Treatment-Water Services,890
213933,26/04/2023,Ideagen Gael Ltd,Info Tech - Support Costs,ICT Maintenance/Support - Support Costs,11736.95
213934,26/04/2023,AdEPT Telecom PLC T/A Centrix Ltd,Info Tech - Support Costs,Credit Note ,-3317.22
213937,26/04/2023,Mill Green Services Ltd,Dev't Control - Agency Staff,Developemnt control agency staff ,1566
213938,26/04/2023,N&P Crayford MRF Ltd,Waste Mgmt - Mat Rec Fac,Waste Recycling - Materials Recycling,54473.91
213939,26/04/2023,Sarto Thomas Ltd,Dev't Control - Agency Staff,Agency Staff (Professional),2568.75
213940,26/04/2023,Sarto Thomas Ltd,Dev't Control - Agency Staff,Agency Staff (Professional),2625
213941,26/04/2023,Essex County Council,Dev Ctrl Appls - Consultants,Consultants - General,4026.25
213942,26/04/2023,Governance Training and Consultancy Ltd,Legal Services - Legal Fees,Legal Services - Legal Fees,1850
213944,26/04/2023,AEBI Schmidt UK Limited,Vehicle Maint - Other Mats,Waste Management - Materials,642.95
213945,26/04/2023,AEBI Schmidt UK Limited,Vehicle Maint - Other Mats,Waste Management - Materials,964
213946,26/04/2023,Dennis Eagle Limited,Vehicle Maint - Other Mats,Waste Management - Materials,458.31
213947,26/04/2023,Dennis Eagle Limited,Vehicle Maint - Other Mats,Waste Management - Materials,954.5
213948,26/04/2023,David Wilson Homes,Woodlands - Cap Wk L&B,Capital Works - Land & Buildings,160804.46
213949,26/04/2023,Dennis Eagle Limited,Vehicle Maint - Other Mats,Waste Management - Materials,742.06
213950,26/04/2023,Driver Hire Chelmsford,Waste Mgmt - Agency Staff,Agency Staff (Professional),3154.73
213952,26/04/2023,7 Town Street Management,Thaxted CIC - Prem Premium,Property Insurance - Premiums,3116.23
213953,26/04/2023,Dunmow Skips Ltd,Street Clnsing - Disposal Chg,Waste Recycling - Disposal Charge,703.2
213954,26/04/2023,General Business Holdings Ltd,Waste Mgmt - Disposal Chg,Waste Disposal - Disposal Charge,2823.6
213955,26/04/2023,Good People Recycling Ltd,Grounds Mtce  - Agency Staff,Agency Staff (Professional),1590
213956,26/04/2023,Good People Recycling Ltd,Waste Mgmt - Agency Staff,Agency Staff (Professional),7007.75
213957,26/04/2023,Motex Automotive,Vehicle Maint - Other Mats,Waste Management - Materials,442.67
213960,26/04/2023,Saffron Vantage Ltd,Waste Mgmt - Agency Staff,Agency Staff (Professional),3963.39
213961,26/04/2023,Saffron Vantage Ltd,Waste Mgmt - Agency Staff,Agency Staff (Professional),2639.03
213962,26/04/2023,WasteParts UK Ltd,Vehicle Maint - Other Mats,Waste Management - Materials,446.73
213965,26/04/2023,WasteParts UK Ltd,Vehicle Maint - Other Mats,Waste Management - Materials,1160.21
213967,26/04/2023,WTL Truck Centres,Vehicle Maint - Other Mats,Vehicle Parts - Other Materials,262.87
213968,26/04/2023,R2C Online Ltd,Vehicle Maint - Subscriptions,Subscriptions,2688.3
213976,26/04/2023,Governance Training and Consultancy Ltd,Legal Services - Legal Fees,Legal Services - Legal Fees,1975
213977,26/04/2023,Lawyers in Local Government,Legal Services - Fees,Legal Services - Fees,315
213978,26/04/2023,Wardell Armstrong LLP,Walden Pl Shelt - Cap Wk L&B,Consultancy (Prop Works)- Cap Wk L&B,2120
213981,26/04/2023,The Enterprise East Group CIC,Health Imp - Seminars,Room Hire - Seminars & Meetings,300
213986,26/04/2023,Greenacre Recruitment,Property Servs - Consultants,Consultants - General,884
213990,26/04/2023,Elliot Baxter & Co Ltd T/A EBB OFFICE,Print Room - Stationery,Stationery,816.89
213993,26/04/2023,Mullucks Wells (BS),Housing Servs - Oth Prof Fees,Consultancy (Prop Works)- Othr Prof Fees,400
213995,26/04/2023,Chelmsford City Council,Plan Policy - Other Agency,Agency&Temp Staff (Prof) -Other Agencies,864.17
213997,26/04/2023,Great Dunmow Town Council,Health Imp - Seminars,Room Hire - Seminars & Meetings,288
213998,10/05/2023,Keep IT Simple Stationery Ltd,Info Tech - Equipment,ICT Consumables - Equipment,2757.4
213999,10/05/2023,Nviron Ltd,Info Tech - Equipment,ICT Consumables - Equipment,5210
214000,26/04/2023,1Life Management Solutions Ltd,PFI - PFI Unitary,Partnerships - PFI Unitary Charge,8000
214002,26/04/2023,Macdonald & Company,Dev't Control - Agency Staff,Agency Staff (Professional),2189.5
214003,26/04/2023,RSPCA Danaher Animal Home,Animal Warden - Accommodation,Kennel Services - Accomodation,2065.7
214004,26/04/2023,The Cultural Engine CIC,Plan Policy - Consultants,Consultants - General,3500
214005,26/04/2023,Altair Consultancy and Advisory Services,Property Servs Business Plan,Consultancy - Business Plan,5650
214006,26/04/2023,The Oyster Partnership Ltd,Plan Policy - Consultants,Consultants - General,2720
214008,26/04/2023,Public Practice,Plan Policy - Consultants,Consultants - General,6000
214013,26/04/2023,Carrington West Ltd,Dev't Control - Agency Staff,Agency Staff (Professional),1887
214014,26/04/2023,Carrington West Ltd,Dev't Control - Agency Staff,Agency Staff (Professional),1836
214015,26/04/2023,Carrington West Ltd,Dev't Control - Agency Staff,Agency Staff (Professional),1836
214016,03/05/2023,Sundry BACS,Hsg Rent Refunds Movements,Housing rent refund movement ,989.89
214017,24/05/2023,Infosec Cloud Ltd,Info Tech - Support Costs,ICT Maintenance/Support - Support Costs,462.68
214020,26/04/2023,Malthouse Security Ltd,Sheltered Hsg - Equipment,Health Care Equipment,1037.26
214021,26/04/2023,Saffron Vantage Ltd,Waste Mgmt - Agency Staff,Agency Staff (Professional),2932.25
214023,26/04/2023,Saffron Walden Town Council,Street Clnsing - Oth Loc Auth,Staff (Professional) - Other Loc Aut,9960
214027,26/04/2023,Vivid Resourcing Ltd,Dev't Control - Agency Staff,Agency Staff (Professional),1485
214028,26/04/2023,Porterhouse Building & Fire Solutions Lt,S/W Offices - Cap Wk L&B,Capital Works - Land & Buildings,410.56
214029,26/04/2023,Porterhouse Building & Fire Solutions Lt,S/W Offices - Cap Wk L&B,Capital Works - Land & Buildings,832.04
214030,26/04/2023,Porterhouse Building & Fire Solutions Lt,S/W Offices - Cap Wk L&B,Capital Works - Land & Buildings,853.21
214031,26/04/2023,Porterhouse Building & Fire Solutions Lt,S/W Offices - Cap Wk L&B,Capital Works - Land & Buildings,510
214032,26/04/2023,Dennis Eagle Limited,Vehicle Maint - Other Mats,Waste Management - Materials,301.65
214033,26/04/2023,Malins Associates Limited,Property Servs - Consultants,Consultants - General,5175
214035,26/04/2023,Class Affinity Projects Ltd,GF Asset Mgt - Mobiles,Corporate mobile phones ,1753.42
214036,26/04/2023,Class Affinity Projects Ltd,GF Asset Mgt - Mobiles,Corporate mobile phones ,663.67
214038,26/04/2023,Central Tyre Limited,Vehicle Maint - Other Mats,Waste Management - Materials,2510
214039,26/04/2023,Dennis Eagle Limited,Vehicle Maint - Other Mats,Waste Management - Materials,648.01
214041,26/04/2023,Dennis Eagle Limited,Vehicle Maint - Other Mats,Waste Management - Materials,704.59
214042,26/04/2023,Good People Recycling Ltd,Grounds Mtce  - Agency Staff,Agency Staff (Professional),1961
214044,26/04/2023,Newline Anglia Ltd,Waste Mgmt - Clothing,Protective Clothing - Clothing & Uniform,451.65
214045,26/04/2023,Source 24/7 LTD,Waste Mgmt - Agency Staff,Agency Staff (Professional),465.31
214046,26/04/2023,J D Robertson & Co Limited,Waste Mgmt - Contract Hire,Vehicle Hire,934.65
214048,26/04/2023,Silver Shield Windscreens Limited,Vehicle Maint - Other Mats,Vehicle Parts - Other Materials,325
214049,10/05/2023,Keep IT Simple Stationery Ltd,New members IT equipment - Cap Pur IT,ICT Hardware - Cap Pur IT,15040
214051,26/04/2023,Porterhouse Building & Fire Solutions Lt,S/W Offices - Cap Wk L&B,Capital Works - Land & Buildings,1500
214052,26/04/2023,Housing Partners Limited,Housing Servs - Subscriptions,Subscriptions,6149
214053,26/04/2023,Newsquest Media Group Ltd,Dev't Control - Advertising,Advertising,988.8
214055,10/05/2023,V G Nash & Son,Vehicle Maint - Other Mats,Waste Management - Materials,520
214057,26/04/2023,Lifetime Adaptions & Design Solutions Lt,Dis Facil Grt - Cap Grt L&B,Grants - S106 Cap Grt L&B,600
214058,26/04/2023,Berendsen UK Ltd,Vehicle Maint - Other Mats,Waste Management - Materials,476.96
214060,03/05/2023,Birchanger Wood Trust 2018,Climate Change - Fees,Climate change fees,3451
214061,26/04/2023,Canon (UK) Limited,Print Room - Equip Rental,Office & Reprographics -Equipment Rental,987.66
214062,26/04/2023,Canon (UK) Limited,Print Room - Equip Rental,Office & Reprographics -Equipment Rental,1025.37
214064,26/04/2023,Sarto Thomas Ltd,Dev't Control - Agency Staff,Agency Staff (Professional),2700
214067,26/04/2023,WFL (UK) Ltd,Vehicle Maint - Other Mats,Waste Management - Materials,1709.43
214068,26/04/2023,Central Tyre Limited,Vehicle Maint - Other Mats,Waste Management - Materials,2947
214069,26/04/2023,Driver Hire Chelmsford,Waste Mgmt - Agency Staff,Agency Staff (Professional),2158.49
214074,26/04/2023,Mr Timothy Straker KC,Legal Services - Fees,Legal Services - Fees,2500
214080,26/04/2023,Bournemouth Convention Bureau Limited,Chief Exec - Seminars,Conferences - Seminars & Meetings,397.5
214080,26/04/2023,Bournemouth Convention Bureau Limited,Democratic Rep - Seminars,Room Hire - Seminars & Meetings,397.5
214081,26/04/2023,Michael Page International Recruitment,Property Servs - Consultants,Consultants - General,2250
214082,26/04/2023,Good People Recycling Ltd,Waste Mgmt - Agency Staff,Agency Staff (Professional),6240.07
214083,03/05/2023,Uttlesford Buffy Bus Association,Voluntary Org - Grants,Grant ,5000
214084,03/05/2023,Uttlesford Community Travel,Community Grt - Cap Grt P&E,Grant ,17000
214084,03/05/2023,Uttlesford Community Travel,Voluntary Org - Grants,Grant,36000
214085,26/04/2023,Affinity Water,Common Servs - Water,Corporate Asset utilities ,1421.08
214087,26/04/2023,Park Avenue Recruitment Ltd,Plan Policy - Agency Staff,Agency Staff (Professional),2035
214088,03/05/2023,Anglian Water Business,S/W Offices - Water,Corporate Asset utilities ,2094.22
214091,03/05/2023,Castle Water Limited,DC Takeley - Water,Corporate Asset utilities ,703.3
214094,03/05/2023,Total Gas & Power Limited,Thaxted CIC - Gas,Corporate Asset utilities ,56692.25
214095,03/05/2023,Npower Limited,Thaxted CIC - Electricity,Corporate Asset utilities ,33008.96
214096,03/05/2023,Npower Limited,Common Servs - Electricity,Credit Note,-300
214098,03/05/2023,Thaxted Centre For The Disabled,Voluntary Org - Grants,Grants,2000
214099,03/05/2023,Dig It Community Allotment,Voluntary Org - Grants,Grants,3000
214100,03/05/2023,Home-Start Essex,Voluntary Org - Grants,Grants,9000
214101,03/05/2023,Support 4 Sight,Voluntary Org - Grants,Grants,9000
214102,03/05/2023,Saffron Hall Trust,Voluntary Org - Grants,Grants,3000
214103,03/05/2023,East Herts Citizens Advice Service,Voluntary Org - Grants,Grants,4000
214104,03/05/2023,Accuro,Voluntary Org - Grants,Grants,12000
214105,03/05/2023,Uttlesford Citizens Advice Bureau,Voluntary Org - Grants,Grants,155000
214106,03/05/2023,Council For Voluntary Service Uttlesford,Voluntary Org - Grants,Grants,55000
214107,03/05/2023,The Oyster Partnership Ltd,Dev't Control - Agency Staff,Agency Staff (Professional),1526.1
214108,03/05/2023,Buckingham Futures Ltd,Commercial Team - Agency Staff,Agency Staff (Professional),1680
214109,03/05/2023,MSG Contracts Limited,Canfield Offices - Cleaning,Cleaning Service - Contract Cleaning,347.1
214110,03/05/2023,Porterhouse Building & Fire Solutions Lt,S/W Offices - Cap Wk L&B,Capital Works - Land & Buildings,2910
214111,03/05/2023,De Salis Hotel,Homelessness - Accommodation,Homelessness - Accommodation,8269.16
214112,03/05/2023,Porterhouse Building & Fire Solutions Lt,S/W Offices - Cap Wk L&B,Capital Works - Land & Buildings,2250
214113,03/05/2023,Shire Trees Limited,Grounds Mtce  - External Contracts,Tree Trimming - Grounds Maint,295
214114,03/05/2023,Shire Trees Limited,Grounds Mtce  - External Contracts,Tree Trimming - Grounds Maint,295
214115,03/05/2023,Print Image Facilities LLP,Elections - Postage,Postage,3104.48
214116,03/05/2023,Print Image Network Limited,Elections - Printing,Printing,8749
214117,03/05/2023,Print Image Facilities LLP,Elections - Postage,Postage,441.2
214119,10/05/2023,Softcat Limited,Info Tech - Support Costs,ICT Software,708.3
214122,03/05/2023,Innovate Healthcare Management Group,Waste Mgmt - Medic Other,Assessment - Medical Other,523
214124,03/05/2023,Computershare Voucher Services,Human Resource - Emp'ee Scheme,Human Resources - Emp'ee Scheme,480.08
214127,03/05/2023,De Salis Hotel,Homelessness - Accommodation,Homelessness - Accommodation,687.5
214128,03/05/2023,Nickolds HMO Management & Maintenance,Homelessness - Accommodation,Homelessness - Accommodation,595
214129,03/05/2023,Nickolds HMO Management & Maintenance,Homelessness - Accommodation,Homelessness - Accommodation,595
214131,03/05/2023,Total ID Ltd,S/W Offices - Ad Hoc Repair,Security (Access Control)- Ad Hoc Repair,460.95
214132,03/05/2023,PortalPlanQuest Ltd,Dev't Control - Fees,Development control fees,462
214133,03/05/2023,Sundry BACS,Dev't Control - Fees,Development control fees,494.2
214136,03/05/2023,Opus People Solution Ltd,Housing Servs - Agency Staff,Agency Staff (Professional),3400
214137,03/05/2023,Park Avenue Recruitment Ltd,Plan Policy - Agency Staff,Agency Staff (Professional),2035
214138,03/05/2023,Phil Jones Associates Ltd,Climate Change - Consultants,Consultants - General,2022
214139,03/05/2023,The Oyster Partnership Ltd,Plan Policy - Consultants,Consultants - General,2720
214143,03/05/2023,Eptura UK Limited,ICT - New Sites - Cap Pur IT,Capital Purchases - IT,1350
214143,03/05/2023,Eptura UK Limited,Info Tech - Support Costs,Capital Purchases - IT,11500
214146,03/05/2023,Patricia Ackron,Health Imp - Seminars,Room Hire - Seminars & Meetings,423
214147,03/05/2023,Ex-Job Limited,Licensing - Other Mats,Signage - Other Materials,3247.47
214148,03/05/2023,Cambridgeshire ACRE,Housing Servs - Subscriptions,Subscriptions,1500
214149,03/05/2023,Birketts LLP,Legal Services - Fees,Legal Services - Fees,690
214150,03/05/2023,Sellick Partnership Ltd,Legal Services - Agency Staff,Industrial Operatives - Agency Staff,962.1
214151,03/05/2023,Sellick Partnership Ltd,Legal Services - Agency Staff,Industrial Operatives - Agency Staff,1038.23
214152,03/05/2023,Sellick Partnership Ltd,Legal Services - Agency Staff,Industrial Operatives - Agency Staff,1440
214153,03/05/2023,Sellick Partnership Ltd,Legal Services - Agency Staff,Industrial Operatives - Agency Staff,1080
214154,03/05/2023,Sellick Partnership Ltd,Legal Services - Agency Staff,Industrial Operatives - Agency Staff,2479.5
214155,03/05/2023,Oliver & Company (UK)Ltd,Comm Partnerships - Grants,Non Charitable Grants,1075
214160,03/05/2023,Class Affinity Projects Ltd,GF Asset Mgt - Mobiles,Corporate mobile phones ,2900.09
214161,03/05/2023,Police & Crime Commissioner for Essex,Comm Safe Part - Seminars,Conferences - Seminars & Meetings,474.5
214162,10/05/2023,Chelmsford City Council,Air/Noise Pol - Consultants,Consultants - General,2113.98
214164,10/05/2023,Core Power Generation Ltd,New Depot Associated Capital Costs,Buildings Repair - Associated Cap Costs,4800
214166,03/05/2023,The Oyster Partnership Ltd,Dev't Control - Agency Staff,Agency Staff (Professional),1780.45
214167,03/05/2023,Macdonald & Company,Dev't Control - Agency Staff,Agency Staff (Professional),2204
214168,03/05/2023,Macdonald & Company,Dev't Control - Agency Staff,Agency Staff (Professional),1841.5
214169,03/05/2023,Vivid Resourcing Ltd,Dev't Control - Agency Staff,Agency Staff (Professional),1517
214170,10/05/2023,MSG Contracts Limited,Canfield Offices - Cleaning,Cleaning Service - Contract Cleaning,285
214171,03/05/2023,Cartridge Save Ltd,Border Inspect - Equipment,Tools/Equipment (Purchase) - Equipment,367.23
214172,03/05/2023,Vivid Resourcing Ltd,Dev't Control - Agency Staff,Agency Staff (Professional),2035
214173,03/05/2023,Sellick Partnership Ltd,Legal Services - Agency Staff,Industrial Operatives - Agency Staff,1992.52
214174,03/05/2023,Sellick Partnership Ltd,Legal Services - Agency Staff,Industrial Operatives - Agency Staff,2255.02
214175,03/05/2023,Sellick Partnership Ltd,Legal Services - Agency Staff,Industrial Operatives - Agency Staff,1776
214176,03/05/2023,Sellick Partnership Ltd,Legal Services - Agency Staff,Industrial Operatives - Agency Staff,1301.07
214177,03/05/2023,Sellick Partnership Ltd,Legal Services - Agency Staff,Industrial Operatives - Agency Staff,1483.35
214178,03/05/2023,De Salis Hotel,Homelessness - Accommodation,Homelessness - Accommodation,1322.5
214179,03/05/2023,District Councils Network,Democratic Rep - Subscriptions,Subscriptions,2556
214180,03/05/2023,Gipping Construction Limited,Walden Pl Shelt - Cap Wk L&B,Capital Works - Land & Buildings,162831.85
214181,03/05/2023,Sundry BACS,Hsg Rent Refunds Movements,Housing rent refunds movement ,275.65
214182,03/05/2023,Greenacre Recruitment,Property Servs - Consultants,Consultants - General,1059.5
214183,03/05/2023,Buckingham Futures Ltd,Commercial Team - Agency Staff,Agency Staff (Professional),475
214184,03/05/2023,Bartec Municipal Technologies Limited,Waste Mgmt - Subscriptions,Subscriptions,13650
214185,03/05/2023,Central Tyre Limited,Vehicle Maint - Other Mats,Waste Management - Materials,1727
214186,03/05/2023,Crimp Hydraulic Services Ltd,Vehicle Maint - Other Mats,Waste Management - Materials,384.16
214189,03/05/2023,Dennis Eagle Limited,Vehicle Maint - Other Mats,Waste Management - Materials,600.15
214190,03/05/2023,Dennis Eagle Limited,Vehicle Maint - Other Mats,Waste Management - Materials,457.68
214191,03/05/2023,Driver Hire Chelmsford,Waste Mgmt - Agency Staff,Agency Staff (Professional),1992.45
214192,03/05/2023,Dunmow Skips Ltd,Street Clnsing - Disposal Chg,Waste Recycling - Disposal Charge,734.4
214194,07/06/2023,Silver Shield Windscreens Limited,Vehicle Maint - Other Mats,Vehicle Parts - Other Materials,325
214195,03/05/2023,Good People Recycling Ltd,Grounds Mtce  - Agency Staff,Agency Staff (Professional),1961
214196,03/05/2023,Good People Recycling Ltd,Waste Mgmt - Agency Staff,Agency Staff (Professional),5765.75
214198,03/05/2023,H B Commercial Ltd,Vehicle Maint - Other Mats,Waste Management - Materials,334.09
214204,03/05/2023,H B Commercial Ltd,Vehicle Maint - Other Mats,Waste Management - Materials,253.04
214208,03/05/2023,H B Commercial Ltd,Vehicle Maint - Other Mats,Waste Management - Materials,253.34
214217,03/05/2023,Saffron Vantage Ltd,Waste Mgmt - Agency Staff,Agency Staff (Professional),3228.25
214219,03/05/2023,Source 24/7 LTD,Waste Mgmt - Agency Staff,Agency Staff (Professional),697.97
214220,03/05/2023,N&P Crayford MRF Ltd,Waste Mgmt - Mat Rec Fac,Waste Recycling - Materials Recycling,260
214221,03/05/2023,N&P Crayford MRF Ltd,Waste Mgmt - Mat Rec Fac,Waste Recycling - Materials Recycling,690
214222,03/05/2023,David Wilson Homes,Woodlands - Cap Wk L&B,Capital Works - Land & Buildings,269294.44
214223,10/05/2023,Terberg Matec UK Ltd,Vehicle Maint - Other Mats,Waste Management - Materials,1602.76
214224,03/05/2023,Affinity Water,Street Clnsing - Water,Street Cleaning - Water Services,7136.3
214225,03/05/2023,New Era Fuels Ltd,Fuel Stocks Purchases,Vehicle Fuel - Stock Purchases,1249.5
214226,03/05/2023,New Era Fuels Ltd,Fuel Stocks Purchases,Vehicle Fuel - Stock Purchases,37483.75
214227,03/05/2023,Affinity Water,Common Servs - Water,Corporate Asset utilities ,3835.89
214228,03/05/2023,Castle Water Limited,DC Dunmow - Water,Credit Note,-334.91
214231,03/05/2023,Perrin Myddelton Limited,Property Servs - Fees,Legal Services - Fees,875
214243,03/05/2023,Sundry BACS,Hsg Rent Refunds Movements,Housing rent refunds movement ,2277.28
214244,03/05/2023,Sundry BACS,Air/Noise Pol - Fees,Air/Noise pollution ,495
214247,17/05/2023,Stebbing Parish Council,Climate Change - Fees,Climate change fees,2200
214248,03/05/2023,LDA Design Consulting Ltd,Plan Policy - Consultants,Consultants - General,13300
214249,03/05/2023,Opus People Solution Ltd,Housing Servs - Agency Staff,Agency Staff (Professional),4250
214250,10/05/2023,AWICS Limited,Performance - Seminars,Conferences - Seminars & Meetings,1740.64
214251,03/05/2023,Faithorn Farrell Timms LLP,Property Servs Business Plan,Consultancy - Business Plan,3000
214253,10/05/2023,Michael Page International Recruitment,Property Servs - Consultants,Consultants - General,2250
214257,10/05/2023,Braintree District Council,Street Clnsing - Disposal Chg,Recycling - Waste Disposal,11872.5
214258,24/05/2023,NewAuto Ltd T/A Mogo,Licensing - Other Mats,Signage - Other Materials,284.9
214260,10/05/2023,Freshworks Inc,Info Tech - Support Costs,ICT Maintenance/Support - Support Costs,4550.27
214261,10/05/2023,G2 Recruitment Solutions,Financial Srvs - Advertising,Recruitment - Advertising,8500.6
214263,10/05/2023,Greenacre Recruitment,Property Servs - Consultants,Consultants - General,1105
214264,10/05/2023,AEBI Schmidt UK Limited,Vehicle Maint - Other Mats,Waste Management - Materials,481.94
214268,10/05/2023,Terberg Matec UK Ltd,Vehicle Maint - Other Mats,Waste Management - Materials,1602.76
214269,10/05/2023,Terberg Matec UK Ltd,Vehicle Maint - Other Mats,Waste Management - Materials,269.89
214271,10/05/2023,Danline International Limited,Street Clnsing - Other Mats,Waste Management - Materials,493
214272,10/05/2023,V G Nash & Son,Waste Mgmt - Other Mats,Vehicle Parts - Other Materials,260
214273,10/05/2023,The Monarch Partnership,Climate Change - Consultants,Consultants - General,360
214274,10/05/2023,Mark Liell & Son LLP,Commercial Asset Mgt - Fees,Partnerships - Fees,11013.25
214275,10/05/2023,Mark Liell & Son LLP,Commercial Asset Mgt - Fees,Partnerships - Fees,8140
214276,10/05/2023,Mark Liell & Son LLP,Commercial Asset Mgt - Fees,Partnerships - Fees,11356.25
214277,10/05/2023,Mark Liell & Son LLP,Commercial Asset Mgt - Fees,Partnerships - Fees,3750
214278,10/05/2023,Mark Liell & Son LLP,Commercial Asset Mgt - Fees,Partnerships - Fees,11467.25
214279,10/05/2023,Sarto Thomas Ltd,Dev't Control - Agency Staff,Agency Staff (Professional),2775
214280,10/05/2023,Gipping Construction Limited,Walden Pl Shelt - Cap Wk L&B,Capital Works - Land & Buildings,168305.09
214281,24/05/2023,Larac,Waste Mgmt - Prof Subs,Professional Subscriptions,445
214282,10/05/2023,Uttlesford Norse Ltd.,Voids Prog - Cap Rep L&B,Buildings Repair/Maint - Cap Rep P&E,92033.33
214283,10/05/2023,Uttlesford Norse Ltd.,Norse Partnership Estates - Fees,Partnerships - Fees,19100.25
214283,10/05/2023,Uttlesford Norse Ltd.,Norse Partnership Hsg Rep - Fees,Partnerships - Fees,4604.42
214283,10/05/2023,Uttlesford Norse Ltd.,Norse Partnership Sheltered - Fees,Partnerships - Fees,166399.33
214283,10/05/2023,Uttlesford Norse Ltd.,Norse Partnership Sewerage - Fees,Partnerships - Fees,10809.33
214284,10/05/2023,Uttlesford Norse Ltd.,Norse Partnership Hsg Rep - Fees,Partnerships - Fees,42286.45
214285,10/05/2023,Uttlesford Norse Ltd.,Norse Partnership Admin - Fees,Partnerships - Fees,30785.59
214285,10/05/2023,Uttlesford Norse Ltd.,Norse Partnership Hsg Rep - Fees,Partnerships - Fees,56034.26
214286,10/05/2023,Uttlesford Norse Ltd.,Norse Partnership Asset Mgt - Fees,Partnerships - Fees,15560.42
214286,10/05/2023,Uttlesford Norse Ltd.,Norse Partnership Cleaning - Fees,Partnerships - Fees,20841.33
214288,10/05/2023,Linteum (Uttlesford) Ltd,PFI Financing LTL -Repaid,Leisure Services - LTL - Repaid,15064.38
214288,10/05/2023,Linteum (Uttlesford) Ltd,Int & Invest - Interest Pay,Leisure Services - Interest Payable,27814.72
214288,10/05/2023,Linteum (Uttlesford) Ltd,PFI - PFI Unitary,Leisure Services -PFI Unitary Charge,72338.07
214289,10/05/2023,Perrin Myddelton Limited,Property Servs - Fees,Legal Services - Fees,682.5
214290,10/05/2023,Perrin Myddelton Limited,Property Servs - Fees,Legal Services - Fees,1400
214291,10/05/2023,Perrin Myddelton Limited,Property Servs - Fees,Legal Services - Fees,1417.5
214292,10/05/2023,Encore Envelopes Ltd,Print Room - Stationery,Stationery,1772
214293,10/05/2023,SGS (formally Concept Life Sciences),Border Inspect - Oth Prof Fees,Forensic & Lab Testing - Oth Prof Fees,2244.08
214294,10/05/2023,Project Skills Solutions Ltd,Grounds Mtce  - Prof Training,Training,394
214295,10/05/2023,Chris Rix Electrical Ltd,S/W Offices - Cap Wk L&B,Capital Works - Land & Buildings,3450
214296,10/05/2023,M&B Printers Ltd,Elections - Stationery,Stationery,250
214297,10/05/2023,Newsquest Media Group Ltd,Dev't Control - Advertising,Advertising,988.8
214298,17/05/2023,AppCheck Ltd,Info Tech - Support Costs,ICT Maintenance/Support - Support Costs,1000
214300,10/05/2023,Softcat Limited,Info Tech - Support Costs,ICT Software,5540.48
214302,10/05/2023,Tetra Tech,Plan Policy - Consultants,Consultants - General,25000
214303,17/05/2023,Sundry BACS,Debtors Control Refunds,Debtors refunds ,492.96
214306,10/05/2023,Park Avenue Recruitment Ltd,Plan Policy - Agency Staff,Agency Staff (Professional),2035
214308,10/05/2023,DWP Debt Management,Hsg Rent Refunds Movements,Housing rent refund movement ,426.92
214311,07/06/2023,Calibration & Consultancy Services UK Lt,Waste Mgmt - Other Mats,Waste Management - Materials,2885
214312,10/05/2023,The Oyster Partnership Ltd,Dev't Control - Agency Staff,Agency Staff (Professional),1882.19
214313,10/05/2023,Carrington West Ltd,Dev't Control - Agency Staff,Agency Staff (Professional),1887
214314,10/05/2023,Macdonald & Company,Dev't Control - Agency Staff,Agency Staff (Professional),2204
214315,10/05/2023,Vivid Resourcing Ltd,Dev't Control - Agency Staff,Agency Staff (Professional),1567.5
214317,10/05/2023,Vivid Resourcing Ltd,Plan Policy - Consultants,Consultants - General,4080
214318,10/05/2023,The Oyster Partnership Ltd,Plan Policy - Consultants,Consultants - General,2720
214319,10/05/2023,Driver Hire Chelmsford,Waste Mgmt - Agency Staff,Agency Staff (Professional),1826.41
214323,10/05/2023,Lindstrom Ltd,Vehicle Maint - Other Mats,Waste Management - Materials,469.1
214325,10/05/2023,Safetykleen UK Ltd,Vehicle Maint - Other Mats,Waste Management - Materials,521.17
214328,10/05/2023,Source 24/7 LTD,Waste Mgmt - Agency Staff,Agency Staff (Professional),930.62
214330,10/05/2023,Good People Recycling Ltd,Grounds Mtce  - Agency Staff,Agency Staff (Professional),2756
214331,10/05/2023,Good People Recycling Ltd,Waste Mgmt - Agency Staff,Agency Staff (Professional),5263.44
214336,10/05/2023,Sundry BACS,Dev't Control - Prof Subs,Development control fees,321.75
214337,10/05/2023,Vivid Resourcing Ltd,Env Protection - Consultants,Consultants - General,591.76
214338,10/05/2023,Vivid Resourcing Ltd,Env Protection - Consultants,Consultants - General,682.8
214339,10/05/2023,Vivid Resourcing Ltd,Env Protection - Consultants,Consultants - General,637.28
214340,10/05/2023,Vivid Resourcing Ltd,Env Protection - Consultants,Consultants - General,591.76
214341,17/05/2023,Sundry BACS,Env Protection - Equipment,Equipment ,300
214342,10/05/2023,SL Executive Ltd,Chairman - Members Exps,Chairmans Expenses,350
214346,10/05/2023,BGC Brokers,Treasury Man - Fees,Financial Services - Borrowing Fees,898.63
214347,10/05/2023,Consultive Solutions Ltd,Comm Safety - Consultants,Consultants - General,7650
214348,10/05/2023,Thurrock Council,Env Protection - Consultants,Consultants - General,2435.63
214350,10/05/2023,Colchester Borough Council,CP Overheads - Bank Charges,Bank Charges,258.96
214351,10/05/2023,Colchester Borough Council,CP Overheads - Bank Charges,Bank Charges,3967.28
214352,10/05/2023,Colchester Borough Council,CP Overheads - Bank Charges,Bank Charges,20970.83
214353,10/05/2023,Colchester Borough Council,CP Overheads - Bank Charges,Bank Charges,376.58
214354,10/05/2023,Colchester Borough Council,CP Overheads - Bank Charges,Bank Charges,5440.29
214355,17/05/2023,Henry Riley,New Depot Associated Capital Costs,Consultancy - Associated Capital Costs,2500
214356,17/05/2023,Carrington West Ltd,Dev't Control - Agency Staff,Agency Staff (Professional),1887
214357,17/05/2023,Sarto Thomas Ltd,Dev't Control - Agency Staff,Agency Staff (Professional),2775
214358,17/05/2023,AGO Compliance LTD,Canfield Offices - Contractors,Works Consultancy - Contractors,1259
214359,17/05/2023,Vivid Resourcing Ltd,Dev't Control - Agency Staff,Agency Staff (Professional),1517
214360,17/05/2023,AdEPT Telecom PLC T/A Centrix Ltd,Info Tech - Support Costs,ICT Maintenance/Support - Support Costs,349.57
214361,17/05/2023,Carrington West Ltd,Dev't Control - Agency Staff,Agency Staff (Professional),1887
214362,17/05/2023,Essex County Council,Dev Ctrl Appls - Consultants,Consultants - General,2200
214363,24/05/2023,Zehnder Group UK Ltd,S/W Offices - Cap Wk L&B,Capital Works - Land & Buildings,481
214364,17/05/2023,Environment Agency,Canfield Offices - Contractors,Works Consultancy - Contractors,890
214365,17/05/2023,Government Knowledge Events Ltd,Performance - Seminars,Conferences - Seminars & Meetings,290
214366,17/05/2023,JGP Resourcing Limited,Human Resource - Subscriptions,Subscriptions,5450
214367,31/05/2023,Newsquest Media Group Ltd,Licensing - Other Mats,Signage - Other Materials,447.2
214368,24/05/2023,Newsquest Media Group Ltd,Dev't Control - Advertising,Advertising,686
214369,17/05/2023,Calders Conferences Ltd,Homelessness - Emergency Response Supplies,Covid 19 - Emergency Response Supplies,59733.33
214370,17/05/2023,Calders Conferences Ltd,Homelessness - Emergency Response Supplies,Covid 19 - Emergency Response Supplies,42750
214372,17/05/2023,Zehnder Group UK Ltd,S/W Offices - Cap Wk L&B,Buildings Repairs/Maint - Cap Wk L&B,481
214373,17/05/2023,NewAuto Ltd T/A Mogo,Licensing - Other Mats,Signage - Other Materials,4605.9
214374,31/05/2023,Bytes Software Services,Info Tech - Support Costs,ICT Maintenance/Support - Support Costs,338.2
214376,17/05/2023,Hearing Help Essex Ltd,Voluntary Org - Grants,Grants,4000
214379,17/05/2023,Calders Conferences Ltd,Homelessness - Emergency Response Supplies,Covid 19 - Emergency Response Supplies,3300
214380,17/05/2023,Calders Conferences Ltd,Homelessness - Emergency Response Supplies,Covid 19 - Emergency Response Supplies,15900
214381,17/05/2023,Calders Conferences Ltd,Homelessness - Emergency Response Supplies,Covid 19 - Emergency Response Supplies,4000
214384,17/05/2023,Calders Conferences Ltd,Homelessness - Emergency Response Supplies,Covid 19 - Emergency Response Supplies,7388.38
214385,17/05/2023,Calders Conferences Ltd,Homelessness - Emergency Response Supplies,Covid 19 - Emergency Response Supplies,2250
214386,17/05/2023,Calders Conferences Ltd,Homelessness - Emergency Response Supplies,Covid 19 - Emergency Response Supplies,4000
214387,17/05/2023,Calders Conferences Ltd,Homelessness - Emergency Response Supplies,Covid 19 - Emergency Response Supplies,7100
214391,17/05/2023,Alan B Jones & Associates Ltd,Commercial Asset Mgt - Consultants,Consultants - General,510
214392,17/05/2023,Museums Essex,Museum S/W - Subscriptions,Subscriptions,250
214393,17/05/2023,Rural Community Council Of Essex,Housing Servs - Subscriptions,Subscriptions,5000
214396,17/05/2023,Mayflower Disclosure Services Ltd,Elections - Employee Checks,HR Assessment - Employee Checks,268.64
214399,17/05/2023,Nickolds HMO Management & Maintenance,Homelessness - Accommodation,Homelessness - Accommodation,360
214400,24/05/2023,Anness and Partners,New Depot Associated Capital Costs,Consultancy - Associated Capital Costs,1999.17
214401,17/05/2023,Northumbrian Water Ltd,S/W Offices - Cap Wk L&B,Capital Works - Land & Buildings,550
214403,17/05/2023,WP Plumbing and Heating,S/W Offices - Cap Wk L&B,Capital Works - Land & Buildings,913
214404,17/05/2023,International Parking Systems (UK) Ltd,CP Overheads - Equip Rental,Office & Reprographics -Equipment Rental,332.5
214405,17/05/2023,International Parking Systems (UK) Ltd,CP Overheads - Bank Charges,Bank Charges,5059.2
214406,17/05/2023,Locata (Housing Services) Ltd,Housing Servs - Fees,Housing (Misc) - Fees,5250
214407,17/05/2023,Barberry Industrial Limited,"MOOG, Tawkesbury Cap Pur Acq",Construction - Capital Purchase Acquisit,153537.41
214409,17/05/2023,MSG Contracts Limited,Canfield Offices - Cleaning,Cleaning Service - Contract Cleaning,1679.97
214411,17/05/2023,Saffron Walden Town Council,DC SW - Grants,Charitable Grants,5000
214412,17/05/2023,Roe Environmental Ltd,Canfield Offices - Contractors,Works Consultancy - Contractors,9280.75
214419,17/05/2023,Cambridge City Council 3C Building Contr,KJA Project - Fees,Partnerships - Fees,900
214421,17/05/2023,De Salis Hotel,Homelessness - Emergency Response Supplies,Covid 19 - Emergency Response Supplies,3261.67
214422,17/05/2023,Oasis Hotel Harlow Limited,Homelessness - Accommodation,Homelessness - Accommodation,1237.5
214423,17/05/2023,Oasis Hotel Harlow Limited,Homelessness - Accommodation,Homelessness - Accommodation,1237.5
214424,17/05/2023,Oasis Hotel Harlow Limited,Homelessness - Accommodation,Homelessness - Accommodation,1475
214425,17/05/2023,Nickolds HMO Management & Maintenance,Homelessness - Accommodation,Homelessness - Accommodation,595
214426,17/05/2023,Nickolds HMO Management & Maintenance,Homelessness - Accommodation,Homelessness - Accommodation,315
214427,17/05/2023,Nickolds HMO Management & Maintenance,Homelessness - Accommodation,Homelessness - Accommodation,1190
214429,24/05/2023,One51 ES Plastics UK t/a MGB Plastics,Containers - Cap Pur P&E,Capital Purchases - Plant & Equipment,1377
214430,17/05/2023,High Easter Parish Council,Health Imp - Seminars,Room Hire - Seminars & Meetings,1250
214431,17/05/2023,Sundry BACS,Debtors Control Refunds,Debtors refunds ,300
214432,17/05/2023,Penna PLC,Financial Srvs - Agency Staff,Agency Staff (Professional),8921.25
214433,24/05/2023,Campbell Associates Ltd,Air/Noise Pol - Equip Maint,Monitoring (Environmental) - Equip Maint,435
214434,17/05/2023,Calders Conferences Ltd,Homelessness - Emergency Response Supplies,Covid 19 - Emergency Response Supplies,5541.67
214435,17/05/2023,West Devon Borough Council,Chief Exec - Subscriptions,Subscriptions,3193.05
214436,24/05/2023,Softcat Limited,Info Tech - Support Costs,ICT Maintenance/Support - Support Costs,7309.01
214437,17/05/2023,Calders Conferences Ltd,Homelessness - Emergency Response Supplies,Covid 19 - Emergency Response Supplies,747.5
214438,17/05/2023,Calders Conferences Ltd,Homelessness - Emergency Response Supplies,Covid 19 - Emergency Response Supplies,6375.79
214439,17/05/2023,The Oyster Partnership Ltd,Dev't Control - Agency Staff,Agency Staff (Professional),1526.1
214440,17/05/2023,Macdonald & Company,Dev't Control - Agency Staff,Agency Staff (Professional),1218
214441,17/05/2023,Vivid Resourcing Ltd,Dev't Control - Agency Staff,Agency Staff (Professional),1230
214442,17/05/2023,Hall Mark Meat Hygiene Limited,Border Inspect - Oth Prof Fees,Veterinary Services - Other Prof Fees,6060
214444,17/05/2023,Vivid Resourcing Ltd,Plan Policy - Consultants,Consultants - General,5700
214445,17/05/2023,The Oyster Partnership Ltd,Plan Policy - Consultants,Consultants - General,1760
214448,17/05/2023,AdEPT Telecom PLC T/A Centrix Ltd,Info Tech - Support Costs,ICT Maintenance/Support - Support Costs,4102.81
214449,17/05/2023,Civica UK Limited,Info Tech - Consultants,Consultants - General,3330
214450,17/05/2023,Calders Conferences Ltd,Homelessness - Emergency Response Supplies,Covid 19 - Emergency Response Supplies,12416.67
214452,17/05/2023,Elliot Baxter & Co Ltd T/A EBB OFFICE,Print Room - Stationery,Stationery,378
214453,17/05/2023,Sundry BACS,Cap Wk L&B,Capital ,272
214454,17/05/2023,Carrington West Ltd,Dev't Control - Agency Staff,Agency Staff (Professional),1887
214455,17/05/2023,Martin Builders,Dangerous Str  - Contractors,Works Consultancy - Contractors,957
214457,07/06/2023,MSG Contracts Limited,Canfield Offices - Cleaning,Cleaning Service - Contract Cleaning,1679.97
214463,17/05/2023,Greenacre Recruitment,Property Servs - Consultants,Consultants - General,891.8
214464,24/05/2023,Solace in Business Ltd,Dir Pub Servs - Seminars,Conferences - Seminars & Meetings,862.5
214468,17/05/2023,Tudor UK Ltd t/a Tudor Environmental,Grounds Mtce  - Other Mats,Waste Management - Materials,791.17
214477,17/05/2023,Planningjobs.com Limited,Dev't Control - Advertising,Advertising,1590
214480,17/05/2023,Atlantis Drain & Jetting Services,S/W Offices - Cap Wk L&B,Capital Works - Land & Buildings,350
214481,17/05/2023,Hadstock Parish Council,Climate Change - Equipment,Equipment ,564.91
214482,07/06/2023,Newsquest Media Group Ltd,Homelessness - Advertising,Recruitment - Advertising,937.3
214485,24/05/2023,Essex County Council,Land Charges - Fees,Land Search Fees,630
214486,24/05/2023,Essex County Council,Land Charges - Fees,Land Search Fees,980
214487,24/05/2023,Porterhouse Building & Fire Solutions Lt,S/W Offices - Cap Wk L&B,Capital Works - Land & Buildings,26812.56
214488,24/05/2023,NEC Software Solutions UK Ltd,Revenues Admin - Consultants,Consultants - General,1356
214489,24/05/2023,Tullett Prebon Group Ltd,Treasury Man - Fees,Financial Services - Borrowing Fees,256.17
214490,24/05/2023,Nominet UK,Info Tech - Support Costs,ICT Maintenance/Support - Support Costs,555.75
214492,24/05/2023,Calders Conferences Ltd,Homelessness - Emergency Response Supplies,Covid 19 - Emergency Response Supplies,24645.84
214493,24/05/2023,Epping Forest District Council,Economic Development - Subscriptions,Subscriptions,10000
214499,24/05/2023,Great Dunmow Town Council,Community Grt - Cap Grt P&E,Grant,600
214500,24/05/2023,University of Cambridge,NHB Ward Member - Grants,Grant,535
214503,24/05/2023,LGcomms,Communications - Subscriptions,Subscriptions,250
214504,13/06/2023,Daines-Lowe Ltd,S/W Offices - Cap Wk L&B,Capital Works - Land & Buildings,19578.9
214505,24/05/2023,Allports Garages Ltd,Refuse Coll Veh - Cap Pur Veh,Capital Purchases - Vehicles,55050
214506,24/05/2023,1Life Management Solutions Ltd,PFI - PFI Unitary,Partnerships - PFI Unitary Charge,8000
214510,24/05/2023,Sarto Thomas Ltd,Dev't Control - Agency Staff,Agency Staff (Professional),2737.5
214511,24/05/2023,Little Canfield Parish Council,Community Grt - Cap Grt P&E,Grant,700
214515,24/05/2023,H B Commercial Ltd,Vehicle Maint - Other Mats,Credit Note,-303.16
214518,24/05/2023,CBRE LTD,Commercial Asset Mgt - Consultants,Consultants - General,5625
214519,24/05/2023,Clavering Parish Council,Community Grt - Cap Grt P&E,Grant ,700
214520,24/05/2023,Henham Parish Council,Community Grt - Cap Grt P&E,Grant ,900
214523,24/05/2023,Essex County Council,Emergency Plan - Oth Loc Auth,Staff (Professional) - Other Loc Aut,12643
214524,24/05/2023,Central Tyre Limited,Vehicle Maint - Other Mats,Waste Management - Materials,1999
214525,24/05/2023,Chelmsford Safety Supplies,Waste Mgmt - Clothing,Protective Clothing - Clothing & Uniform,410.63
214526,24/05/2023,Dennis Eagle Limited,Vehicle Maint - Other Mats,Waste Management - Materials,887.95
214527,24/05/2023,Driver Hire Chelmsford,Waste Mgmt - Agency Staff,Agency Staff (Professional),1992.45
214528,24/05/2023,Dunmow Skips Ltd,Street Clnsing - Disposal Chg,Waste Recycling - Disposal Charge,542.4
214529,24/05/2023,Good People Recycling Ltd,Grounds Mtce  - Agency Staff,Agency Staff (Professional),2353.25
214530,24/05/2023,Good People Recycling Ltd,Waste Mgmt - Agency Staff,Agency Staff (Professional),5194.94
214531,24/05/2023,H B Commercial Ltd,Vehicle Maint - Other Mats,Waste Management - Materials,336.77
214534,24/05/2023,H B Commercial Ltd,Vehicle Maint - Other Mats,Waste Management - Materials,251.9
214540,24/05/2023,Terberg Matec UK Ltd,Vehicle Maint - Other Mats,Waste Management - Materials,2589.52
214544,07/06/2023,Porterhouse Building & Fire Solutions Lt,S/W Offices - Cap Wk L&B,Capital Works - Land & Buildings,5391.12
214545,24/05/2023,Micromarketing Ltd,Housing Servs Tenant Participation,Public Relations - Tenant Participation,776.93
214547,24/05/2023,New Era Fuels Ltd,Waste Mgmt - Diesel,Vehicle Fuel - Diesel,36526.22
214549,24/05/2023,Shaw & Sons Ltd,Elections - Stationery,Stationery,1949
214550,24/05/2023,Calders Conferences Ltd,Homelessness - Emergency Response Supplies,Covid 19 - Emergency Response Supplies,22233.34
214551,24/05/2023,Calders Conferences Ltd,Homelessness - Emergency Response Supplies,Covid 19 - Emergency Response Supplies,4748.34
214552,24/05/2023,Calders Conferences Ltd,Homelessness - Emergency Response Supplies,Covid 19 - Emergency Response Supplies,6450
214554,24/05/2023,Greenacre Recruitment,Asst Directors - Interview Exp,Consultants - Interview Support,11164.8
214555,24/05/2023,Birketts LLP,Legal Services - Fees,Legal Services - Fees,2727
214557,24/05/2023,Birketts LLP,Legal Services - Legal Fees,Legal Services - Legal Fees,939
214558,24/05/2023,Royal Mail Group Ltd,Elections - Postage,Postage,1805.7
214559,24/05/2023,Royal Mail Group Ltd,Elections - Postage,Postage,482.74
214560,24/05/2023,1Life Management Solutions Ltd,Elections - Rent,Rents,2448.3
214562,24/05/2023,Sundry BACS,Hsg Rent Refunds Movements,Housing rent refunds movement ,1064.34
214563,24/05/2023,Sundry BACS,Hsg Rent Refunds Movements,Housing rent refunds movement ,353.84
214564,24/05/2023,Vivid Resourcing Ltd,Env Protection - Consultants,Consultants - General,1138
214565,24/05/2023,Vivid Resourcing Ltd,Env Protection - Consultants,Consultants - General,637.28
214566,24/05/2023,The Oyster Partnership Ltd,Dev't Control - Agency Staff,Agency Staff (Professional),1526.1
214567,24/05/2023,Carrington West Ltd,Dev't Control - Agency Staff,Agency Staff (Professional),1887
214568,24/05/2023,Macdonald & Company,Dev't Control - Agency Staff,Agency Staff (Professional),1493.5
214569,24/05/2023,Vivid Resourcing Ltd,Dev't Control - Agency Staff,Agency Staff (Professional),1230
214570,24/05/2023,Carrington West Ltd,Dev't Control - Agency Staff,Agency Staff (Professional),1836
214571,24/05/2023,Vivid Resourcing Ltd,Dev't Control - Agency Staff,Agency Staff (Professional),1595
214572,24/05/2023,Calders Conferences Ltd,Homelessness - Emergency Response Supplies,Covid 19 - Emergency Response Supplies,7662.5
214575,24/05/2023,Kelly Rowland,Health Imp - Seminars,Room Hire - Seminars & Meetings,1000
214579,24/05/2023,Berden Parish Council,Community Grt - Cap Grt P&E,Grant ,900
214583,24/05/2023,Sewards End Village Hall Trust,Elections - Rent,Rents,380
214584,24/05/2023,Great Canfield Parish Council,Elections - Rent,Rents,250
214585,24/05/2023,Great Hallingbury Village Hall Committee,Elections - Rent,Rents,250
214586,24/05/2023,Hatfield Broad Oak VH - DUP2115,Elections - Rent,Rents,300
214588,24/05/2023,Little Hallingbury Village Hall,Elections - Rent,Rents,300
214592,24/05/2023,St Margaret Church,Elections - Rent,Rents,250
214593,24/05/2023,Debden Memorial Hall,Elections - Rent,Rents,265
214596,24/05/2023,Elsenham Community Association,Elections - Rent,Rents,550
214599,24/05/2023,Felsted Memorial Hall,Elections - Rent,Rents,500
214601,24/05/2023,Flitch Green Community Hall,Elections - Rent,Rents,350
214603,24/05/2023,Great Dunmow Town Council,Elections - Rent,Rents,264
214606,24/05/2023,New Street United Reformed Church,Elections - Rent,Rents,445
214607,24/05/2023,E.T Foakes Memor.Hall Char.Tru,Elections - Rent,Rents,350
214613,24/05/2023,Leaden Roding Village Hall Trust,Elections - Rent,Rents,250
214616,24/05/2023,Duddenhoe End Village Hall,Elections - Rent,Rents,250
214621,24/05/2023,Little Chesterford Village Hall,Elections - Rent,Rents,300
214623,24/05/2023,Newport Village Hall,Elections - Rent,Rents,250
214625,24/05/2023,Widdington Village Hall,Elections - Rent,Rents,352.25
214626,24/05/2023,Saffron Walden Town Council,Elections - Rent,Rents,390
214627,24/05/2023,Saffron Walden Community Church,Elections - Rent,Rents,420
214630,24/05/2023,Stansted Parochial Church Council,Elections - Rent,Rents,330
214632,24/05/2023,St Mary's Church Hall,Elections - Rent,Rents,400
214636,24/05/2023,Manuden Community & Sports Centre,Elections - Rent,Rents,300
214640,24/05/2023,Priors Green Community Hall,Elections - Rent,Rents,300
214642,24/05/2023,Three Horseshoes,Elections - Rent,Rents,300
214643,24/05/2023,Gt Easton & Tilty Parish Council,Elections - Rent,Rents,250
214646,24/05/2023,Bolford Street Hall,Elections - Rent,Rents,650
214648,24/05/2023,Hempstead Village Hall Management Comm,Elections - Rent,Rents,288
214649,24/05/2023,Little Bardfield Cricket Club,Elections - Rent,Rents,300
214651,24/05/2023,AEBI Schmidt UK Limited,Vehicle Maint - Other Mats,Waste Management - Materials,784.51
214652,24/05/2023,Dennis Eagle Limited,Vehicle Maint - Other Mats,Waste Management - Materials,280.75
214654,24/05/2023,Dunmow Skips Ltd,Street Clnsing - Disposal Chg,Waste Recycling - Disposal Charge,659.2
214656,24/05/2023,Saffron Vantage Ltd,Waste Mgmt - Agency Staff,Agency Staff (Professional),3485.64
214657,24/05/2023,Terberg Matec UK Ltd,Vehicle Maint - Other Mats,Waste Management - Materials,571.3
214659,31/05/2023,Frontmedia Studio Ltd,Plan Policy - Consultants,Consultants - General,3780
214660,24/05/2023,Saffron Vantage Ltd,Street Clnsing - Agency Staff,Agency Staff (Professional),575.92
214661,24/05/2023,Dentons UK and Middle East LLP,Plan Policy - Consultants,Consultants - General,2322.5
214662,24/05/2023,The Oyster Partnership Ltd,Plan Policy - Consultants,Consultants - General,2720
214664,24/05/2023,Essex County Council,Dev't Control - Consultants,Consultants - General,2330
214665,07/06/2023,Essex County Council,Trade Waste - Disposal Chg,Waste Disposal - Disposal Charge,109481.37
214667,24/05/2023,Civica UK Limited,Info Tech - Support Costs,ICT Maintenance/Support - Support Costs,67007.81
214669,24/05/2023,Rundle & Co Ltd,Revenues Admin - Consultants,HMRC VAT,216
214672,24/05/2023,WFL (UK) Ltd,Vehicle Maint - Other Mats,Waste Management - Materials,325.95
214673,24/05/2023,WFL (UK) Ltd,Vehicle Maint - Other Mats,Waste Management - Materials,2650
214675,24/05/2023,Sellick Partnership Ltd,Legal Services - Agency Staff,Industrial Operatives - Agency Staff,1311.2
214676,24/05/2023,Sellick Partnership Ltd,Legal Services - Agency Staff,Industrial Operatives - Agency Staff,1776
214677,24/05/2023,Sellick Partnership Ltd,Legal Services - Agency Staff,Industrial Operatives - Agency Staff,928.57
214678,24/05/2023,Opus People Solution Ltd,Housing Servs - Agency Staff,Agency Staff (Professional),8925
214679,24/05/2023,Opus People Solution Ltd,Housing Servs - Agency Staff,Agency Staff (Professional),2550
214680,24/05/2023,Sellick Partnership Ltd,Legal Services - Agency Staff,Industrial Operatives - Agency Staff,1218.18
214681,24/05/2023,Sellick Partnership Ltd,Legal Services - Agency Staff,Industrial Operatives - Agency Staff,1440
214682,24/05/2023,Sellick Partnership Ltd,Legal Services - Agency Staff,Industrial Operatives - Agency Staff,1440
214684,24/05/2023,Newsquest Media Group Ltd,Dev't Control - Advertising,Advertising,1180.4
214691,24/05/2023,Total Gas & Power Limited,Thaxted CIC - Gas,Corporate Asset utilities ,40072.38
214692,24/05/2023,Npower Limited,Common Servs - Electricity,Credit Note,-4011.14
214693,24/05/2023,Npower Limited,Common Servs - Electricity,Corporate Asset utilities ,4953.23
214694,24/05/2023,Tullett Prebon Group Ltd,Treasury Man - Fees,Financial Services - Borrowing Fees,912.33
214696,31/05/2023,Essex County Council,Dev't Control - Consultants,Consultants - General,19498
214697,31/05/2023,Sarto Thomas Ltd,Dev't Control - Agency Staff,Agency Staff (Professional),2793.75
214698,31/05/2023,4Imprint Direct Ltd,Elections - Stationery,Stationery,293.79
214699,31/05/2023,Perrin Myddelton Limited,Property Servs - Fees,Legal Services - Fees,332
214700,31/05/2023,NEC Software Solutions UK Ltd,Info Tech - Support Costs,ICT Maintenance/Support - Support Costs,2268.5
214701,07/06/2023,MSG Contracts Limited,Canfield Offices - Cleaning,Cleaning Service - Contract Cleaning,617.5
214702,31/05/2023,Canon (UK) Limited,Print Room - Photocopier,Reprographics - Photocopier,360
214703,31/05/2023,One51 ES Plastics UK t/a MGB Plastics,Containers - Cap Pur P&E,Capital Purchases - Plant & Equipment,7992
214704,31/05/2023,IDOX Software Limited,Planning Admin - Seminars,Conferences - Seminars & Meetings,1100
214709,31/05/2023,IDOX Software Limited,Licensing - Lalpac to Idox Uni - Cap Pur IT,ICT Software - Cap Pur IT,7250
214713,31/05/2023,Malthouse Security Ltd,Sheltered Hsg - Equipment,Health Care Equipment,1037.26
214714,31/05/2023,Essex County Council,Garden Communities Delivery - Consultants,Consultants - General,20319
214715,31/05/2023,Thurrock Council,Env Protection - Consultants,Consultants - General,2516.81
214716,31/05/2023,Park Avenue Recruitment Ltd,Plan Policy - Consultants,Consultants - General,2035
214717,31/05/2023,Park Avenue Recruitment Ltd,Plan Policy - Consultants,Consultants - General,2035
214718,31/05/2023,Canon (UK) Limited,Info Tech - Support Costs,ICT Maintenance/Support - Support Costs,413.62
214719,31/05/2023,Sellick Partnership Ltd,Legal Services - Agency Staff,Industrial Operatives - Agency Staff,1968.39
214720,31/05/2023,Sellick Partnership Ltd,Legal Services - Agency Staff,Industrial Operatives - Agency Staff,1632
214721,31/05/2023,Meaco Measurement & Control Ltd,Museum S/W - Other Mats,Museum & Arts - Materials & Equipment,928
214728,31/05/2023,Print Image Network Limited,Elections - Printing,Printing,6051
214730,31/05/2023,Royal Mail Group Ltd,Elections - Postage,Postage,277.68
214738,31/05/2023,Sundry BACS,Hsg Rent Refunds Movements,Housing rent refunds movement ,648.36
214739,31/05/2023,Sundry BACS,Hsg Rent Refunds Movements,Housing rent refunds movement ,263.96
214740,31/05/2023,Gipping Construction Limited,Walden Pl Shelt - Cap Wk L&B,Capital Works - Land & Buildings,76696.05
214742,31/05/2023,Driver Hire Chelmsford,Waste Mgmt - Agency Staff,Agency Staff (Professional),1992.45
214743,31/05/2023,Motex Automotive,Vehicle Maint - Other Mats,Waste Management - Materials,1372
214745,31/05/2023,WasteParts UK Ltd,Vehicle Maint - Other Mats,Waste Management - Materials,255.83
214746,31/05/2023,Essex Fire Authority,Info Tech - Subscriptions,Subscriptions,4278
214753,31/05/2023,Motex Automotive,Vehicle Maint - Other Mats,Credit Note,-400
214755,31/05/2023,1Life Management Solutions Ltd,Leisure & Adm - Seminars,Room Hire - Seminars & Meetings,1778.33
214756,31/05/2023,Sundry BACS,Waste Mgmt - Other Mats,Waste Management - Materials,260.2
214757,31/05/2023,Vivid Resourcing Ltd,Env Protection - Consultants,Consultants - General,682.8
214761,31/05/2023,NEC Software Solutions UK Ltd,Benefits Admin - Software,ICT Software,11596.02
214762,31/05/2023,Dixon Searle Partnership Ltd,Plan Policy - Consultants,Consultants - General,2893
214763,31/05/2023,The Oyster Partnership Ltd,Dev't Control - Agency Staff,Agency Staff (Professional),1882.19
214764,31/05/2023,Macdonald & Company,Dev't Control - Agency Staff,Agency Staff (Professional),2218.5
214765,31/05/2023,Vivid Resourcing Ltd,Dev't Control - Agency Staff,Agency Staff (Professional),1517
214766,31/05/2023,Vivid Resourcing Ltd,Dev't Control - Agency Staff,Agency Staff (Professional),1209.5
214767,31/05/2023,Vivid Resourcing Ltd,Plan Policy - Consultants,Consultants - General,1860
214768,31/05/2023,The Oyster Partnership Ltd,Plan Policy - Consultants,Consultants - General,2720
214771,31/05/2023,Vivid Resourcing Ltd,Dev't Control - Agency Staff,Agency Staff (Professional),2035
214773,31/05/2023,Treecology,Grounds Mtce  - External Contracts,Tree Trimming - Grounds Maint,910
214777,31/05/2023,Buckingham Futures Ltd,Commercial Team - Agency Staff,Agency Staff (Professional),1282.5
214778,31/05/2023,Buckingham Futures Ltd,Commercial Team - Agency Staff,Agency Staff (Professional),3360
214779,31/05/2023,Carrington West Ltd,Dev't Control - Agency Staff,Agency Staff (Professional),1887
214780,31/05/2023,Wardell Armstrong LLP,Walden Pl Shelt - Cap Wk L&B,Consultancy (Prop Works)- Cap Wk L&B,1060
214781,31/05/2023,Duncan Cameron & Hutchinson Ltd,Thaxted Road - Cap Wk L&B,Sheltered Housing (Cap L&B),202998.22
214783,31/05/2023,Buckingham Futures Ltd,Commercial Team - Agency Staff,Agency Staff (Professional),896
214784,31/05/2023,Buckingham Futures Ltd,Commercial Team - Agency Staff,Agency Staff (Professional),1680
214785,31/05/2023,Buckingham Futures Ltd,Commercial Team - Agency Staff,Agency Staff (Professional),1680
214787,31/05/2023,1Life Management Solutions Ltd,Leisure & Adm - Seminars,Room Hire - Seminars & Meetings,652.14
214788,31/05/2023,Buckingham Futures Ltd,Commercial Team - Agency Staff,Agency Staff (Professional),427.5
214789,31/05/2023,Buckingham Futures Ltd,Commercial Team - Agency Staff,Agency Staff (Professional),1662.5
214790,31/05/2023,Buckingham Futures Ltd,Commercial Team - Agency Staff,Agency Staff (Professional),448
214791,31/05/2023,Buckingham Futures Ltd,Commercial Team - Agency Staff,Agency Staff (Professional),475
214792,31/05/2023,Duncan Cameron & Hutchinson Ltd,Property Servs Business Plan,Housing Dev - Business Plan,356.8
214793,07/06/2023,Solace Group,Chief Exec - Seminars,Conferences - Seminars & Meetings,600
214794,07/06/2023,WP Plumbing and Heating,S/W Offices - Cap Wk L&B,Capital Works - Land & Buildings,937
214795,07/06/2023,WP Plumbing and Heating,S/W Offices - Cap Wk L&B,Capital Works - Land & Buildings,254
214799,07/06/2023,Haydens Heating Services Ltd,S/W Offices - Cap Wk L&B,Capital Works - Land & Buildings,900
214800,07/06/2023,Cornerstone Barristers,Legal Services - Fees,Legal Services - Fees,1750
214801,07/06/2023,Newsquest Media Group Ltd,Dev't Control - Advertising,Advertising,995
214802,07/06/2023,Bytes Software Services,Info Tech - Support Costs,ICT Maintenance/Support - Support Costs,553.75
214803,07/06/2023,Calders Conferences Ltd,Homelessness - Emergency Response Supplies,Covid 19 - Emergency Response Supplies,13250
214804,07/06/2023,Calders Conferences Ltd,Homelessness - Emergency Response Supplies,Covid 19 - Emergency Response Supplies,15866.67
214805,07/06/2023,Essex County Council,Legal Services - Legal Fees,Legal Services - Legal Fees,400
214807,07/06/2023,Hadstock Parish Council,Community Grt - Cap Grt P&E,Grant ,900
214808,07/06/2023,Little Dunmow Parish Council,Community Grt - Cap Grt P&E,Grant ,600
214809,07/06/2023,Little Hallingbury Village Hall,Community Grt - Cap Grt P&E,Grant ,500
214810,07/06/2023,Saffron Walden Town Council,Community Grt - Cap Grt P&E,Grant ,900
214811,07/06/2023,Sewards End Parish Council,Community Grt - Cap Grt P&E,Grant ,700
214812,07/06/2023,Reeve Photography,Democratic Rep - Advertising,Advertising,615
214813,07/06/2023,Mr Colin Banks,Street Signs    - Contractors,Works Consultancy - Contractors,480
214814,07/06/2023,Henry Riley,New Depot Associated Capital Costs,Consultancy - Associated Capital Costs,2500
214815,07/06/2023,Sarto Thomas Ltd,Dev't Control - Agency Staff,Agency Staff (Professional),2775
214816,07/06/2023,Phil Jones Associates Ltd,Climate Change - Consultants,Consultants - General,1227.5
214819,07/06/2023,Chelmsford Safety Supplies,Waste Mgmt - Clothing,Protective Clothing - Clothing & Uniform,603.93
214821,07/06/2023,Dennis Eagle Limited,Vehicle Maint - Other Mats,Waste Management - Materials,1340.78
214822,07/06/2023,Good People Recycling Ltd,Grounds Mtce  - Agency Staff,Agency Staff (Professional),1961
214823,14/06/2023,Good People Recycling Ltd,Waste Mgmt - Agency Staff,Agency Staff (Professional),4269.76
214827,07/06/2023,H B Commercial Ltd,Vehicle Maint - Other Mats,Waste Management - Materials,402.77
214830,07/06/2023,H B Commercial Ltd,Vehicle Maint - Other Mats,Waste Management - Materials,329.59
214834,07/06/2023,Aythorpe Roding Village Hall,Community Grt - Cap Grt P&E,Grant ,900
214835,07/06/2023,Broxted & District Community Association,Community Grt - Cap Grt P&E,Grant ,300
214836,07/06/2023,Manuden Parish Council,Community Grt - Cap Grt P&E,Grant ,900
214837,07/06/2023,Sustainable Stansted,Climate Change - Fees,Fees,2000
214838,07/06/2023,Arthur J Gallagher Insurance Brokers Ltd,Commercial Asset Mgt - Fees,Legal Services - Fees,102752.89
214841,07/06/2023,Keep IT Simple Stationery Ltd,Info Tech - Equipment,ICT Consumables - Equipment,1057.9
214843,07/06/2023,Gartec Ltd,Canfield Offices - Contractors,Works Consultancy - Contractors,420
214846,07/06/2023,Porterhouse Building & Fire Solutions Lt,S/W Offices - Cap Wk L&B,Capital Works - Land & Buildings,7808.58
214847,07/06/2023,Porterhouse Building & Fire Solutions Lt,S/W Offices - Cap Wk L&B,Capital Works - Land & Buildings,4378.24
214848,07/06/2023,Porterhouse Building & Fire Solutions Lt,S/W Offices - Cap Wk L&B,Capital Works - Land & Buildings,21178.96
214849,07/06/2023,Porterhouse Building & Fire Solutions Lt,S/W Offices - Cap Wk L&B,Capital Works - Land & Buildings,1544.38
214850,07/06/2023,Porterhouse Building & Fire Solutions Lt,S/W Offices - Cap Wk L&B,Capital Works - Land & Buildings,1698.05
214854,07/06/2023,Muirs Vehicle Services Ltd,Vehicle Maint - Other Mats,Waste Management - Materials,267.25
214857,07/06/2023,Source 24/7 LTD,Waste Mgmt - Agency Staff,Agency Staff (Professional),930.62
214862,07/06/2023,Newline Anglia Ltd,Waste Mgmt - Clothing,Protective Clothing - Clothing & Uniform,286.5
214863,07/06/2023,Park Avenue Recruitment Ltd,Plan Policy - Consultants,Consultants - General,2035
214864,07/06/2023,Heras UK Fencing Systems,Elections - Rent,Rents,875.38
214865,07/06/2023,Greenacre Recruitment,Property Servs - Consultants,Consultants - General,1006.98
214866,07/06/2023,NEC Software Solutions UK Ltd,Revenues Admin - Consultants,Consultants - General,508.5
214867,07/06/2023,Central Tyre Limited,Vehicle Maint - Other Mats,Waste Management - Materials,3830
214868,07/06/2023,Dennis Eagle Limited,Vehicle Maint - Other Mats,Waste Management - Materials,417.68
214869,07/06/2023,Dennis Eagle Limited,Vehicle Maint - Other Mats,Waste Management - Materials,2660
214872,07/06/2023,Dennis Eagle Limited,Vehicle Maint - Other Mats,Waste Management - Materials,511.57
214874,07/06/2023,Good People Recycling Ltd,Grounds Mtce  - Agency Staff,Agency Staff (Professional),1563.5
214875,07/06/2023,Good People Recycling Ltd,Grounds Mtce  - Agency Staff,Agency Staff (Professional),1961
214876,07/06/2023,WasteParts UK Ltd,Vehicle Maint - Other Mats,Waste Management - Materials,1033.79
214877,07/06/2023,WasteParts UK Ltd,Vehicle Maint - Other Mats,Waste Management - Materials,516.49
214881,07/06/2023,Print Image Network Limited,Elections - Printing,Printing,11300
214882,07/06/2023,Terberg Matec UK Ltd,Vehicle Maint - Other Mats,Waste Management - Materials,2258.66
214886,07/06/2023,Computershare Voucher Services,Human Resource - Emp'ee Scheme,Human Resources - Emp'ee Scheme,480.08
214887,07/06/2023,Duton Hill Community Association,Community Grt - Cap Grt P&E,Grant ,3500
214888,07/06/2023,Hatfield Heath Parish Council,Plan Policy - Grants,Grant ,768
214890,07/06/2023,Terberg Matec UK Ltd,Vehicle Maint - Other Mats,Credit Note,-2246.16
214891,07/06/2023,Greenacre Recruitment,Property Servs - Consultants,Consultants - General,1129.18
214892,07/06/2023,The Oyster Partnership Ltd,Plan Policy - Consultants,Consultants - General,2040
214893,07/06/2023,Malins Associates Limited,Property Servs - Consultants,Consultants - General,3105
214895,07/06/2023,Macdonald & Company,Dev't Control - Agency Staff,Agency Staff (Professional),2204
214896,07/06/2023,Carrington West Ltd,Dev't Control - Agency Staff,Agency Staff (Professional),1887
214897,07/06/2023,Vivid Resourcing Ltd,Dev't Control - Agency Staff,Agency Staff (Professional),1517
214898,07/06/2023,Carrington West Ltd,Dev't Control - Agency Staff,Agency Staff (Professional),1887
214899,07/06/2023,Source 24/7 LTD,Waste Mgmt - Agency Staff,Agency Staff (Professional),930.62
214900,14/06/2023,Uttlesford Norse Ltd.,Voids Prog - Cap Rep L&B,Buildings Repair/Maint - Cap Rep P&E,92033.33
214901,14/06/2023,Uttlesford Norse Ltd.,Norse Partnership Estates - Fees,Partnerships - Fees,19100.25
214901,14/06/2023,Uttlesford Norse Ltd.,Norse Partnership Hsg Rep - Fees,Partnerships - Fees,166399.33
214901,14/06/2023,Uttlesford Norse Ltd.,Norse Partnership Sheltered - Fees,Partnerships - Fees,10809.33
214901,14/06/2023,Uttlesford Norse Ltd.,Norse Partnership Sewerage - Fees,Partnerships - Fees,4604.42
214902,14/06/2023,Uttlesford Norse Ltd.,Norse Partnership Hsg Rep - Fees,Partnerships - Fees,42286.45
214903,14/06/2023,Uttlesford Norse Ltd.,Norse Partnership Admin - Fees,Partnerships - Fees,30785.59
214903,14/06/2023,Uttlesford Norse Ltd.,Norse Partnership Hsg Rep - Fees,Partnerships - Fees,56034.26
214904,07/06/2023,Perrin Myddelton Limited,Property Servs - Fees,Legal Services - Fees,1417.5
214905,07/06/2023,Perrin Myddelton Limited,Property Servs - Fees,Legal Services - Fees,350
214906,07/06/2023,Perrin Myddelton Limited,Property Servs - Fees,Legal Services - Fees,420
214908,07/06/2023,Perrin Myddelton Limited,Property Servs - Fees,Legal Services - Fees,1882.5
214911,07/06/2023,Perrin Myddelton Limited,Property Servs - Fees,Legal Services - Fees,297.5
214913,07/06/2023,Vivid Resourcing Ltd,Dev't Control - Agency Staff,Agency Staff (Professional),2035
214914,07/06/2023,Positive Waste Solutions Ltd,Street Clnsing - Other Mats,Waste Management - Materials,1067.5
214916,07/06/2023,Nickolds HMO Management & Maintenance,Homelessness - Accommodation,Homelessness - Accommodation,595
214917,07/06/2023,Nickolds HMO Management & Maintenance,Homelessness - Accommodation,Homelessness - Accommodation,315
214918,07/06/2023,Nickolds HMO Management & Maintenance,Homelessness - Accommodation,Homelessness - Accommodation,595
214919,07/06/2023,Calders Conferences Ltd,Homelessness - Emergency Response Supplies,Covid 19 - Emergency Response Supplies,306.67
214921,07/06/2023,Calders Conferences Ltd,Homelessness - Emergency Response Supplies,Covid 19 - Emergency Response Supplies,10100
214923,07/06/2023,Calders Conferences Ltd,Homelessness - Emergency Response Supplies,Covid 19 - Emergency Response Supplies,9658.33
214924,07/06/2023,Pedal Power People Ltd T/A Smoothie Bike,Health Imp - Seminars,Room Hire - Seminars & Meetings,895
214925,07/06/2023,POS Enterprises Ltd,Plan Policy - Prof Subs,Professional Subscriptions,1450
214927,07/06/2023,Duncan Cameron & Hutchinson Ltd,The Moors - Cap Wk L&B,Consultancy (Prop Works)- Cap Wk L&B,33983.13
214929,07/06/2023,The Monarch Partnership,Climate Change - Consultants,Consultants - General,360
214930,07/06/2023,Keep IT Simple Stationery Ltd,Info Tech - Support Costs,ICT Maintenance/Support - Support Costs,1228
214931,07/06/2023,Birketts LLP,Dev't Control - Legal Fees,Legal Services - Legal Fees,644.4
214932,07/06/2023,Government Knowledge Events Ltd,Performance - Seminars,Seminars,290
214933,07/06/2023,Opus People Solution Ltd,Housing Servs - Agency Staff,Agency Staff (Professional),4250
214934,07/06/2023,Gracelands CMS Ltd,Dis Facil Grt - Cap Grt L&B,Grants - S106 Cap Grt L&B,308.57
214935,07/06/2023,Greenacre Recruitment,Property Servs - Consultants,Consultants - General,1027
214936,14/06/2023,Uttlesford Norse Ltd.,Norse Partnership Asset Mgt - Fees,Partnerships - Fees,15560.42
214936,14/06/2023,Uttlesford Norse Ltd.,Norse Partnership Cleaning - Fees,Partnerships - Fees,20841.33
214937,07/06/2023,Street Cars Transportation,Other LA's Movemt in year,Emerg Accommodation - Ukrainian Refugees,502
214938,07/06/2023,Newsquest Media Group Ltd,Economic Development - Advertising,Advertising,359.2
214939,07/06/2023,Mattinson Partnership Ltd,Air/Noise Pol - Fees,Environmental Services - Fees,9896
214940,07/06/2023,Positive Waste Solutions Ltd,Street Clnsing - Other Mats,Waste Management - Materials,1170
214941,07/06/2023,The Enterprise East Group CIC,Health Imp - Seminars,Room Hire - Seminars & Meetings,300
214942,07/06/2023,Abrey & Son Ltd,Grounds Mtce - Equipment,Tools/Equipment (Purchase) - Equipment,457
214943,07/06/2023,Abrey & Son Ltd,Grounds Mtce - Equipment,Tools/Equipment (Purchase) - Equipment,362.85
214947,07/06/2023,React Disaster Response Ltd,Homelessness - Emergency Response Supplies,Covid 19 - Emergency Response Supplies,3600
214948,07/06/2023,The Oyster Partnership Ltd,Dev't Control - Agency Staff,Agency Staff (Professional),337.12
214950,07/06/2023,Street Cars Transportation,Other LA's Movemt in year,Covid 19 - Emergency Response Supplies,736.4
214950,07/06/2023,Street Cars Transportation,Homelessness - Emergency Response Supplies,Covid 19 - Emergency Response Supplies,7241.9
214951,07/06/2023,Kelly Rowland,Health Imp - Seminars,Room Hire - Seminars & Meetings,800
214952,07/06/2023,Patricia Ackron,Health Imp - Seminars,Room Hire - Seminars & Meetings,280
214955,07/06/2023,Newsquest Media Group Ltd,Dev't Control - Advertising,Advertising,871.4
214956,14/06/2023,Npower Limited,Rates & Prop - Electricity,Credit Note,-11970.47
214960,14/06/2023,Npower Limited,Thaxted CIC - Electricity,Corporate Asset utilities ,30346.86
214964,14/06/2023,Rossi Long Consulting Ltd,Unidentified New Build Sites - Cap Wk L&B,Capital - L & B,1380
214965,14/06/2023,Porterhouse Building & Fire Solutions Lt,S/W Offices - Cap Wk L&B,Capital Works - Land & Buildings,10200.49
214966,14/06/2023,Porterhouse Building & Fire Solutions Lt,S/W Offices - Cap Wk L&B,Capital Works - Land & Buildings,9570.22
214968,14/06/2023,Provide Care Solutions,Sheltered Hsg - Oth Loc Auth,Social&Community Care Misc - Oth Loc Aut,5558.42
214969,14/06/2023,Porterhouse Building & Fire Solutions Lt,S/W Offices - Cap Wk L&B,Capital Works - Land & Buildings,4161.6
214970,14/06/2023,International Parking Systems (UK) Ltd,CP Overheads - Equip Rental,Office & Reprographics -Equipment Rental,332.5
214971,14/06/2023,International Parking Systems (UK) Ltd,CP Overheads - Bank Charges,Bank Charges,4842.24
214972,14/06/2023,Cornerstone Barristers,Democratic Rep - Prof Training,Training,1250
214973,14/06/2023,Cornerstone Barristers,Democratic Rep - Prof Training,Training,500
214975,14/06/2023,Essex County Council,Land Charges - Fees,Legal Services - Fees,280
214976,14/06/2023,Harrison Cantel,Economic Development - Consultants,Consultants - General,1000
214977,14/06/2023,Detheo Photography,Economic Development - Advertising,Advertising,584.5
214978,14/06/2023,Porterhouse Building & Fire Solutions Lt,S/W Offices - Cap Wk L&B,Capital Works - Land & Buildings,3445
214979,14/06/2023,Canon (UK) Limited,Info Tech - Support Costs,ICT Maintenance/Support - Support Costs,413.62
214982,14/06/2023,The Housing Ombudsman,Housing Servs - Subscriptions,Subscriptions,16128.75
214983,14/06/2023,Regency Guarding & Events Ltd,Sheltered Hsg - Ad Hoc Repair,General Materials - Ad hoc Repair,1512
214984,14/06/2023,High Roding Parish Council,Community Grt - Cap Grt P&E,Grant ,650
214985,21/06/2023,Sundry BACS,Hsg Rent Refunds Movements,Hsg Rent Refunds Movements,1180.78
214986,21/06/2023,Sundry BACS,Hsg Rent Refunds Movements,Hsg Rent Refunds Movements,784.36
214987,21/06/2023,Sundry BACS,Hsg Rent Refunds Movements,Hsg Rent Refunds Movements,350.29
214988,14/06/2023,N&P Crayford MRF Ltd,Waste Mgmt - Mat Rec Fac,Waste Recycling - Materials Recycling,61523.26
214989,14/06/2023,LDA Design Consulting Ltd,Plan Policy - Consultants,Consultants - General,19475
214990,14/06/2023,Berendsen UK Ltd,Vehicle Maint - Other Mats,Waste Management - Materials,476.96
214991,14/06/2023,Chelmsford Safety Supplies,Waste Mgmt - Clothing,Protective Clothing - Clothing & Uniform,410.72
214993,14/06/2023,Dennis Eagle Limited,Vehicle Maint - Other Mats,Waste Management - Materials,315.53
214994,14/06/2023,Dennis Eagle Limited,Vehicle Maint - Other Mats,Waste Management - Materials,1786.11
214995,14/06/2023,Driver Hire Chelmsford,Waste Mgmt - Agency Staff,Agency Staff (Professional),1826.41
214996,14/06/2023,Driver Hire Chelmsford,Waste Mgmt - Agency Staff,Agency Staff (Professional),1724.66
214997,14/06/2023,Dunmow Skips Ltd,Street Clnsing - Disposal Chg,Waste Recycling - Disposal Charge,864
214998,14/06/2023,Dunmow Skips Ltd,Street Clnsing - Disposal Chg,Waste Recycling - Disposal Charge,437.47
214999,14/06/2023,Dunmow Skips Ltd,Street Clnsing - Disposal Chg,Waste Recycling - Disposal Charge,551.2
215000,14/06/2023,Dunmow Skips Ltd,Street Clnsing - Disposal Chg,Waste Recycling - Disposal Charge,849.6
215001,14/06/2023,Good People Recycling Ltd,Waste Mgmt - Agency Staff,Agency Staff (Professional),4103.82
215003,14/06/2023,H B Commercial Ltd,Vehicle Maint - Other Mats,Waste Management - Materials,430.87
215005,14/06/2023,Lindstrom Ltd,Vehicle Maint - Other Mats,Waste Management - Materials,469
215008,14/06/2023,Saffron Vantage Ltd,Waste Mgmt - Agency Staff,Agency Staff (Professional),4580.65
215009,14/06/2023,Saffron Vantage Ltd,Waste Mgmt - Agency Staff,Agency Staff (Professional),3186.96
215010,14/06/2023,Saffron Vantage Ltd,Waste Mgmt - Agency Staff,Agency Staff (Professional),3926.25
215011,14/06/2023,WasteParts UK Ltd,Vehicle Maint - Other Mats,Waste Management - Materials,427.45
215014,14/06/2023,WTL Truck Centres,Vehicle Maint - Other Mats,Vehicle Parts - Other Materials,270.14
215015,14/06/2023,SGS (formally Concept Life Sciences),Border Inspect - Oth Prof Fees,Forensic & Lab Testing - Oth Prof Fees,3319.61
215016,14/06/2023,J D Robertson & Co Limited,Waste Mgmt - Contract Hire,Vehicle Hire,1008.48
215017,14/06/2023,Saffron Vantage Ltd,Grounds Mtce  - Agency Staff,Agency Staff (Professional),542.8
215018,14/06/2023,Saffron Vantage Ltd,Street Clnsing - Agency Staff,Agency Staff (Professional),791.2
215019,14/06/2023,Ryal Media Group Ltd,Waste Mgmt - Advertising,Advertising,320
215021,14/06/2023,J D Robertson & Co Limited,Waste Mgmt - Contract Hire,Vehicle Hire,934.65
215023,14/06/2023,Elliot Baxter & Co Ltd T/A EBB OFFICE,Print Room - Stationery,Stationery,946
215027,14/06/2023,Thaxted United Reformed Church,Health Imp - Seminars,Room Hire - Seminars & Meetings,425
215031,14/06/2023,Vivid Resourcing Ltd,Env Protection - Consultants,Consultants - General,546.24
215035,14/06/2023,Radisson Blu Hotel. London Stansted Airp,Homelessness - Emergency Response Supplies,Covid 19 - Emergency Response Supplies,3150
215036,14/06/2023,Radisson Blu Hotel. London Stansted Airp,Homelessness - Emergency Response Supplies,Covid 19 - Emergency Response Supplies,24566.67
215037,14/06/2023,Capsticks Solicitors LLP,Property Servs - Fees,Housing (Misc) - Fees,350
215038,14/06/2023,Capsticks Solicitors LLP,Property Servs - Fees,Housing (Misc) - Fees,350
215039,14/06/2023,Capsticks Solicitors LLP,Property Servs - Fees,Housing (Misc) - Fees,350
215040,14/06/2023,WTL Truck Centres,Vehicle Maint - Other Mats,Vehicle Parts - Other Materials,288.87
215041,14/06/2023,Park Avenue Recruitment Ltd,Plan Policy - Consultants,Consultants - General,1842.5
215042,14/06/2023,Sellick Partnership Ltd,Legal Services - Agency Staff,Industrial Operatives - Agency Staff,1925.25
215043,14/06/2023,Porterhouse Building & Fire Solutions Lt,S/W Offices - Cap Wk L&B,Capital Works - Land & Buildings,4891.2
215044,14/06/2023,Porterhouse Building & Fire Solutions Lt,S/W Offices - Cap Wk L&B,Capital Works - Land & Buildings,629.7
215045,14/06/2023,Porterhouse Building & Fire Solutions Lt,S/W Offices - Cap Wk L&B,Capital Works - Land & Buildings,1765.85
215046,14/06/2023,ActionBrook Services Ltd,Canfield Offices - Contractors,Works Consultancy - Contractors,710.7
215047,14/06/2023,ActionBrook Services Ltd,Canfield Offices - Contractors,Works Consultancy - Contractors,1823.1
215048,14/06/2023,Sellick Partnership Ltd,Legal Services - Agency Staff,Industrial Operatives - Agency Staff,2924.8
215049,14/06/2023,Sellick Partnership Ltd,Legal Services - Agency Staff,Industrial Operatives - Agency Staff,1616.5
215050,14/06/2023,Central Tyre Limited,Vehicle Maint - Other Mats,Waste Management - Materials,3115
215051,14/06/2023,Driver Hire Chelmsford,Waste Mgmt - Agency Staff,Agency Staff (Professional),1992.48
215053,14/06/2023,Muirs Vehicle Services Ltd,Vehicle Maint - Other Mats,Waste Management - Materials,431.2
215054,14/06/2023,Muirs Vehicle Services Ltd,Vehicle Maint - Other Mats,Waste Management - Materials,309.5
215056,14/06/2023,Safetykleen UK Ltd,Vehicle Maint - Other Mats,Waste Management - Materials,521.17
215057,14/06/2023,WasteParts UK Ltd,Vehicle Maint - Other Mats,Waste Management - Materials,893.78
215059,14/06/2023,Sellick Partnership Ltd,Legal Services - Agency Staff,Industrial Operatives - Agency Staff,1590
215060,14/06/2023,Net-Com (92) Limited,Info Tech - Equipment,ICT Consumables - Equipment,305
215061,14/06/2023,Birketts LLP,Legal Services - Legal Fees,Legal Services - Legal Fees,1820
215063,14/06/2023,Muirs Vehicle Services Ltd,Waste Mgmt - Other Mats,Credit Note,-431.2
215065,14/06/2023,WP Plumbing and Heating,S/W Offices - Cap Wk L&B,Capital Works - Land & Buildings,255
215066,14/06/2023,MSG Contracts Limited,Canfield Offices - Cleaning,Cleaning Service - Contract Cleaning,578.5
215068,14/06/2023,Cartridge Save Ltd,Border Inspect - Equipment,Tools/Equipment (Purchase) - Equipment,433.47
215069,14/06/2023,Essex County Council,Housing Servs - Subscriptions,Subscriptions,1000
215071,14/06/2023,Street Cars Transportation,Homelessness - Emergency Response Supplies,Covid 19 - Emergency Response Supplies,21395.5
215072,14/06/2023,JFL Services,Property Servs - Other Agency,Agency&Temp Staff (Prof) -Other Agencies,255
215073,14/06/2023,Kingfisher Club / Sampford Society,Community Grt - Cap Grt P&E,Grant,1014.27
215074,14/06/2023,The Oyster Partnership Ltd,Dev't Control - Agency Staff,Agency Staff (Professional),1882.19
215075,14/06/2023,The Oyster Partnership Ltd,Dev't Control - Agency Staff,Agency Staff (Professional),1526.1
215076,14/06/2023,Carrington West Ltd,Dev't Control - Agency Staff,Agency Staff (Professional),1887
215077,14/06/2023,Macdonald & Company,Dev't Control - Agency Staff,Agency Staff (Professional),1856
215078,14/06/2023,Vivid Resourcing Ltd,Dev't Control - Agency Staff,Agency Staff (Professional),1230
215079,21/06/2023,Carrington West Ltd,Dev't Control - Agency Staff,Agency Staff (Professional),1836
215082,14/06/2023,Vivid Resourcing Ltd,Dev't Control - Agency Staff,Agency Staff (Professional),1636.25
215083,14/06/2023,Ex-Job Limited,Licensing - Other Mats,Signage - Other Materials,3236.17
215086,14/06/2023,Little Easton Parish Council,Community Grt - Cap Grt P&E,Grant,567
215087,14/06/2023,Thomson Reuters (Professional) UK Ltd,Legal Services - Legal Fees,Legal Services - Legal Fees,10149
215088,14/06/2023,The Oyster Partnership Ltd,Plan Policy - Consultants,Consultants - General,2720
215090,21/06/2023,Sundry BACS,Hsg Rent Refunds Movements,Housing rent refunds movement ,610.99
215093,14/06/2023,Essex County Council,Land Charges - Fees,Land Search Fees,462
215094,14/06/2023,Essex County Council,Land Charges - Fees,Land Search Fees,4118.1
215095,14/06/2023,4Imprint Direct Ltd,Comm Safety - Stationery,Stationery,554.97
215096,14/06/2023,Essex County Council,Land Charges - Fees,Land Search Fees,1182.24
215097,14/06/2023,Porterhouse Building & Fire Solutions Lt,S/W Offices - Cap Wk L&B,Capital Works - Land & Buildings,3410
215098,14/06/2023,Porterhouse Building & Fire Solutions Lt,S/W Offices - Cap Wk L&B,Capital Works - Land & Buildings,1800.44
215099,14/06/2023,Imperial Treasury Services Ltd,Treasury Man - Fees,Financial Services - Borrowing Fees,1010.96
215101,14/06/2023,AdEPT Telecom PLC T/A Centrix Ltd,Info Tech - Support Costs,ICT Maintenance/Support - Support Costs,3668.06
215102,14/06/2023,AdEPT Telecom PLC T/A Centrix Ltd,Info Tech - Support Costs,ICT Maintenance/Support - Support Costs,349.57
215103,14/06/2023,Greenacre Recruitment,Property Servs - Consultants,Consultants - General,895.44
215106,14/06/2023,Good People Recycling Ltd,Grounds Mtce  - Agency Staff,Agency Staff (Professional),1961
215107,14/06/2023,Good People Recycling Ltd,Waste Mgmt - Agency Staff,Agency Staff (Professional),5368.25
215108,21/06/2023,Saffron Vantage Ltd,Waste Mgmt - Agency Staff,Agency Staff (Professional),4284.7
215115,14/06/2023,Saffron Vantage Ltd,Grounds Mtce  - Agency Staff,Agency Staff (Professional),542.8
215116,14/06/2023,Saffron Vantage Ltd,Street Clnsing - Agency Staff,Agency Staff (Professional),542.8
215122,14/06/2023,We Care 4 Air Ltd,Air/Noise Pol - Equip Maint,Monitoring (Environmental) - Equip Maint,9392.5
215123,21/06/2023,Sundry BACS,Air/Noise Pol - Consultants,Consultants,1350
215127,21/06/2023,Abrey & Son Ltd,Grounds Mtce - Equipment,Tools/Equipment (Purchase) - Equipment,1100
215129,14/06/2023,Opus People Solution Ltd,Housing Servs - Agency Staff,Agency Staff (Professional),1700
215130,14/06/2023,AEBI Schmidt UK Limited,Vehicle Maint - Other Mats,Waste Management - Materials,1375.34
215132,14/06/2023,Dennis Eagle Limited,Vehicle Maint - Other Mats,Waste Management - Materials,582.97
215133,14/06/2023,H B Commercial Ltd,Vehicle Maint - Other Mats,Waste Management - Materials,587.5
215134,14/06/2023,H B Commercial Ltd,Vehicle Maint - Other Mats,Waste Management - Materials,411.33
215135,14/06/2023,H B Commercial Ltd,Vehicle Maint - Other Mats,Waste Management - Materials,367.73
215136,14/06/2023,H B Commercial Ltd,Vehicle Maint - Other Mats,Waste Management - Materials,795
215140,14/06/2023,Muirs Vehicle Services Ltd,Vehicle Maint - Other Mats,Waste Management - Materials,251.95
215141,14/06/2023,Muirs Vehicle Services Ltd,Vehicle Maint - Other Mats,Waste Management - Materials,273.95
215143,14/06/2023,Source 24/7 LTD,Waste Mgmt - Agency Staff,Agency Staff (Professional),697.97
215145,14/06/2023,WasteParts UK Ltd,Vehicle Maint - Other Mats,Waste Management - Materials,695.48
215147,14/06/2023,Capture House Ltd,Economic Development - Advertising,Advertising,2194
215148,21/06/2023,Newsquest Media Group Ltd,Dev't Control - Advertising,Advertising,815.8
215149,14/06/2023,Regency Guarding & Events Ltd,Sheltered Hsg - Ad Hoc Repair,General Materials - Ad hoc Repair,1512
215151,14/06/2023,BGC Brokers,Treasury Man - Fees,Financial Services - Borrowing Fees,7978.08
215152,14/06/2023,Print Image Network Limited,Elections - Printing,Printing,14369
215153,14/06/2023,Print Image Network Limited,Elections - Printing,Printing,1900
215154,14/06/2023,Intercounty Lettings Ltd,Other LA's Movemt in year,Emerg Accommodation - Ukrainian Refugees,2800
215155,21/06/2023,Nexus Planning Limited,Plan Policy - Consultants,Consultants - General,8460
215158,21/06/2023,Michael Page International Recruitment,Property Servs - Consultants,Consultants,-1800
215159,21/06/2023,Sarto Thomas Ltd,Dev't Control - Agency Staff,Agency Staff (Professional),2831.25
215161,21/06/2023,Carrington West Ltd,Dev't Control - Agency Staff,Agency Staff (Professional),1887
215162,21/06/2023,Carrington West Ltd,Dev't Control - Agency Staff,Agency Staff (Professional),1836
215163,21/06/2023,AEBI Schmidt UK Limited,Vehicle Maint - Other Mats,Waste Management - Materials,1697.89
215164,21/06/2023,Berendsen UK Ltd,Vehicle Maint - Other Mats,Waste Management - Materials,476.96
215165,21/06/2023,General Business Holdings Ltd,Waste Mgmt - Disposal Chg,Waste Disposal - Disposal Charge,2026.18
215166,21/06/2023,Saffron Vantage Ltd,Waste Mgmt - Agency Staff,Agency Staff (Professional),4111.83
215169,21/06/2023,Michael Page International Recruitment,Property Servs - Consultants,Consultants - General,1800
215170,21/06/2023,Michael Page International Recruitment,Property Servs - Consultants,Consultants - General,1800
215171,21/06/2023,MSG Contracts Limited,Canfield Offices - Cleaning,Cleaning Service - Contract Cleaning,617.5
215174,21/06/2023,MSG Contracts Limited,Canfield Offices - Cleaning,Cleaning Service - Contract Cleaning,1679.97
215175,21/06/2023,MSG Contracts Limited,Canfield Offices - Cleaning,Cleaning Service - Contract Cleaning,578.5
215178,21/06/2023,Capsticks Solicitors LLP,Property Servs - Fees,Housing (Misc) - Fees,350
215179,21/06/2023,Capsticks Solicitors LLP,Property Servs - Fees,Housing (Misc) - Fees,350
215180,21/06/2023,Capsticks Solicitors LLP,Property Servs - Fees,Housing (Misc) - Fees,350
215193,21/06/2023,Cambridge City Council 3C Building Contr,KJA Project - Fees,Partnerships - Fees,360
215194,21/06/2023,Sundry BACS,Hsg Rent Refunds Movements,Housing rent refunds movement ,950.84
215195,21/06/2023,Greenacre Recruitment,Property Servs - Consultants,Consultants - General,604.5
215196,21/06/2023,Park Avenue Recruitment Ltd,Plan Policy - Consultants,Consultants - General,2035
215197,21/06/2023,Hall Mark Meat Hygiene Limited,Border Inspect - Oth Prof Fees,Veterinary Services - Other Prof Fees,6105
215202,21/06/2023,Goodman Masson Ltd,Property Servs - Consultants,Consultants - General,1800
215203,21/06/2023,Ashby Energy Assessors Ltd,10-12 The Mead - Cap Wk L&B,Capital Works - Land & Buildings,395
215205,21/06/2023,NewAuto Ltd T/A Mogo,Licensing - Other Mats,Signage - Other Materials,3059.9
215208,21/06/2023,Class Affinity Projects Ltd,GF Asset Mgt - Mobiles,Corporate mobile phones ,1828.34
215209,21/06/2023,CareersinAudit.com Ltd,Internal Audit - Advertising,Recruitment - Advertising,595
215210,21/06/2023,Quinntessential Catering,Museum S/W - Other Agency,Agency&Temp Staff (Prof) -Other Agencies,400
215211,21/06/2023,Sellick Partnership Ltd,Legal Services - Agency Staff,Industrial Operatives - Agency Staff,2456.1
215212,21/06/2023,Sellick Partnership Ltd,Legal Services - Agency Staff,Industrial Operatives - Agency Staff,1011.25
215213,21/06/2023,Vivid Resourcing Ltd,Dev't Control - Agency Staff,Agency Staff (Professional),2035
215214,21/06/2023,The Oyster Partnership Ltd,Plan Policy - Consultants,Consultants - General,2720
215215,21/06/2023,Gracelands CMS Ltd,Dis Facil Grt - Cap Grt L&B,Grants - S106 Cap Grt L&B,6163.99
215216,21/06/2023,Gracelands CMS Ltd,Dis Facil Grt - Cap Grt L&B,Grants - S106 Cap Grt L&B,5533.13
215217,21/06/2023,Macdonald & Company,Dev't Control - Agency Staff,Agency Staff (Professional),2247.5
215218,21/06/2023,Carrington West Ltd,Dev't Control - Agency Staff,Agency Staff (Professional),1887
215219,21/06/2023,The Oyster Partnership Ltd,Dev't Control - Agency Staff,Agency Staff (Professional),1882.19
215220,21/06/2023,Dolphin Mobility Chobham,Dis Facil Grt - Cap Grt L&B,Grants - S106 Cap Grt L&B,6625
215222,21/06/2023,Carrington West Ltd,Dev't Control - Agency Staff,Agency Staff (Professional),1887
215223,21/06/2023,Opus People Solution Ltd,Housing Servs - Agency Staff,Agency Staff (Professional),2975
215225,21/06/2023,Easy Mobility (East Anglian) Ltd,Dis Facil Grt - Cap Grt L&B,Grants - S106 Cap Grt L&B,4724
215227,21/06/2023,H M Electric Motor Rep. & Sales Co Ltd,S/W Offices - Cap Wk L&B,Capital Works - Land & Buildings,2100
215228,21/06/2023,H M Electric Motor Rep. & Sales Co Ltd,S/W Offices - Cap Wk L&B,Capital Works - Land & Buildings,550
215238,21/06/2023,Dunmow Skips Ltd,Street Clnsing - Disposal Chg,Waste Recycling - Disposal Charge,564.8
215240,21/06/2023,Source 24/7 LTD,Waste Mgmt - Agency Staff,Agency Staff (Professional),930.62
215241,21/06/2023,Source 24/7 LTD,Waste Mgmt - Agency Staff,Agency Staff (Professional),697.97
215243,21/06/2023,Vivid Resourcing Ltd,Env Protection - Consultants,Consultants - General,455.2
215244,21/06/2023,Vivid Resourcing Ltd,Env Protection - Consultants,Consultants - General,682.8
215245,21/06/2023,Buckingham Futures Ltd,Commercial Team - Agency Staff,Agency Staff (Professional),1680
215246,21/06/2023,Sundry BACS,Chairman - Members Exps,Members expenses,800
215247,21/06/2023,Buckingham Futures Ltd,Commercial Team - Agency Staff,Agency Staff (Professional),973.75
215248,21/06/2023,Buckingham Futures Ltd,Commercial Team - Agency Staff,Agency Staff (Professional),1460.63
215249,21/06/2023,Buckingham Futures Ltd,Commercial Team - Agency Staff,Agency Staff (Professional),1680
215252,21/06/2023,Reeve Photography,Chairman - Members Exps,Chairmans Expenses,360
215255,28/06/2023,Cromwell Polythene Limited,Street Clnsing - Other Mats,Waste Management - Materials,762.45
215258,15/05/2023,Daines-Lowe Ltd,S/W Offices - Cap Wk L&B,Credit Note,-19578.9
215259,21/06/2023,Lone Worker Solutions,Grounds Mtce  - Mobiles,Telecommunications - Mobiles & Pagers,1014.4
215261,28/06/2023,Access & Automation Ltd,Dis Facil Grt - Cap Grt L&B,Grants - S106 Cap Grt L&B,8770
215262,21/06/2023,Ex-Job Limited,Licensing - Other Mats,Signage - Other Materials,3167.77
215263,21/06/2023,Personnel Checks Limited T/A TaxiPlus,Licensing - Other Mats,Signage - Other Materials,3360
215264,28/06/2023,Roe Environmental Ltd,Canfield Offices - Contractors,Works Consultancy - Contractors,1868.5
215266,21/06/2023,Regency Guarding & Events Ltd,Sheltered Hsg - Ad Hoc Repair,General Materials - Ad hoc Repair,1512
215267,21/06/2023,Regency Guarding & Events Ltd,Sheltered Hsg - Ad Hoc Repair,General Materials - Ad hoc Repair,1557
215269,21/06/2023,Mackman Ltd,Economic Development - Consultants,Consultants - General,4962.5
215270,21/06/2023,Porterhouse Building & Fire Solutions Lt,S/W Offices - Cap Wk L&B,Capital Works - Land & Buildings,1145
215271,21/06/2023,Porterhouse Building & Fire Solutions Lt,S/W Offices - Cap Wk L&B,Capital Works - Land & Buildings,1450
215272,21/06/2023,Porterhouse Building & Fire Solutions Lt,S/W Offices - Cap Wk L&B,Capital Works - Land & Buildings,864.03
215273,21/06/2023,East Anglian Asbestos Ltd,S/W Offices - Cap Wk L&B,Capital Works - Land & Buildings,1300
215275,21/06/2023,Ashe Construction Ltd,New Depot Associated Capital Costs,Buildings Repair - Associated Cap Costs,75898.72
215276,28/06/2023,Flitch Green Parish Council,Community Grt - Cap Grt P&E,Grant,900
215277,28/06/2023,Great Chesterford Parish Council,Community Grt - Cap Grt P&E,Grant ,800
215279,21/06/2023,Keep IT Simple Stationery Ltd,Info Tech - Equipment,ICT Consumables - Equipment,365.2
215280,21/06/2023,Calders Conferences Ltd,Homelessness - Emergency Response Supplies,Covid 19 - Emergency Response Supplies,7545
215282,21/06/2023,Calders Conferences Ltd,Homelessness - Emergency Response Supplies,Covid 19 - Emergency Response Supplies,9675
215285,21/06/2023,East of England Local Government Associa,Democratic Rep - Subscriptions,Subscriptions,10507.36
215286,28/06/2023,Wendens Ambo Parish Council,Community Grt - Cap Grt P&E,Grant ,852.9
215288,28/06/2023,Sarto Thomas Ltd,Dev't Control - Agency Staff,Agency Staff (Professional),2737.5
215289,28/06/2023,Premier Paper Group Ltd,Print Room - Stationery,Stationery,284.81
215290,28/06/2023,Debden Parish Council,Community Grt - Cap Grt P&E,Grant,700
215291,28/06/2023,Great Canfield Parish Council,Community Grt - Cap Grt P&E,Grant,900
215294,28/06/2023,H B Commercial Ltd,Vehicle Maint - Other Mats,Credit Note ,-402.77
215298,28/06/2023,N&P Crayford MRF Ltd,Waste Mgmt - Mat Rec Fac,Waste Recycling - Materials Recycling,54190.93
215299,28/06/2023,East of England Local Government Associa,Democratic Rep - Prof Training,Training,800
215300,28/06/2023,AEBI Schmidt UK Limited,Vehicle Maint - Other Mats,Waste Management - Materials,709.54
215302,28/06/2023,Dennis Eagle Limited,Vehicle Maint - Other Mats,Waste Management - Materials,710.6
215303,28/06/2023,Dennis Eagle Limited,Vehicle Maint - Other Mats,Waste Management - Materials,1192.34
215304,28/06/2023,Driver Hire Chelmsford,Waste Mgmt - Agency Staff,Agency Staff (Professional),2324.53
215305,28/06/2023,Driver Hire Chelmsford,Waste Mgmt - Agency Staff,Agency Staff (Professional),1328.31
215306,28/06/2023,Dunmow Skips Ltd,Street Clnsing - Disposal Chg,Waste Recycling - Disposal Charge,825.6
215307,28/06/2023,Good People Recycling Ltd,Grounds Mtce  - Agency Staff,Agency Staff (Professional),1775.5
215308,28/06/2023,Good People Recycling Ltd,Waste Mgmt - Agency Staff,Agency Staff (Professional),5456.75
215309,28/06/2023,Good People Recycling Ltd,Waste Mgmt - Agency Staff,Agency Staff (Professional),3698.13
215312,28/06/2023,H B Commercial Ltd,Vehicle Maint - Other Mats,Waste Management - Materials,394.26
215316,28/06/2023,H B Commercial Ltd,Vehicle Maint - Other Mats,Waste Management - Materials,379.48
215322,28/06/2023,H B Commercial Ltd,Vehicle Maint - Other Mats,Waste Management - Materials,343.37
215327,28/06/2023,Saffron Vantage Ltd,Waste Mgmt - Agency Staff,Agency Staff (Professional),4523.3
215328,28/06/2023,Saffron Vantage Ltd,Waste Mgmt - Agency Staff,Agency Staff (Professional),3389.66
215329,28/06/2023,Source 24/7 LTD,Waste Mgmt - Agency Staff,Agency Staff (Professional),930.62
215331,28/06/2023,Linteum (Uttlesford) Ltd,PFI Financing LTL -Repaid,Leisure Services - LTL - Repaid,15064.38
215331,28/06/2023,Linteum (Uttlesford) Ltd,Int & Invest - Interest Pay,Leisure Services - Interest Payable,27814.72
215331,28/06/2023,Linteum (Uttlesford) Ltd,PFI - PFI Unitary,Leisure Services -PFI Unitary Charge,72450.98
215332,28/06/2023,Saffron Vantage Ltd,Grounds Mtce  - Agency Staff,Agency Staff (Professional),680.8
215333,28/06/2023,Saffron Vantage Ltd,Grounds Mtce  - Agency Staff,Agency Staff (Professional),680.8
215334,28/06/2023,Saffron Vantage Ltd,Street Clnsing - Agency Staff,Agency Staff (Professional),487.6
215335,28/06/2023,Saffron Vantage Ltd,Street Clnsing - Agency Staff,Agency Staff (Professional),680.8
215336,28/06/2023,Logistics UK,Street Serv Man - Prof Training,Training,538.75
215337,28/06/2023,Anywhere Care Limited,Sheltered Hsg - Other Mats,Health & Saftey - Other Materials,1200
215338,28/06/2023,1Life Management Solutions Ltd,Health Imp - Seminars,Room Hire - Seminars & Meetings,1472.08
215340,28/06/2023,New Era Fuels Ltd,Fuel Stocks Purchases,Vehicle Fuel - Stock Purchases,35580
215341,28/06/2023,New Era Fuels Ltd,Vehicle Maint - Diesel,Vehicle Fuel - Diesel,4984.76
215343,28/06/2023,New Era Fuels Ltd,Vehicle Maint - Other Mats,Waste Management - Materials,1470
215344,28/06/2023,Malthouse Security Ltd,Sheltered Hsg - Equipment,Health Care Equipment,1037.26
215351,28/06/2023,Sundry BACS,Property Servs - Compensation,Compensation,300
215353,28/06/2023,Print Image Facilities LLP,Town Centre Init - Printing,Printing,289.97
215355,28/06/2023,Regency Guarding & Events Ltd,Sheltered Hsg - Ad Hoc Repair,General Materials - Ad hoc Repair,1557
215356,28/06/2023,Greenacre Recruitment,Property Servs - Consultants,Consultants - General,1118
215357,28/06/2023,Cushman & Wakefield Debenham Tie Leung L,"MOOG, Tawkesbury Cap Pur Acq",Construction - Capital Purchase Acquisit,175000
215358,28/06/2023,Duncan Cameron & Hutchinson Ltd,Great Chesterford - Cap Wk L&B,Consultancy (Prop Works)- Cap Wk L&B,493.75
215359,28/06/2023,Arthur J Gallagher Insurance Brokers Ltd,Commercial Asset Mgt - Fees,Partnerships - Fees,33642.1
215360,28/06/2023,Goodman Masson Ltd,Property Servs - Consultants,Consultants - General,2250
215361,28/06/2023,The Oyster Partnership Ltd,Dev't Control - Agency Staff,Agency Staff (Professional),1882.19
215362,28/06/2023,Vivid Resourcing Ltd,Dev't Control - Agency Staff,Agency Staff (Professional),1517
215363,28/06/2023,The Oyster Partnership Ltd,Dev't Control - Agency Staff,Agency Staff (Professional),1551.83
215364,28/06/2023,The Oyster Partnership Ltd,Dev't Control - Agency Staff,Agency Staff (Professional),1866.4
215367,28/06/2023,The Oyster Partnership Ltd,Dev't Control - Agency Staff,Agency Staff (Professional),1858.08
215368,28/06/2023,Anglian Water Business,Common Servs - Water,Corporate Asset utilities ,891.34
215370,28/06/2023,Affinity Water,Common Servs - Water,Corporate Asset utilities ,6741.55
215372,28/06/2023,Zehnder Group UK Ltd,S/W Offices - Cap Wk L&B,Capital Works - Land & Buildings,481
215377,28/06/2023,Carrington West Ltd,Dev't Control - Agency Staff,Agency Staff (Professional),1887
215378,28/06/2023,Carrington West Ltd,Dev't Control - Agency Staff,Agency Staff (Professional),1887
215380,28/06/2023,Total Gas & Power Limited,Thaxted CIC - Gas,Corporate Asset utilities ,31100.53
215381,28/06/2023,East of England Local Government Associa,Economic Development - Subscriptions,Subscriptions,10000
215382,28/06/2023,Saffron Signs,Grounds Mtce  - Other Mats,Signage - Other Materials,285
215383,28/06/2023,V G Nash & Son,Vehicle Maint - Other Mats,Vehicle Parts - Other Materials,442
215385,28/06/2023,Good People Recycling Ltd,Grounds Mtce  - Agency Staff,Agency Staff (Professional),1166
215387,28/06/2023,Source 24/7 LTD,Waste Mgmt - Agency Staff,Agency Staff (Professional),1004.09
215388,28/06/2023,Mark Liell & Son LLP,Commercial Asset Mgt - Fees,Legal Services - Fees,5000
215389,28/06/2023,CIPFA Business Ltd,S/W Offices - Equipment,Monitoring (Environmental) - Equip Maint,375
215391,28/06/2023,Opus People Solution Ltd,Housing Servs - Agency Staff,Agency Staff (Professional),3825
215392,28/06/2023,Dennis Eagle Limited,Vehicle Maint - Other Mats,Waste Management - Materials,2858.58
215393,28/06/2023,Senne Safety Solutions,S/W Offices - Cap Wk L&B,Capital Works - Land & Buildings,800
215394,28/06/2023,East of England Local Government Associa,Waste Mgmt - Consultants,Consultants - General,2362.5
215396,28/06/2023,MSG Contracts Limited,Canfield Offices - Cleaning,Cleaning Service - Contract Cleaning,261
215398,28/06/2023,Graham Hathaway Racing,Grounds Mtce - Equipment,Tools/Equipment (Purchase) - Equipment,1467.87
215399,28/06/2023,Royal Mail Group Ltd,Elections - Postage,Postage,1912.91
215400,28/06/2023,Essex Highways - Essex County Council,Air/Noise Pol - Equipment,Events - Equipment,924
215402,28/06/2023,Porterhouse Building & Fire Solutions Lt,S/W Offices - Cap Wk L&B,Capital Works - Land & Buildings,968.02
215404,28/06/2023,WP Plumbing and Heating,S/W Offices - Cap Wk L&B,Capital Works - Land & Buildings,264
215405,28/06/2023,WP Plumbing and Heating,S/W Offices - Cap Wk L&B,Capital Works - Land & Buildings,455
215407,28/06/2023,Haydens Heating Services Ltd,S/W Offices - Cap Wk L&B,Capital Works - Land & Buildings,350
215408,28/06/2023,Haydens Heating Services Ltd,S/W Offices - Cap Wk L&B,Capital Works - Land & Buildings,500
215409,28/06/2023,Haydens Heating Services Ltd,S/W Offices - Cap Wk L&B,Capital Works - Land & Buildings,600
215410,28/06/2023,Porterhouse Building & Fire Solutions Lt,S/W Offices - Cap Wk L&B,Capital Works - Land & Buildings,270
215411,28/06/2023,Porterhouse Building & Fire Solutions Lt,S/W Offices - Cap Wk L&B,Capital Works - Land & Buildings,1047.56
215414,28/06/2023,MPS (UK) Limited,S/W Offices - Cap Wk L&B,Capital Works - Land & Buildings,635
215416,28/06/2023,Macdonald & Company,Dev't Control - Agency Staff,Agency Staff (Professional),2204
215417,28/06/2023,Vivid Resourcing Ltd,Dev't Control - Agency Staff,Agency Staff (Professional),1517
215418,28/06/2023,Newsquest Media Group Ltd,Dev't Control - Advertising,Advertising,809.6
215424,28/06/2023,Vivid Resourcing Ltd,Dev't Control - Agency Staff,Agency Staff (Professional),2035
215425,28/06/2023,Wimbish Parish Council,Climate Change - Fees,Fees,2880
215426,28/06/2023,Algeco Storage Ltd,Elections - Rent,Rents,2230
215428,28/06/2023,Penna PLC,Financial Srvs - Agency Staff,Agency Staff (Professional),10980
215430,28/06/2023,It Happens Education,Comm Safety - Seminars,Conferences - Seminars & Meetings,427.5
,24/04/2023,Essex Pension Fund,Corporate,Triennial deficit payment,490000
,13/04/2023,Ryanair,Revenues,NNDR refund,73077.75
,27/04/2023,Resident,Housing Benefits,Housing benefit,1652.32
,14/06/2023,Shakespeare Martineau LLP,HRA capital asset purchase,Affordable Housing Phase ,364397.07
,15/06/2023,Avison Young (re. B&Q),Asset Management,Refund of rental payments paid to UDC instead of Mark Liell,153840.65
0000208274,31/08/2023,The Oyster Partnership Ltd,Financial Srvs - Agency Staff,Agency Staff (Professional),"2,010.00"
0000208275,31/08/2023,The Oyster Partnership Ltd,Financial Srvs - Agency Staff,Agency Staff (Professional),"1,340.00"
0000213452,09/08/2023,E-ON NEXT,Temp Accom - Electricity,Utilities,"-3,939.94"
0000213882,09/08/2023,E-ON NEXT,Temp Accom - Gas,Utilities,995.32
0000214090,09/08/2023,E-ON NEXT,Common Servs - Electricity,Utilities,"1,033.71"
0000214465,12/07/2023,Nviron Ltd,New Depot Associated Capital Costs,Consultancy - Associated Capital Costs,"15,305.00"
0000214690,09/08/2023,E-ON NEXT,Temp Accom - Gas,Utilities,646.31
0000214958,09/08/2023,E-ON NEXT,Common Servs - Electricity,Utilities,529.61
0000215033,31/08/2023,Radisson Blu Hotel. London Stansted Airp,Homelessness - Emergency Response Supplies,Covid 19 - Emergency Response Supplies,266.58
0000215034,31/08/2023,Radisson Blu Hotel. London Stansted Airp,Homelessness - Emergency Response Supplies,Covid 19 - Emergency Response Supplies,"56,434.17"
0000215070,19/07/2023,Essex County Council,Trade Waste - Disposal Chg,Waste Disposal - Disposal Charge,"103,394.21"
0000215268,05/07/2023,NEC Software Solutions UK Ltd,Rents Admin - Consultants,Consultancy - Planning Policy,"2,200.00"
0000215284,19/07/2023,Newsquest Media Group Ltd,Dev't Control - Advertising,Advertising,815.8
0000215292,05/07/2023,Sundry BACS,Hsg Rent Refunds Movements,Housing rents ,"2,338.32"
0000215297,13/09/2023,Motex Automotive,Vehicle Maint - Other Mats,Maintenance ,-972
0000215339,19/07/2023,PPK Services Limited,Vehicle Maint - Other Mats,Vehicle Parts - Other Materials,843.43
0000215401,12/07/2023,Porterhouse Building & Fire Solutions Lt,S/W Offices - Cap Wk L&B,Capital Works - Land & Buildings,"7,915.87"
0000215412,12/07/2023,Easy Mobility (East Anglian) Ltd,Renovation Grt - Reimbursement,Grant ,"-1,400.00"
0000215422,05/07/2023,Sundry BACS,Hsg Rent Refunds Movements,Housing rents ,349.29
0000215429,19/07/2023,Bytes Software Services,Info Tech - Support Costs,ICT Maintenance/Support - Support Costs,"1,334.22"
0000215431,05/07/2023,Sundry BACS,Hsg Rent Refunds Movements,Housing rents ,390.45
0000215433,05/07/2023,Sarto Thomas Ltd,Dev't Control - Agency Staff,Agency Staff (Professional),"2,831.25"
0000215441,05/07/2023,PortalPlanQuest Ltd,Dev't Control - Fees,Fees,"8,316.00"
0000215444,05/07/2023,Sundry BACS,Corporate Man - Refreshments,Refreshments,"1,400.00"
0000215447,05/07/2023,Regency Guarding & Events Ltd,Sheltered Hsg - Ad Hoc Repair,General Materials - Ad hoc Repair,"1,512.00"
0000215448,05/07/2023,Regency Guarding & Events Ltd,Sheltered Hsg - Ad Hoc Repair,General Materials - Ad hoc Repair,"6,263.64"
0000215449,05/07/2023,Regency Guarding & Events Ltd,Sheltered Hsg - Ad Hoc Repair,General Materials - Ad hoc Repair,"1,620.00"
0000215450,05/07/2023,Banks Garden Machinery,Grounds Mtce - Equipment,Tools/Equipment (Purchase) - Equipment,316.48
0000215457,05/07/2023,Sundry BACS,Community Grt - Cap Grt P&E,Grant,800
0000215458,05/07/2023,Park Avenue Recruitment Ltd,Plan Policy - Consultants,Consultants - General,"2,035.00"
0000215459,05/07/2023,Buckingham Futures Ltd,Commercial Team - Agency Staff,Agency Staff (Professional),"1,680.00"
0000215460,05/07/2023,Regency Guarding & Events Ltd,Canfield Offices - Contractors,Security - Payments to Contractors,391.51
0000215462,05/07/2023,Vivid Resourcing Ltd,Env Protection - Consultants,Consultants - General,546.24
0000215463,05/07/2023,Vivid Resourcing Ltd,Env Protection - Consultants,Consultants - General,682.8
0000215464,05/07/2023,Park Avenue Recruitment Ltd,Plan Policy - Consultants,Consultants - General,"2,035.00"
0000215465,05/07/2023,Park Avenue Recruitment Ltd,Plan Policy - Consultants,Consultants - General,"2,035.00"
0000215466,05/07/2023,Malins Associates Limited,Property Servs - Consultants,Consultants - General,"3,105.00"
0000215467,05/07/2023,The Oyster Partnership Ltd,Plan Policy - Consultants,Consultants - General,"2,720.00"
0000215468,05/07/2023,Justin Gardner Consulting,Plan Policy - Consultants,Consultants - General,"13,800.00"
0000215469,05/07/2023,Greenacre Recruitment,Property Servs - Consultants,Consultants - General,"1,131.00"
0000215470,05/07/2023,The Oyster Partnership Ltd,Dev't Control - Agency Staff,Agency Staff (Professional),"1,882.19"
0000215471,05/07/2023,The Oyster Partnership Ltd,Plan Policy - Consultants,Consultants - General,"2,720.00"
0000215476,05/07/2023,TouchPoint,Health Imp - Seminars,Room Hire - Seminars & Meetings,"3,000.00"
0000215477,05/07/2023,Michael Page International Recruitment,Property Servs - Consultants,Consultants - General,"2,750.00"
0000215478,05/07/2023,Michael Page International Recruitment,Property Servs - Consultants,Consultants - General,"15,800.00"
0000215480,05/07/2023,Women of Grace UK,Community Grt - Cap Grt P&E,Grant ,450
0000215482,05/07/2023,Essex County Council,Specialists - Conservation - Consultants,Consultants - General,"8,446.97"
0000215483,05/07/2023,Silktide Ltd,Info Tech - Support Costs,ICT Maintenance/Support - Support Costs,"2,863.40"
0000215484,12/07/2023,Npower Limited,Thaxted CIC - Electricity,Utilities,"31,166.06"
0000215485,05/07/2023,Next Chapter,Comm Safety - Seminars,Conferences - Seminars & Meetings,"1,200.00"
0000215487,05/07/2023,Sundry BACS,Debtors Control Refunds,Refund,"1,232.00"
0000215489,05/07/2023,Sundry BACS,Unidentified BDS Movemt in year,Movement,267.98
0000215492,05/07/2023,Opus People Solution Ltd,Housing Servs - Agency Staff,Agency Staff (Professional),"4,250.00"
0000215493,05/07/2023,Carrington West Ltd,Dev't Control - Agency Staff,Agency Staff (Professional),"1,887.00"
0000215494,05/07/2023,Carrington West Ltd,Dev't Control - Agency Staff,Agency Staff (Professional),"1,887.00"
0000215496,05/07/2023,Governance Training and Consultancy Ltd,Legal Services - Fees,Legal Services - Fees,"3,075.00"
0000215497,05/07/2023,Sharpe Pritchard LLP,Legal Services - Legal Fees,Legal Services - Legal Fees,"4,616.20"
0000215498,05/07/2023,Sellick Partnership Ltd,Legal Services - Agency Staff,Industrial Operatives - Agency Staff,"2,815.12"
0000215499,05/07/2023,Sellick Partnership Ltd,Legal Services - Agency Staff,Industrial Operatives - Agency Staff,"1,669.50"
0000215500,05/07/2023,Sellick Partnership Ltd,Legal Services - Agency Staff,Industrial Operatives - Agency Staff,"1,961.00"
0000215501,05/07/2023,Goodman Masson Ltd,Property Servs - Consultants,Consultants - General,"2,250.00"
0000215502,05/07/2023,Porterhouse Building & Fire Solutions Lt,Property Servs - Consultants,Consultants - General,375
0000215503,05/07/2023,Porterhouse Building & Fire Solutions Lt,S/W Offices - Cap Wk L&B,Capital Works - Land & Buildings,438.17
0000215504,05/07/2023,Porterhouse Building & Fire Solutions Lt,S/W Offices - Cap Wk L&B,Capital Works - Land & Buildings,"1,247.39"
0000215505,05/07/2023,Porterhouse Building & Fire Solutions Lt,S/W Offices - Cap Wk L&B,Capital Works - Land & Buildings,"4,742.72"
0000215506,05/07/2023,Porterhouse Building & Fire Solutions Lt,S/W Offices - Cap Wk L&B,Capital Works - Land & Buildings,"1,700.00"
0000215507,05/07/2023,Nickolds HMO Management & Maintenance,Homelessness - Accommodation,Homelessness - Accommodation,595
0000215508,05/07/2023,Nickolds HMO Management & Maintenance,Homelessness - Accommodation,Homelessness - Accommodation,315
0000215519,12/07/2023,"Department for Levelling up, Housing, Co",Homelessness - DCLG,Grant,"4,461.00"
0000215520,05/07/2023,East of England Local Government Associa,Democratic Rep - Prof Training,Training,"1,600.00"
0000215522,05/07/2023,Uttlesford Norse Ltd.,Voids Prog - Cap Rep L&B,Buildings Repair/Maint - Cap Rep L&B,"92,033.33"
0000215523,05/07/2023,Uttlesford Norse Ltd.,Norse Partnership Estates - Fees,Partnerships - Fees,"19,100.25"
0000215523,05/07/2023,Uttlesford Norse Ltd.,Norse Partnership Hsg Rep - Fees,Partnerships - Fees,"166,399.33"
0000215523,05/07/2023,Uttlesford Norse Ltd.,Norse Partnership Sheltered - Fees,Partnerships - Fees,"10,809.33"
0000215523,05/07/2023,Uttlesford Norse Ltd.,Norse Partnership Sewerage - Fees,Partnerships - Fees,"4,604.42"
0000215524,05/07/2023,Uttlesford Norse Ltd.,Norse Partnership Hsg Rep - Fees,Partnerships - Fees,"42,286.45"
0000215525,05/07/2023,Uttlesford Norse Ltd.,Norse Partnership Admin - Fees,Partnerships - Fees,"30,785.59"
0000215525,05/07/2023,Uttlesford Norse Ltd.,Norse Partnership Hsg Rep - Fees,Partnerships - Fees,"56,034.26"
0000215528,05/07/2023,1Life Management Solutions Ltd,PFI - PFI Unitary,Leisure Services -PFI Unitary Charge,"11,018.45"
0000215529,05/07/2023,Encore Envelopes Ltd,Electoral Reg - Stationery,Stationery,498.75
0000215531,19/07/2023,Newsquest Media Group Ltd,Dev't Control - Advertising,Advertising,933.2
0000215532,05/07/2023,Uttlesford Norse Ltd.,Norse Partnership Asset Mgt - Fees,Partnerships - Fees,"15,560.42"
0000215532,05/07/2023,Uttlesford Norse Ltd.,Norse Partnership Cleaning - Fees,Partnerships - Fees,"20,841.33"
0000215533,12/07/2023,Quadient UK LTD,Mail Room - Equip Rental,Office & Reprographics -Equipment Rental,"3,921.98"
0000215534,12/07/2023,Colchester Borough Council,CP Overheads - Fees,Partnerships - Fees,"46,550.00"
0000215535,12/07/2023,Participatr Ltd,Plan Policy - Consultants,Consultants - General,960
0000215536,12/07/2023,The Monarch Partnership,Climate Change - Consultants,Consultants - General,360
0000215537,12/07/2023,Gipping Construction Limited,Walden Pl Shelt - Cap Wk L&B,Capital Works - Land & Buildings,"98,768.07"
0000215538,12/07/2023,SGS (formally Concept Life Sciences),Border Inspect - Oth Prof Fees,Forensic & Lab Testing - Oth Prof Fees,"4,488.16"
0000215539,12/07/2023,Sellick Partnership Ltd,Legal Services - Agency Staff,Industrial Operatives - Agency Staff,"1,784.86"
0000215540,12/07/2023,Sellick Partnership Ltd,Legal Services - Agency Staff,Industrial Operatives - Agency Staff,"2,089.77"
0000215541,12/07/2023,Sellick Partnership Ltd,Legal Services - Agency Staff,Industrial Operatives - Agency Staff,"1,007.00"
0000215542,12/07/2023,Essex County Council,Land Charges - Fees,Legal Services - Fees,532
0000215543,19/07/2023,Roe Environmental Ltd,Canfield Offices - Contractors,Works Consultancy - Contractors,414
0000215544,12/07/2023,Governance Training and Consultancy Ltd,Legal Services - Legal Fees,Legal Services - Legal Fees,"1,995.00"
0000215545,12/07/2023,Birketts LLP,Legal Services - Legal Fees,Legal Services - Legal Fees,"1,000.00"
0000215548,12/07/2023,Elliot Baxter & Co Ltd T/A EBB OFFICE,Print Room - Stationery,Stationery,740
0000215555,19/07/2023,Sundry BACS,Hsg Rent Refunds Movements,Housing rent ,623.94
0000215559,12/07/2023,Easy Mobility (East Anglian) Ltd,Dis Facil Grt - Cap Grt L&B,Grants - S106 Cap Grt L&B,"2,986.00"
0000215560,12/07/2023,Birketts LLP,Dev Ctrl Appls - Legal Fees,Legal Services - Legal Fees,"1,000.00"
0000215561,12/07/2023,Haydens Heating Services Ltd,S/W Offices - Cap Wk L&B,Capital Works - Land & Buildings,350
0000215562,12/07/2023,Cushman & Wakefield Debenham Tie Leung L,"MOOG, Tawkesbury Cap Pur Acq",Construction - Capital Purchase Acquisit,"2,500.00"
0000215563,12/07/2023,Linteum (Uttlesford) Ltd,PFI Financing LTL -Repaid,Leisure Services - LTL - Repaid,"15,064.38"
0000215563,12/07/2023,Linteum (Uttlesford) Ltd,Int & Invest - Interest Pay,Leisure Services - Interest Payable,"27,814.72"
0000215563,12/07/2023,Linteum (Uttlesford) Ltd,PFI - PFI Unitary,Leisure Services -PFI Unitary Charge,"72,178.93"
0000215573,12/07/2023,Malthouse Security Ltd,Sheltered Hsg - Ad Hoc Repair,General Materials - Ad hoc Repair,363.4
0000215574,12/07/2023,Penna PLC,Financial Srvs - Agency Staff,Agency Staff (Professional),"10,293.75"
0000215575,12/07/2023,Novus Environmental,Border Inspect - Disposal Chg,Waste Collection - Waste Disposal,388.72
0000215578,12/07/2023,Print Image Facilities LLP,Economic Development - Consultants,Consultants - General,"3,198.75"
0000215579,12/07/2023,Harlow Council,Economic Development - Subscriptions,Subscriptions,"6,500.00"
0000215580,12/07/2023,Sellick Partnership Ltd,Legal Services - Agency Staff,Industrial Operatives - Agency Staff,"1,961.00"
0000215584,12/07/2023,The Oyster Partnership Ltd,Plan Policy - Consultants,Consultants - General,"2,720.00"
0000215585,12/07/2023,Park Avenue Recruitment Ltd,Plan Policy - Consultants,Consultants - General,"2,035.00"
0000215587,12/07/2023,The Oyster Partnership Ltd,Dev't Control - Agency Staff,Agency Staff (Professional),"1,831.90"
0000215588,12/07/2023,The Oyster Partnership Ltd,Dev't Control - Agency Staff,Agency Staff (Professional),"1,813.00"
0000215589,12/07/2023,Sundry BACS,Corporate Man - Refreshments,Refreshments,330
0000215593,19/07/2023,Sundry BACS,Hsg Rent Refunds Movements,Housing rents ,528.84
0000215598,12/07/2023,Carrington West Ltd,Dev't Control - Agency Staff,Agency Staff (Professional),"1,887.00"
0000215599,12/07/2023,Sarto Thomas Ltd,Dev't Control - Agency Staff,Agency Staff (Professional),"2,812.50"
0000215600,12/07/2023,Opus People Solution Ltd,Housing Servs - Agency Staff,Agency Staff (Professional),"4,250.00"
0000215601,12/07/2023,Carrington West Ltd,Dev't Control - Agency Staff,Agency Staff (Professional),"1,887.00"
0000215602,12/07/2023,Goodman Masson Ltd,Property Servs - Consultants,Consultants - General,"2,250.00"
0000215604,12/07/2023,OCN Contract Services,Temp Accom - Furniture,Domestic Furniture,999
0000215605,12/07/2023,OCN Contract Services,Homelessness - Furniture,Domestic Furniture,799
0000215608,12/07/2023,Sundry BACS,Dev't Control - Legal Fees,Legal fees ,"6,666.67"
0000215609,12/07/2023,MSG Contracts Limited,Canfield Offices - Cleaning,Cleaning Service - Contract Cleaning,578.5
0000215610,12/07/2023,MSG Contracts Limited,Canfield Offices - Cleaning,Cleaning Service - Contract Cleaning,"1,679.97"
0000215611,12/07/2023,MSG Contracts Limited,Canfield Offices - Cleaning,Cleaning Service - Contract Cleaning,617.5
0000215612,12/07/2023,Pristine Environmental Services Ltd,Canfield Offices - Contractors,Works Consultancy - Contractors,"1,597.42"
0000215613,12/07/2023,Canon (UK) Limited,Print Room - Photocopier,Reprographics - Photocopier,"1,873.89"
0000215615,12/07/2023,Canon (UK) Limited,Print Room - Equip Rental,Office & Reprographics -Equipment Rental,987.66
0000215616,12/07/2023,Canon (UK) Limited,Print Room - Equip Rental,Office & Reprographics -Equipment Rental,"1,025.37"
0000215632,12/07/2023,Canon (UK) Limited,Print Room - Photocopier,Reprographics - Photocopier,626.1
0000215637,12/07/2023,Hall Mark Meat Hygiene Limited,Border Inspect - Oth Prof Fees,Veterinary Services - Other Prof Fees,"7,335.00"
0000215638,12/07/2023,Canon (UK) Limited,Print Room - Photocopier,Reprographics - Photocopier,294.23
0000215639,19/07/2023,Sundry BACS,Hsg Rent Refunds Movements,Housing rents ,332.55
0000215640,12/07/2023,Prime Start Media Ltd,Internal Audit - Advertising,Recruitment - Advertising,300
0000215641,12/07/2023,A N Wallis & Co Ltd,Canfield Offices - Contractors,Works Consultancy - Contractors,"4,488.00"
0000215642,12/07/2023,Phil Jones Associates Ltd,Climate Change - Consultants,Consultants - General,"1,977.50"
0000215643,12/07/2023,1Life Management Solutions Ltd,Health Imp - Seminars,Room Hire - Seminars & Meetings,464.52
0000215644,12/07/2023,Patricia Ackron,Health Imp - Seminars,Room Hire - Seminars & Meetings,340.6
0000215645,12/07/2023,Kelly Rowland,Health Imp - Seminars,Room Hire - Seminars & Meetings,"1,280.00"
0000215646,12/07/2023,ActionBrook Services Ltd,Canfield Offices - Contractors,Works Consultancy - Contractors,640
0000215649,12/07/2023,Micromarketing Ltd,Housing Servs Tenant Participation,Public Relations - Tenant Participation,277.2
0000215655,12/07/2023,The Cultural Engine CIC,Plan Policy - Consultants,Consultants - General,"3,600.00"
0000215657,12/07/2023,MSG Contracts Limited,Canfield Offices - Cleaning,Cleaning Service - Contract Cleaning,377.99
0000215661,12/07/2023,Saffron Vantage Ltd,Grounds Mtce  - Agency Staff,Agency Staff (Professional),680.8
0000215662,12/07/2023,Saffron Vantage Ltd,Grounds Mtce  - Agency Staff,Agency Staff (Professional),874
0000215663,12/07/2023,General Business Holdings Ltd,Waste Mgmt - Disposal Chg,Waste Disposal - Disposal Charge,"2,544.22"
0000215664,12/07/2023,Regency Guarding & Events Ltd,Sheltered Hsg - Ad Hoc Repair,General Materials - Ad hoc Repair,"1,512.00"
0000215665,12/07/2023,Regency Guarding & Events Ltd,Sheltered Hsg - Ad Hoc Repair,General Materials - Ad hoc Repair,"1,512.00"
0000215666,12/07/2023,Dunmow Skips Ltd,Street Clnsing - Disposal Chg,Waste Recycling - Disposal Charge,906.4
0000215669,12/07/2023,H B Commercial Ltd,Vehicle Maint - Other Mats,Waste Management - Materials,293.38
0000215671,12/07/2023,Source 24/7 LTD,Waste Mgmt - Agency Staff,Agency Staff (Professional),697.97
0000215673,12/07/2023,Driver Hire Chelmsford,Waste Mgmt - Agency Staff,Agency Staff (Professional),"1,359.71"
0000215674,12/07/2023,Central Tyre Limited,Vehicle Maint - Other Mats,Waste Management - Materials,"2,200.00"
0000215675,12/07/2023,Good People Recycling Ltd,Grounds Mtce  - Agency Staff,Agency Staff (Professional),"1,961.00"
0000215676,12/07/2023,Good People Recycling Ltd,Waste Mgmt - Agency Staff,Agency Staff (Professional),"6,372.82"
0000215679,12/07/2023,Safetykleen UK Ltd,Vehicle Maint - Other Mats,Waste Management - Materials,521.17
0000215680,12/07/2023,Lindstrom Ltd,Vehicle Maint - Other Mats,Waste Management - Materials,469
0000215681,12/07/2023,Dunmow Skips Ltd,Street Clnsing - Disposal Chg,Waste Recycling - Disposal Charge,520
0000215690,12/07/2023,International Parking Systems (UK) Ltd,CP Overheads - Equip Rental,Office & Reprographics -Equipment Rental,332.5
0000215691,12/07/2023,International Parking Systems (UK) Ltd,CP Overheads - Bank Charges,Bank Charges,"5,212.16"
0000215692,12/07/2023,The Association of Building Engineers,Bldg Surveying - Prof Subs,Professional Subscriptions,255
0000215694,19/07/2023,Rodells Ltd,Canfield Offices - Contractors,Works Consultancy - Contractors,795
0000215695,19/07/2023,Wavenet Ltd (Acquired Adept on 12/4/23),Info Tech - Support Costs,ICT Maintenance/Support - Support Costs,349.57
0000215696,19/07/2023,Wavenet Ltd (Acquired Adept on 12/4/23),Info Tech - Support Costs,ICT Maintenance/Support - Support Costs,"4,489.07"
0000215697,19/07/2023,Hometrack Data Systems,Housing Servs - Subscriptions,Subscriptions,"5,000.00"
0000215698,19/07/2023,Mattinson Partnership Ltd,Air/Noise Pol - Consultants,Consultants - General,"10,426.39"
0000215699,19/07/2023,Essex County Council - Tourism,Economic Development - Consultants,Consultants - General,975
0000215699,19/07/2023,Essex County Council - Tourism,Economic Development - Subscriptions,Subscriptions,"2,328.00"
0000215700,19/07/2023,Booking Live Software Ltd,Info Tech - Support Costs,ICT Maintenance/Support - Support Costs,"8,050.00"
0000215701,19/07/2023,GoTo Technologies UK Limited,Info Tech - Support Costs,ICT Maintenance/Support - Support Costs,"2,164.56"
0000215702,19/07/2023,1st Saffron Walden Boys Brigade,NHB Ward Member - Grants,Grants ,500
0000215704,19/07/2023,Perrin Myddelton Limited,Property Servs - Fees,Legal Services - Fees,687.5
0000215705,19/07/2023,Perrin Myddelton Limited,Property Servs - Fees,Legal Services - Fees,262.5
0000215707,19/07/2023,Perrin Myddelton Limited,Property Servs - Fees,Legal Services - Fees,"2,520.00"
0000215710,19/07/2023,Perrin Myddelton Limited,Property Servs - Fees,Legal Services - Fees,"1,212.50"
0000215712,19/07/2023,Perrin Myddelton Limited,Property Servs - Fees,Legal Services - Fees,787.5
0000215713,19/07/2023,Perrin Myddelton Limited,Housing Servs - Legal Fees,Legal Services - Legal Fees,"2,882.50"
0000215714,19/07/2023,Essex County Council,Dev't Control - Consultants,Consultants - General,"7,982.00"
0000215720,26/07/2023,Smith Bros. & Webb Ltd,Canfield Offices - Contractors,Works Consultancy - Contractors,"6,465.50"
0000215721,19/07/2023,Council For Voluntary Service Uttlesford,Other LA's Movemt in year,Emerg Accommodation - Ukrainian Refugees,"9,555.00"
0000215722,19/07/2023,Malthouse Security Ltd,Sheltered Hsg - Equipment,Health Care Equipment,"1,037.26"
0000215723,19/07/2023,Henry Riley,New Depot Associated Capital Costs,Consultancy - Associated Capital Costs,"2,500.00"
0000215724,19/07/2023,Macdonald & Company,Dev't Control - Agency Staff,Agency Staff (Professional),"2,218.50"
0000215725,19/07/2023,Sarto Thomas Ltd,Dev't Control - Agency Staff,Agency Staff (Professional),"2,775.00"
0000215726,19/07/2023,Malins Associates Limited,Property Servs - Consultants,Consultants - General,"5,175.00"
0000215727,19/07/2023,Vivid Resourcing Ltd,Dev't Control - Agency Staff,Agency Staff (Professional),"1,517.00"
0000215729,19/07/2023,Browne Jacobson LLP,Property Servs Business Plan,Housing Dev - Business Plan,727.4
0000215730,19/07/2023,Browne Jacobson LLP,Property Servs Business Plan,Housing Dev - Business Plan,741.8
0000215731,19/07/2023,Central Tyre Limited,Vehicle Maint - Other Mats,Waste Management - Materials,"2,391.00"
0000215732,19/07/2023,Good People Recycling Ltd,Waste Mgmt - Agency Staff,Agency Staff (Professional),"4,101.88"
0000215733,19/07/2023,Hatfield Heath Parish Council,Community Grt - Cap Grt P&E,Grants,700
0000215735,19/07/2023,Newline Anglia Ltd,Waste Mgmt - Clothing,Protective Clothing - Clothing & Uniform,718.8
0000215737,19/07/2023,Berendsen UK Ltd,Vehicle Maint - Other Mats,Waste Management - Materials,476.96
0000215738,19/07/2023,Crimp Hydraulic Services Ltd,Vehicle Maint - Other Mats,Waste Management - Materials,302.6
0000215741,19/07/2023,Newline Anglia Ltd,Waste Mgmt - Clothing,Protective Clothing - Clothing & Uniform,286.5
0000215745,19/07/2023,Nickolds HMO Management & Maintenance,Homelessness - Accommodation,Homelessness - Accommodation,595
0000215746,19/07/2023,Nickolds HMO Management & Maintenance,Homelessness - Accommodation,Homelessness - Accommodation,315
0000215747,19/07/2023,Nickolds HMO Management & Maintenance,Homelessness - Accommodation,Homelessness - Accommodation,595
0000215748,19/07/2023,Nickolds HMO Management & Maintenance,Homelessness - Accommodation,Homelessness - Accommodation,315
0000215749,19/07/2023,Nickolds HMO Management & Maintenance,Homelessness - Accommodation,Homelessness - Accommodation,595
0000215750,19/07/2023,Nickolds HMO Management & Maintenance,Homelessness - Accommodation,Homelessness - Accommodation,315
0000215751,19/07/2023,Nickolds HMO Management & Maintenance,Homelessness - Accommodation,Homelessness - Accommodation,595
0000215752,19/07/2023,Nickolds HMO Management & Maintenance,Homelessness - Accommodation,Homelessness - Accommodation,315
0000215753,19/07/2023,Nickolds HMO Management & Maintenance,Homelessness - Accommodation,Homelessness - Accommodation,595
0000215754,19/07/2023,Nickolds HMO Management & Maintenance,Homelessness - Accommodation,Homelessness - Accommodation,315
0000215755,19/07/2023,Nickolds HMO Management & Maintenance,Homelessness - Accommodation,Homelessness - Accommodation,440
0000215756,19/07/2023,New Era Fuels Ltd,Street Serv Man - Diesel,Vehicle Fuel - Diesel,"35,217.65"
0000215759,26/07/2023,R2C Online Ltd,Vehicle Maint - Subscriptions,Subscriptions,"2,688.30"
0000215761,19/07/2023,1Life Management Solutions Ltd,PFI - PFI Unitary,Partnerships - PFI Unitary Charge,"9,006.15"
0000215762,19/07/2023,Locata (Housing Services) Ltd,Housing Servs - Fees,Housing (Misc) - Fees,"5,333.33"
0000215763,19/07/2023,Oxford Professsional Education Group,Climate Change - Seminars,Conferences - Seminars & Meetings,865
0000215764,19/07/2023,Terberg Matec UK Ltd,Vehicle Maint - Other Mats,Waste Management - Materials,970
0000215765,19/07/2023,Saffron Walden Salvation Army,NHB Ward Member - Grants,Grants,500
0000215769,19/07/2023,Sellick Partnership Ltd,Legal Services - Agency Staff,Industrial Operatives - Agency Staff,"2,211.88"
0000215770,19/07/2023,Meadow Hill Coffee Shop,Economic Development - Refreshments,Food/Beverages - Refreshments,280
0000215771,26/07/2023,Roar B2B Ltd,Waste Mgmt - Prof Training,Training,341.5
0000215773,19/07/2023,Oasis Hotel Harlow Limited,Homelessness - Accommodation,Homelessness - Accommodation,"1,278.75"
0000215774,19/07/2023,Oasis Hotel Harlow Limited,Homelessness - Accommodation,Homelessness - Accommodation,"1,113.75"
0000215775,19/07/2023,Oasis Hotel Harlow Limited,Homelessness - Accommodation,Homelessness - Accommodation,"1,278.75"
0000215776,19/07/2023,Oasis Hotel Harlow Limited,Homelessness - Accommodation,Homelessness - Accommodation,866.25
0000215777,19/07/2023,Oasis Hotel Harlow Limited,Homelessness - Accommodation,Homelessness - Accommodation,"1,524.17"
0000215778,19/07/2023,Action for Family Carers,Voluntary Org - Grants,Grants,"8,000.00"
0000215779,19/07/2023,Lifetime Adaptions & Design Solutions Lt,Dis Facil Grt - Cap Grt L&B,Grants - S106 Cap Grt L&B,"1,140.00"
0000215780,19/07/2023,Birketts LLP,Licensing - Other Mats,Signage - Other Materials,"1,000.00"
0000215784,19/07/2023,Regency Guarding & Events Ltd,Sheltered Hsg - Ad Hoc Repair,General Materials - Ad hoc Repair,"1,512.00"
0000215785,26/07/2023,Dennis Eagle Limited,Vehicle Maint - Other Mats,Waste Management - Materials,750
0000215786,26/07/2023,Dennis Eagle Limited,Vehicle Maint - Other Mats,Maintenance,-750
0000215787,26/07/2023,Planned Environmental Services Ltd,Canfield Offices - Contractors,Works Consultancy - Contractors,"1,959.50"
0000215788,19/07/2023,Driver Hire Chelmsford,Waste Mgmt - Agency Staff,Agency Staff (Professional),"1,328.30"
0000215789,26/07/2023,Newsquest Media Group Ltd,Dev't Control - Advertising,Advertising,686
0000215790,26/07/2023,Keep IT Simple Stationery Ltd,Info Tech - Equipment,ICT Consumables - Equipment,"1,676.70"
0000215793,19/07/2023,Nickolds HMO Management & Maintenance,Homelessness - Accommodation,Homelessness - Accommodation,595
0000215794,19/07/2023,Nickolds HMO Management & Maintenance,Homelessness - Accommodation,Homelessness - Accommodation,315
0000215795,19/07/2023,Nickolds HMO Management & Maintenance,Homelessness - Accommodation,Homelessness - Accommodation,385
0000215796,19/07/2023,Dunmow Skips Ltd,Street Clnsing - Disposal Chg,Waste Recycling - Disposal Charge,520
0000215797,19/07/2023,Riverside Truck Rental Ltd,Green Waste - Contract Hire,Vehicle Hire,"3,040.00"
0000215798,19/07/2023,Essex County Council - ESAB,Comm Safety - Seminars,Conferences - Seminars & Meetings,"1,130.00"
0000215799,19/07/2023,Essex County Council - ESCB,Comm Safe Part - Seminars,Conferences - Seminars & Meetings,"1,210.00"
0000215801,19/07/2023,Buckingham Futures Ltd,Commercial Team - Agency Staff,Agency Staff (Professional),"1,662.50"
0000215802,19/07/2023,Buckingham Futures Ltd,Commercial Team - Agency Staff,Agency Staff (Professional),950
0000215803,19/07/2023,Buckingham Futures Ltd,Commercial Team - Agency Staff,Agency Staff (Professional),"1,680.00"
0000215804,19/07/2023,Buckingham Futures Ltd,Commercial Team - Agency Staff,Agency Staff (Professional),"1,092.50"
0000215805,19/07/2023,Buckingham Futures Ltd,Commercial Team - Agency Staff,Agency Staff (Professional),"3,360.00"
0000215806,19/07/2023,Buckingham Futures Ltd,Commercial Team - Agency Staff,Agency Staff (Professional),712.5
0000215808,19/07/2023,Vivid Resourcing Ltd,Env Protection - Consultants,Consultants - General,500.72
0000215809,19/07/2023,Vivid Resourcing Ltd,Env Protection - Consultants,Consultants - General,546.24
0000215811,19/07/2023,Carmaggeddon Salvage Ltd,Env Protection - Oth Prof Fees,Abandoned Vehicles - Other Prof Fees,284
0000215812,19/07/2023,Enable Access LTD,Dis Facil Grt - Cap Grt L&B,Grants - S106 Cap Grt L&B,"2,084.50"
0000215813,19/07/2023,Print Image Facilities LLP,Electoral Reg - Postage,Postage,"4,257.40"
0000215814,19/07/2023,Vivid Resourcing Ltd,Dev't Control - Agency Staff,Agency Staff (Professional),"2,035.00"
0000215815,19/07/2023,Vivid Resourcing Ltd,Dev't Control - Agency Staff,Agency Staff (Professional),"2,035.00"
0000215816,19/07/2023,Goodman Masson Ltd,Property Servs - Consultants,Consultants - General,"2,250.00"
0000215817,19/07/2023,Vivid Resourcing Ltd,Dev't Control - Agency Staff,Agency Staff (Professional),"1,517.00"
0000215820,16/08/2023,Total Gas & Power Limited,Temp Accom - Gas,Utilities,"-1,061.31"
0000215821,16/08/2023,Total Gas & Power Limited,Temp Accom - Gas,Utilities,688.36
0000215828,19/07/2023,De Salis Hotel,Homelessness - Accommodation,Homelessness - Accommodation,921.67
0000215829,19/07/2023,De Salis Hotel,Homelessness - Accommodation,Homelessness - Accommodation,"1,610.00"
0000215830,19/07/2023,De Salis Hotel,Homelessness - Accommodation,Homelessness - Accommodation,566.67
0000215831,19/07/2023,De Salis Hotel,Homelessness - Accommodation,Homelessness - Accommodation,708.33
0000215832,19/07/2023,De Salis Hotel,Homelessness - Accommodation,Homelessness - Accommodation,733.33
0000215833,19/07/2023,Macdonald & Company,Dev't Control - Agency Staff,Agency Staff (Professional),"2,262.00"
0000215834,19/07/2023,Firetrace Ltd,Vehicle Maint - Other Mats,Waste Management - Materials,"1,100.00"
0000215835,19/07/2023,Nviron Ltd,New Depot Associated Capital Costs,Consultancy - Associated Capital Costs,"2,260.00"
0000215836,19/07/2023,Essex County Council,Specialists - Conservation - Consultants,Consultants - General,"11,331.30"
0000215837,19/07/2023,Essex County Council,Specialists - Conservation - Consultants,Consultants - General,"10,332.92"
0000215838,19/07/2023,Carrington West Ltd,Dev't Control - Agency Staff,Agency Staff (Professional),"1,887.00"
0000215839,19/07/2023,Vivid Resourcing Ltd,Dev't Control - Agency Staff,Agency Staff (Professional),"1,517.00"
0000215840,19/07/2023,Carrington West Ltd,Dev't Control - Agency Staff,Agency Staff (Professional),"1,887.00"
0000215844,19/07/2023,Vivid Resourcing Ltd,Dev't Control - Agency Staff,Agency Staff (Professional),"2,035.00"
0000215845,19/07/2023,The Oyster Partnership Ltd,Dev't Control - Agency Staff,Agency Staff (Professional),"1,829.20"
0000215846,19/07/2023,Global Media Group Services Ltd,Economic Development - Advertising,Advertising,600
0000215847,19/07/2023,Good People Recycling Ltd,Grounds Mtce  - Agency Staff,Agency Staff (Professional),"1,961.00"
0000215849,19/07/2023,Tela Ltd,Economic Development - Advertising,Advertising,"1,000.00"
0000215851,26/07/2023,Aquajet Cleaning Equipment Ltd,Waste Mgmt - Other Mats,Waste Management - Materials,331.49
0000215857,26/07/2023,Dennis Eagle Limited,Vehicle Maint - Other Mats,Waste Management - Materials,"1,084.02"
0000215858,26/07/2023,Dennis Eagle Limited,Vehicle Maint - Other Mats,Waste Management - Materials,418.8
0000215859,19/07/2023,Driver Hire Chelmsford,Waste Mgmt - Agency Staff,Agency Staff (Professional),"2,324.47"
0000215860,19/07/2023,Driver Hire Chelmsford,Waste Mgmt - Agency Staff,Agency Staff (Professional),"1,992.45"
0000215861,19/07/2023,Dunmow Skips Ltd,Street Clnsing - Disposal Chg,Waste Recycling - Disposal Charge,898.4
0000215862,19/07/2023,Dunmow Skips Ltd,Street Clnsing - Disposal Chg,Waste Recycling - Disposal Charge,520
0000215863,26/07/2023,Saffron Vantage Ltd,Waste Mgmt - Agency Staff,Agency Staff (Professional),"4,712.58"
0000215866,19/07/2023,WasteParts UK Ltd,Vehicle Maint - Other Mats,Waste Management - Materials,812.15
0000215867,26/07/2023,Saffron Vantage Ltd,Street Clnsing - Agency Staff,Agency Staff (Professional),690
0000215869,19/07/2023,Colchester Fuel Injection Ltd,Vehicle Maint - Other Mats,Waste Management - Materials,"3,789.25"
0000215870,19/07/2023,Newline Anglia Ltd,Waste Mgmt - Clothing,Protective Clothing - Clothing & Uniform,255
0000215873,19/07/2023,Centre for Governance and Scrutiny,Asst Directors - Seminars,Conferences - Seminars & Meetings,390
0000215874,02/08/2023,De Salis Hotel,Homelessness - Emergency Response Supplies,Covid 19 - Emergency Response Supplies,390
0000215881,19/07/2023,Saffron Vantage Ltd,Waste Mgmt - Agency Staff,Agency Staff (Professional),"3,764.85"
0000215882,19/07/2023,Saffron Vantage Ltd,Street Clnsing - Agency Staff,Agency Staff (Professional),828
0000215883,19/07/2023,H B Commercial Ltd,Vehicle Maint - Other Mats,Maintenance,-394.26
0000215884,19/07/2023,H B Commercial Ltd,Vehicle Maint - Other Mats,Maintenance,-379.48
0000215887,19/07/2023,Braintree District Council,Animal Warden - Accommodation,Kennel Services - Accomodation,"1,009.38"
0000215888,19/07/2023,Opus People Solution Ltd,Housing Servs - Agency Staff,Agency Staff (Professional),850
0000215892,19/07/2023,Central Tyre Limited,Vehicle Maint - Other Mats,Waste Management - Materials,"1,611.00"
0000215895,19/07/2023,N&P Crayford MRF Ltd,Waste Mgmt - Mat Rec Fac,Waste Recycling - Materials Recycling,"68,722.72"
0000215896,19/07/2023,H B Commercial Ltd,Vehicle Maint - Other Mats,Waste Management - Materials,795.75
0000215902,19/07/2023,Teignbridge District Council,KJA Project - Fees,Partnerships - Fees,291.67
0000215917,19/07/2023,Senne Safety Solutions,S/W Offices - Cap Wk L&B,Capital Works - Land & Buildings,800
0000215918,19/07/2023,Goss Interactive Ltd,Info Tech - Support Costs,ICT Maintenance/Support - Support Costs,"3,720.00"
0000215919,19/07/2023,Goss Interactive Ltd,Info Tech - Support Costs,ICT Maintenance/Support - Support Costs,588
0000215920,19/07/2023,Goss Interactive Ltd,Info Tech - Support Costs,ICT Maintenance/Support - Support Costs,"14,340.00"
0000215925,19/07/2023,The Enterprise East Group CIC,Health Imp - Seminars,Room Hire - Seminars & Meetings,300
0000215928,19/07/2023,Wimbish Parish Council,Climate Change - Fees,Fees,"2,120.00"
0000215929,19/07/2023,Malthouse Security Ltd,S/W Offices - Cap Wk L&B,Capital Works - Land & Buildings,"1,760.00"
0000215930,19/07/2023,Birketts LLP,Legal Services - Legal Fees,Legal Services - Legal Fees,"1,674.00"
0000215931,19/07/2023,Birketts LLP,Legal Services - Legal Fees,Legal Services - Legal Fees,375
0000215932,19/07/2023,Birketts LLP,Legal Services - Legal Fees,Legal Services - Legal Fees,375
0000215933,19/07/2023,Birketts LLP,Legal Services - Legal Fees,Legal Services - Legal Fees,375
0000215934,19/07/2023,NewAuto Ltd T/A Mogo,Licensing - Other Mats,Signage - Other Materials,"3,246.90"
0000215935,19/07/2023,Sellick Partnership Ltd,Legal Services - Agency Staff,Industrial Operatives - Agency Staff,"2,577.48"
0000215937,19/07/2023,6 Pump Court Chambers,Legal Services - Legal Fees,Legal Services - Legal Fees,"15,000.00"
0000215938,19/07/2023,G2 Recruitment Solutions,Legal Services - Legal Fees,Legal Services - Legal Fees,"4,680.00"
0000215939,19/07/2023,Porterhouse Building & Fire Solutions Lt,S/W Offices - Cap Wk L&B,Capital Works - Land & Buildings,320
0000215940,19/07/2023,Porterhouse Building & Fire Solutions Lt,S/W Offices - Cap Wk L&B,Capital Works - Land & Buildings,638.08
0000215946,19/07/2023,Royal Mail Group Ltd,Elections - Postage,Postage,"2,073.40"
0000215949,19/07/2023,The Oyster Partnership Ltd,Plan Policy - Consultants,Consultants - General,"2,720.00"
0000215950,19/07/2023,Tetra Tech,Plan Policy - Consultants,Consultants - General,"20,660.00"
0000215951,19/07/2023,Park Avenue Recruitment Ltd,Plan Policy - Consultants,Consultants - General,"2,035.00"
0000215952,19/07/2023,Cornerstone Barristers,Plan Policy - Legal Fees,Legal Services - Legal Fees,525
0000215955,26/07/2023,One51 ES Plastics UK t/a MGB Plastics,Containers - Cap Pur P&E,Capital Purchases - Plant & Equipment,"12,449.60"
0000215956,26/07/2023,G.H.B,Elections - Equipment,Tools/Equipment (Hire) - Equipment,"1,100.00"
0000215957,26/07/2023,Altair Consultancy and Advisory Services,Dev't Control - Consultants,Consultants - General,"3,200.00"
0000215958,26/07/2023,Monica Askay T/A Askays,Museum S/W - Other Agency,Agency&Temp Staff (Prof) -Other Agencies,275
0000215959,26/07/2023,Central Tyre Limited,Vehicle Maint - Other Mats,Waste Management - Materials,"1,889.70"
0000215960,26/07/2023,Dennis Eagle Limited,Vehicle Maint - Other Mats,Waste Management - Materials,584.16
0000215961,26/07/2023,Dennis Eagle Limited,Vehicle Maint - Other Mats,Waste Management - Materials,584.16
0000215963,26/07/2023,Ingleton Wood,Property Servs Business Plan,Housing Dev - Business Plan,"5,000.00"
0000215964,26/07/2023,Saunders Boston Ltd,Parkside - Cap Wk L&B,Consultancy (Prop Works)- Cap Wk L&B,"2,950.00"
0000215965,26/07/2023,Essex County Council,Dev Ctrl Appls - Consultants,Consultants - General,886
0000215969,26/07/2023,The Oyster Partnership Ltd,Dev't Control - Agency Staff,Agency Staff (Professional),"1,882.19"
0000215970,26/07/2023,Sundry BACS,Debtors Control Refunds,Refund,303.36
0000215977,26/07/2023,Sundry BACS,Hsg Rent Refunds Movements,Housing rent ,"2,568.90"
0000215979,26/07/2023,Encore Envelopes Ltd,Revenues Admin - Stationery,Stationery,"1,040.00"
0000215980,26/07/2023,Newsquest Media Group Ltd,Dev't Control - Advertising,Advertising,686
0000215982,26/07/2023,Michael Page International Recruitment,Property Servs - Consultants,Consultants,"-15,800.00"
0000215983,26/07/2023,Park Avenue Recruitment Ltd,Plan Policy - Consultants,Consultants - General,"2,035.00"
0000215991,26/07/2023,Sellick Partnership Ltd,Legal Services - Agency Staff,Industrial Operatives - Agency Staff,"1,961.00"
0000215992,26/07/2023,Dixon Searle Partnership Ltd,Plan Policy - Consultants,Consultants - General,"1,650.00"
0000215996,26/07/2023,Marlin Global Services Ltd - T/A Prokill,Canfield Offices - Pl Repairs,Pest & Animal Control - Planned Repairs,448.26
0000215997,26/07/2023,VisitEngland,Museum S/W - Subscriptions,Subscriptions,251.98
0000215999,26/07/2023,British Heart Foundation,Waste Mgmt - Disposal Chg,Recycling - Waste Disposal,251.05
0000216000,26/07/2023,DNU Northumbrian Water Limited,Environmental Protection - Oth Prof Fees,Forensic & Lab Testing - Oth Prof Fees,809.44
0000216001,26/07/2023,Michael Page International Recruitment,Property Servs - Consultants,Consultants - General,"16,800.00"
0000216002,26/07/2023,Cornerstone Barristers,Legal Services - Fees,Legal Services - Fees,"2,200.00"
0000216003,26/07/2023,Gipping Construction Limited,Walden Pl Shelt - Cap Wk L&B,Capital Works - Land & Buildings,"153,072.12"
0000216004,26/07/2023,Vivid Resourcing Ltd,Env Protection - Consultants,Consultants - General,546.24
0000216005,26/07/2023,Enable Access LTD,Dis Facil Grt - Cap Grt L&B,Grants - S106 Cap Grt L&B,"5,609.00"
0000216006,26/07/2023,Dennis Eagle Limited,Vehicle Maint - Other Mats,Waste Management - Materials,576.37
0000216007,26/07/2023,Dennis Eagle Limited,Vehicle Maint - Other Mats,Waste Management - Materials,698.32
0000216009,26/07/2023,Keep IT Simple Stationery Ltd,Info Tech - Equipment,ICT Consumables - Equipment,300
0000216019,02/08/2023,Dunmow Skips Ltd,Street Clnsing - Disposal Chg,Waste Recycling - Disposal Charge,783.2
0000216020,02/08/2023,Dunmow Skips Ltd,Street Clnsing - Disposal Chg,Waste Recycling - Disposal Charge,520
0000216022,26/07/2023,V G Nash & Son,Vehicle Maint - Other Mats,Vehicle Parts - Other Materials,440
0000216023,26/07/2023,Innovate Healthcare Management Group,Street Clnsing - Medic Other,Assessment - Medical Other,653
0000216024,26/07/2023,Good People Recycling Ltd,Grounds Mtce  - Agency Staff,Agency Staff (Professional),"1,961.00"
0000216025,26/07/2023,Good People Recycling Ltd,Waste Mgmt - Agency Staff,Agency Staff (Professional),"4,438.82"
0000216026,26/07/2023,Saffron Walden Town Council,NHB Ward Member - Grants,Grant,518
0000216028,26/07/2023,Driver Hire Chelmsford,Waste Mgmt - Agency Staff,Agency Staff (Professional),"1,346.25"
0000216029,26/07/2023,Muirs Vehicle Services Ltd,Vehicle Maint - Other Mats,Waste Management - Materials,302.84
0000216030,26/07/2023,G2 Recruitment Solutions,Legal Services - Legal Fees,Legal Services - Legal Fees,"2,437.50"
0000216032,02/08/2023,Carrington West Ltd,Dev't Control - Agency Staff,Agency Staff (Professional),"1,887.00"
0000216033,26/07/2023,Vivid Resourcing Ltd,Dev't Control - Agency Staff,Agency Staff (Professional),"1,517.00"
0000216034,26/07/2023,Carrington West Ltd,Dev't Control - Agency Staff,Agency Staff (Professional),"1,887.00"
0000216035,26/07/2023,Dennis Eagle Limited,Vehicle Maint - Other Mats,Waste Management - Materials,469.18
0000216036,26/07/2023,Dennis Eagle Limited,Vehicle Maint - Other Mats,Waste Management - Materials,"1,450.00"
0000216037,26/07/2023,Saffron Vantage Ltd,Waste Mgmt - Agency Staff,Agency Staff (Professional),"3,551.08"
0000216038,02/08/2023,Vivid Resourcing Ltd,Dev't Control - Agency Staff,Agency Staff (Professional),"2,035.00"
0000216039,26/07/2023,The Oyster Partnership Ltd,Dev't Control - Agency Staff,Agency Staff (Professional),"1,725.03"
0000216041,26/07/2023,Dennis Eagle Limited,Vehicle Maint - Other Mats,Waste Management - Materials,"1,797.65"
0000216043,26/07/2023,Logistics UK,Street Serv Man - Prof Training,Training,"1,692.00"
0000216044,26/07/2023,Cambridge City Council 3C Building Contr,KJA Project - Fees,Partnerships - Fees,360
0000216050,26/07/2023,Opus People Solution Ltd,Housing Servs - Agency Staff,Agency Staff (Professional),"4,250.00"
0000216052,26/07/2023,Dennis Eagle Limited,Vehicle Maint - Other Mats,Waste Management - Materials,422.54
0000216054,26/07/2023,Dennis Eagle Limited,Vehicle Maint - Other Mats,Waste Management - Materials,431.31
0000216055,26/07/2023,Dennis Eagle Limited,Vehicle Maint - Other Mats,Waste Management - Materials,326.91
0000216057,26/07/2023,Dennis Eagle Limited,Vehicle Maint - Other Mats,Waste Management - Materials,944.49
0000216058,20/09/2023,British Fossils,Museum Shop - Resale Stock,Museum & Arts - Stock for Resale,297.5
0000216060,26/07/2023,The Institute of Licensing (Events) Ltd,Licensing - Other Mats,Signage - Other Materials,"1,705.10"
0000216061,02/08/2023,Sundry BACS,Hsg Rent Refunds Movements,Housing rents,608.87
0000216062,26/07/2023,Little Hallingbury Parish Council,Community Grt - Cap Grt P&E,Grant,400
0000216063,26/07/2023,Calders Conferences Ltd,Homelessness - Emergency Response Supplies,Covid 19 - Emergency Response Supplies,"9,687.50"
0000216065,26/07/2023,Regency Guarding & Events Ltd,Sheltered Hsg - Ad Hoc Repair,General Materials - Ad hoc Repair,"1,512.00"
0000216066,26/07/2023,Radwinter Recreation Ground Charity,Climate Change - Fees,Fees,"7,500.00"
0000216072,26/07/2023,Saffron Vantage Ltd,Waste Mgmt - Agency Staff,Agency Staff (Professional),"3,328.60"
0000216073,26/07/2023,Saffron Vantage Ltd,Grounds Mtce  - Agency Staff,Agency Staff (Professional),680.8
0000216074,26/07/2023,Saffron Vantage Ltd,Street Clnsing - Agency Staff,Agency Staff (Professional),855.6
0000216075,26/07/2023,Source 24/7 LTD,Waste Mgmt - Agency Staff,Agency Staff (Professional),930.62
0000216077,26/07/2023,Nickolds HMO Management & Maintenance,Homelessness - Accommodation,Homelessness - Accommodation,385
0000216078,26/07/2023,Nickolds HMO Management & Maintenance,Homelessness - Accommodation,Homelessness - Accommodation,595
0000216079,26/07/2023,Nickolds HMO Management & Maintenance,Homelessness - Accommodation,Homelessness - Accommodation,315
0000216081,26/07/2023,Nickolds HMO Management & Maintenance,Homelessness - Accommodation,Homelessness - Accommodation,315
0000216087,26/07/2023,Birketts LLP,Legal Services - Legal Fees,Legal Services - Legal Fees,750
0000216096,02/08/2023,Sundry BACS,NHB Ward Member - Grants,Grant,300
0000216098,02/08/2023,Dennis Eagle Limited,Vehicle Maint - Other Mats,Waste Management - Materials,"3,294.98"
0000216099,02/08/2023,Dennis Eagle Limited,Vehicle Maint - Other Mats,Waste Management - Materials,650.64
0000216100,02/08/2023,Good People Recycling Ltd,Grounds Mtce  - Agency Staff,Agency Staff (Professional),"1,961.00"
0000216101,02/08/2023,Good People Recycling Ltd,Waste Mgmt - Agency Staff,Agency Staff (Professional),"6,786.07"
0000216102,02/08/2023,Provide Care Solutions,Sheltered Hsg - Oth Loc Auth,Social&Community Care Misc - Oth Loc Aut,"5,558.42"
0000216103,02/08/2023,Provide Care Solutions,Sheltered Hsg - Oth Loc Auth,Social&Community Care Misc - Oth Loc Aut,"5,558.42"
0000216105,02/08/2023,General Business Holdings Ltd,Waste Mgmt - Disposal Chg,Waste Disposal - Disposal Charge,"2,223.38"
0000216107,02/08/2023,Mark Liell & Son LLP,Commercial Asset Mgt - Fees,Partnerships - Fees,"11,013.25"
0000216108,02/08/2023,Mark Liell & Son LLP,Commercial Asset Mgt - Fees,Partnerships - Fees,"8,140.00"
0000216109,02/08/2023,Mark Liell & Son LLP,Commercial Asset Mgt - Fees,Partnerships - Fees,"11,356.25"
0000216110,02/08/2023,Mark Liell & Son LLP,Commercial Asset Mgt - Fees,Partnerships - Fees,"11,467.25"
0000216117,02/08/2023,De Salis Hotel,Homelessness - Emergency Response Supplies,Emergency response,"3,261.67"
0000216118,02/08/2023,North West Leicestershire District Counc,KJA Project - Fees,Fees,275
0000216119,02/08/2023,Oasis Hotel Harlow Limited,Homelessness - Accommodation,Accomodation ,"3,950.00"
0000216120,02/08/2023,Sundry BACS,NHB Ward Member - Grants,Grant ,300
0000216121,02/08/2023,The Oyster Partnership Ltd,Plan Policy - Consultants,Consultants - General,"2,720.00"
0000216122,02/08/2023,Saffron Vantage Ltd,Waste Mgmt - Agency Staff,Agency Staff (Professional),"4,800.45"
0000216123,02/08/2023,Saffron Vantage Ltd,Grounds Mtce  - Agency Staff,Agency Staff (Professional),"1,223.60"
0000216124,02/08/2023,Saffron Vantage Ltd,Grounds Mtce  - Agency Staff,Agency Staff (Professional),"1,223.60"
0000216125,02/08/2023,Saffron Vantage Ltd,Street Clnsing - Agency Staff,Agency Staff (Professional),690
0000216126,02/08/2023,Goodman Masson Ltd,Property Servs - Consultants,Consultants - General,"2,250.00"
0000216127,02/08/2023,Terberg Matec UK Ltd,Vehicle Maint - Other Mats,Waste Management - Materials,"1,698.40"
0000216129,02/08/2023,Goodman Masson Ltd,Property Servs - Consultants,Consultants - General,595
0000216130,02/08/2023,Ideagen Gael Ltd,Performance - Seminars,Room Hire - Seminars & Meetings,"2,600.00"
0000216134,02/08/2023,Nickolds HMO Management & Maintenance,Homelessness - Prevention,Homelessness - Emergency Supplies,600
0000216137,02/08/2023,Stace LLP,Property Servs Business Plan,Consultancy - Business Plan,"14,015.00"
0000216139,02/08/2023,Royal Mail Group Ltd,Mail Room - Postage,Postage,315
0000216140,02/08/2023,Source 24/7 LTD,Waste Mgmt - Agency Staff,Agency Staff (Professional),"1,120.42"
0000216141,02/08/2023,Source 24/7 LTD,Waste Mgmt - Agency Staff,Agency Staff (Professional),930.62
0000216142,02/08/2023,Park Avenue Recruitment Ltd,Plan Policy - Consultants,Consultants - General,"1,925.00"
0000216143,02/08/2023,Atlantis Drain & Jetting Services,S/W Offices - Cap Wk L&B,Capital Works - Land & Buildings,350
0000216144,02/08/2023,The Oyster Partnership Ltd,Plan Policy - Consultants,Consultants - General,"2,720.00"
0000216145,02/08/2023,Cartridge Save Ltd,Border Inspect - Equipment,Tools/Equipment (Purchase) - Equipment,355.25
0000216146,02/08/2023,OCN Contract Services,Homelessness - Furniture,Domestic Furniture,"1,989.00"
0000216147,02/08/2023,Good People Recycling Ltd,Waste Mgmt - Agency Staff,Agency Staff (Professional),"5,447.64"
0000216150,02/08/2023,Re-Leased Software Company Ltd,S/W Offices - Cap Wk L&B,Capital Works - Land & Buildings,"5,737.50"
0000216151,02/08/2023,Print Image Facilities LLP,Electoral Reg - Postage,Postage,"9,138.90"
0000216152,02/08/2023,The Design Partnership (Ely) Ltd,Property Servs Business Plan,Housing Dev - Business Plan,741.8
0000216153,02/08/2023,The Design Partnership (Ely) Ltd,Property Servs Business Plan,Housing Dev - Business Plan,"1,080.00"
0000216154,02/08/2023,The Design Partnership (Ely) Ltd,Unidentified New Build Sites - Cap Wk L&B,Capital - L & B,"1,424.50"
0000216165,02/08/2023,Vivid Resourcing Ltd,Env Protection - Consultants,Consultants - General,364.16
0000216166,02/08/2023,Carrington West Ltd,Dev't Control - Agency Staff,Agency Staff (Professional),"1,887.00"
0000216167,02/08/2023,Sarto Thomas Ltd,Dev't Control - Agency Staff,Agency Staff (Professional),"2,775.00"
0000216168,02/08/2023,Sarto Thomas Ltd,Dev't Control - Agency Staff,Agency Staff (Professional),"2,775.00"
0000216169,02/08/2023,The Design Partnership (Ely) Ltd,Unidentified New Build Sites - Cap Wk L&B,Capital - L & B,"2,238.95"
0000216170,02/08/2023,Vivid Resourcing Ltd,Dev't Control - Agency Staff,Agency Staff (Professional),"1,517.00"
0000216171,02/08/2023,Carrington West Ltd,Dev't Control - Agency Staff,Agency Staff (Professional),"1,887.00"
0000216172,02/08/2023,Governance Training and Consultancy Ltd,Legal Services - Fees,Legal Services - Fees,"1,125.00"
0000216173,02/08/2023,Perrin Myddelton Limited,Property Servs - Fees,Legal Services - Fees,332
0000216175,02/08/2023,Wire-Free Protection Limited,S/W Offices - Cap Wk L&B,Capital Works - Land & Buildings,"2,773.00"
0000216176,02/08/2023,Vivid Resourcing Ltd,Dev't Control - Agency Staff,Agency Staff (Professional),"1,237.50"
0000216177,02/08/2023,Sellick Partnership Ltd,Legal Services - Agency Staff,Industrial Operatives - Agency Staff,"1,961.00"
0000216178,02/08/2023,Porterhouse Building & Fire Solutions Lt,S/W Offices - Cap Wk L&B,Capital Works - Land & Buildings,370
0000216179,02/08/2023,Porterhouse Building & Fire Solutions Lt,S/W Offices - Cap Wk L&B,Capital Works - Land & Buildings,268
0000216180,02/08/2023,Newsquest Media Group Ltd,Economic Development - Advertising,Advertising,441.98
0000216181,02/08/2023,Porterhouse Building & Fire Solutions Lt,S/W Offices - Cap Wk L&B,Capital Works - Land & Buildings,"39,042.96"
0000216182,02/08/2023,Porterhouse Building & Fire Solutions Lt,S/W Offices - Cap Wk L&B,Capital Works - Land & Buildings,"11,722.50"
0000216183,02/08/2023,Porterhouse Building & Fire Solutions Lt,S/W Offices - Cap Wk L&B,Capital Works - Land & Buildings,"10,889.24"
0000216184,02/08/2023,Central Tyre Limited,Vehicle Maint - Other Mats,Waste Management - Materials,"2,234.00"
0000216185,02/08/2023,Dennis Eagle Limited,Vehicle Maint - Other Mats,Waste Management - Materials,355.65
0000216186,02/08/2023,Dennis Eagle Limited,Vehicle Maint - Other Mats,Waste Management - Materials,342.69
0000216188,02/08/2023,Good People Recycling Ltd,Grounds Mtce  - Agency Staff,Agency Staff (Professional),"1,961.00"
0000216189,02/08/2023,Good People Recycling Ltd,Waste Mgmt - Agency Staff,Agency Staff (Professional),"6,614.25"
0000216191,02/08/2023,H B Commercial Ltd,Vehicle Maint - Other Mats,Waste Management - Materials,350.93
0000216196,02/08/2023,Newline Anglia Ltd,Waste Mgmt - Clothing,Protective Clothing - Clothing & Uniform,273.8
0000216197,02/08/2023,Terberg Matec UK Ltd,Vehicle Maint - Other Mats,Waste Management - Materials,"2,342.07"
0000216199,02/08/2023,Newsquest Media Group Ltd,Dev't Control - Advertising,Advertising,871.4
0000216200,02/08/2023,Porterhouse Building & Fire Solutions Lt,S/W Offices - Cap Wk L&B,Capital Works - Land & Buildings,"7,244.28"
0000216201,02/08/2023,Northumbrian Water Ltd,S/W Offices - Cap Wk L&B,Capital Works - Land & Buildings,527.68
0000216202,02/08/2023,Porterhouse Building & Fire Solutions Lt,S/W Offices - Cap Wk L&B,Capital Works - Land & Buildings,"1,214.15"
0000216204,02/08/2023,LAVAT Consulting Ltd T/A PSTAX,Financial Srvs - Prof Training,Training,420
0000216211,02/08/2023,Regency Guarding & Events Ltd,Sheltered Hsg - Ad Hoc Repair,General Materials - Ad hoc Repair,"1,512.00"
0000216212,02/08/2023,Locata (Housing Services) Ltd,Housing Servs - Fees,Housing (Misc) - Fees,"1,000.00"
0000216228,02/08/2023,Cooleraid Ltd,Vending Serv - Equip Rental,Vending Machines - Equip Rental,311.5
0000216231,02/08/2023,Thurrock Council,Environmental Protection - Consultants,Consultants - General,"1,623.75"
0000216232,02/08/2023,The Oyster Partnership Ltd,Dev't Control - Agency Staff,Agency Staff (Professional),"1,858.08"
0000216233,02/08/2023,De Salis Hotel,Homelessness - Emergency Response Supplies,Covid 19 - Emergency Response Supplies,525
0000216234,02/08/2023,Socotec UK Ltd,Air/Noise Pol - Equip Maint,Monitoring (Environmental) - Equip Maint,"1,677.00"
0000216236,02/08/2023,Opus People Solution Ltd,Housing Servs - Agency Staff,Agency Staff (Professional),"3,400.00"
0000216238,02/08/2023,Nickolds HMO Management & Maintenance,Homelessness - Accommodation,Homelessness - Accommodation,315
0000216239,02/08/2023,Nickolds HMO Management & Maintenance,Homelessness - Accommodation,Homelessness - Accommodation,385
0000216241,02/08/2023,Dinky Dragons,NHB Ward Member - Grants,Grant,300
0000216242,02/08/2023,The Association of Building Engineers,Bldg Surveying - Subscriptions,Subscriptions,295
0000216243,02/08/2023,Daisy Corporate Services Trading Limited,Telephones - Telephones,Telecommunications - Telephones,"1,557.69"
0000216245,09/08/2023,Sundry BACS,Street Serv Man - Legal Fees,Fees,350
0000216246,02/08/2023,Browne Jacobson LLP,Property Servs Business Plan,Housing Dev - Business Plan,"5,510.60"
0000216247,02/08/2023,Rossi Long Consulting Ltd,Unidentified New Build Sites - Cap Wk L&B,Capital - L & B,285
0000216248,02/08/2023,Rossi Long Consulting Ltd,Unidentified New Build Sites - Cap Wk L&B,Capital - L & B,345
0000216249,02/08/2023,Sellick Partnership Ltd,Legal Services - Agency Staff,Industrial Operatives - Agency Staff,"2,480.23"
0000216251,02/08/2023,Proline Solutions Ltd,Print Room - Equip Maint,Reprographics - Equip Maint,250
0000216252,02/08/2023,Treecology,Grounds Mtce  - External Contracts,Tree Trimming - Grounds Maint,600
0000216255,02/08/2023,De Salis Hotel,Homelessness - Emergency Response Supplies,Covid 19 - Emergency Response Supplies,441
0000216256,09/08/2023,The Monarch Partnership,Climate Change - Consultants,Consultants - General,360
0000216257,09/08/2023,SGS (formally Concept Life Sciences),Border Inspect - Oth Prof Fees,Forensic & Lab Testing - Oth Prof Fees,561.02
0000216259,09/08/2023,WP Plumbing and Heating,S/W Offices - Cap Wk L&B,Capital Works - Land & Buildings,486
0000216260,09/08/2023,Sellick Partnership Ltd,Legal Services - Agency Staff,Industrial Operatives - Agency Staff,"1,961.00"
0000216266,09/08/2023,Saffron Walden Youth Outreach Project,Chmans Charity Movemt in year,Chairman's charity ,720
0000216267,09/08/2023,Uttlesford Norse Ltd.,Voids Prog - Cap Rep L&B,Buildings Repair/Maint - Cap Rep L&B,"92,033.33"
0000216268,09/08/2023,Uttlesford Norse Ltd.,Norse Partnership Estates - Fees,Partnerships - Fees,"19,100.25"
0000216268,09/08/2023,Uttlesford Norse Ltd.,Norse Partnership Hsg Rep - Fees,Partnerships - Fees,"166,399.33"
0000216268,09/08/2023,Uttlesford Norse Ltd.,Norse Partnership Sheltered - Fees,Partnerships - Fees,"10,809.33"
0000216268,09/08/2023,Uttlesford Norse Ltd.,Norse Partnership Sewerage - Fees,Partnerships - Fees,"4,604.42"
0000216269,09/08/2023,Uttlesford Norse Ltd.,Norse Partnership Hsg Rep - Fees,Partnerships - Fees,"42,286.45"
0000216270,09/08/2023,Uttlesford Norse Ltd.,Norse Partnership Admin - Fees,Partnerships - Fees,"30,785.59"
0000216270,09/08/2023,Uttlesford Norse Ltd.,Norse Partnership Hsg Rep - Fees,Partnerships - Fees,"56,034.26"
0000216271,09/08/2023,Dunmow Skips Ltd,Street Clnsing - Disposal Chg,Waste Recycling - Disposal Charge,520
0000216273,09/08/2023,Henham and Ugley Primary and Nursery Sch,NHB Ward Member - Grants,Grant,500
0000216275,09/08/2023,Saffron Vantage Ltd,Waste Mgmt - Agency Staff,Agency Staff (Professional),"4,680.97"
0000216276,09/08/2023,Saffron Vantage Ltd,Grounds Mtce  - Agency Staff,Agency Staff (Professional),680.8
0000216277,09/08/2023,Source 24/7 LTD,Waste Mgmt - Agency Staff,Agency Staff (Professional),930.62
0000216278,09/08/2023,WasteParts UK Ltd,Vehicle Maint - Other Mats,Waste Management - Materials,"1,212.68"
0000216279,09/08/2023,WasteParts UK Ltd,Vehicle Maint - Other Mats,Waste Management - Materials,436.17
0000216281,09/08/2023,Tudor UK Ltd t/a Tudor Environmental,Grounds Mtce  - Other Mats,Waste Management - Materials,271.5
0000216282,09/08/2023,Writtle College,Grounds Mtce  - Prof Training,Training,"2,600.00"
0000216283,09/08/2023,Positive Waste Solutions Ltd,Street Clnsing - Other Mats,Waste Management - Materials,300
0000216284,09/08/2023,Newsquest Media Group Ltd,Dev't Control - Advertising,Advertising,933.2
0000216286,09/08/2023,Mark Liell & Son LLP,Commercial Asset Mgt - Fees,Partnerships - Fees,"3,750.00"
0000216287,09/08/2023,Keep IT Simple Stationery Ltd,Info Tech - Equipment,ICT Consumables - Equipment,418
0000216291,09/08/2023,Sundry BACS,Staff AVCs Movemt in year,Staff AVC movement ,500
0000216293,09/08/2023,MPS (UK) Limited,S/W Offices - Cap Wk L&B,Capital Works - Land & Buildings,"9,259.00"
0000216294,09/08/2023,Uttlesford Norse Ltd.,Norse Partnership Asset Mgt - Fees,Partnerships - Fees,"15,560.42"
0000216294,09/08/2023,Uttlesford Norse Ltd.,Norse Partnership Cleaning - Fees,Partnerships - Fees,"20,841.33"
0000216295,09/08/2023,Porterhouse Building & Fire Solutions Lt,S/W Offices - Cap Wk L&B,Capital Works - Land & Buildings,"2,687.34"
0000216296,09/08/2023,Porterhouse Building & Fire Solutions Lt,DC Dunmow - Other Mats,Health & Saftey - Other Materials,"4,533.42"
0000216297,09/08/2023,Porterhouse Building & Fire Solutions Lt,S/W Offices - Cap Wk L&B,Capital Works - Land & Buildings,778
0000216298,09/08/2023,Porterhouse Building & Fire Solutions Lt,S/W Offices - Cap Wk L&B,Capital Works - Land & Buildings,708
0000216299,09/08/2023,Porterhouse Building & Fire Solutions Lt,S/W Offices - Cap Wk L&B,Capital Works - Land & Buildings,798.72
0000216300,09/08/2023,Porterhouse Building & Fire Solutions Lt,S/W Offices - Cap Wk L&B,Capital Works - Land & Buildings,642.08
0000216302,09/08/2023,Quendon & Rickling Parish Council,Community Grt - Cap Grt P&E,Grant,845.58
0000216303,09/08/2023,Hempstead Parish Council,Community Grt - Cap Grt P&E,Grant ,348.55
0000216304,09/08/2023,TouchPoint,Comm Partnerships Emergency Response Supplies,Emergency response,"3,000.00"
0000216305,09/08/2023,Sundry BACS,Hsg Rent Refunds Movements,Housing rent ,276.21
0000216306,09/08/2023,Bytes Software Services,Info Tech - Support Costs,ICT Maintenance/Support - Support Costs,"2,512.50"
0000216307,09/08/2023,Thaxted Parish Council,Loc Amenities - Grants,Grant,"6,720.00"
0000216308,09/08/2023,Driver Hire Chelmsford,Waste Mgmt - Agency Staff,Agency Staff (Professional),"1,328.30"
0000216309,09/08/2023,Lindstrom Ltd,Vehicle Maint - Other Mats,Waste Management - Materials,469
0000216310,09/08/2023,WTL Truck Centres,Vehicle Maint - Other Mats,Vehicle Parts - Other Materials,403.93
0000216311,09/08/2023,WTL Truck Centres,Vehicle Maint - Other Mats,Vehicle Parts - Other Materials,288.87
0000216314,09/08/2023,TouchPoint,DC Stansted - Grants,Charitable Grants,"5,000.00"
0000216315,09/08/2023,Solace Group,Chief Exec - Seminars,Conferences - Seminars & Meetings,525
0000216318,09/08/2023,Widdington Parish Council,Community Grt - Cap Grt P&E,Grant,446.24
0000216319,09/08/2023,High Easter FC,NHB Ward Member - Grants,Grant,500
0000216321,09/08/2023,Positive Waste Solutions Ltd,Street Clnsing - Disposal Chg,Waste Collection - Waste Disposal,300
0000216323,09/08/2023,David Wilson Homes,Woodlands - Cap Wk L&B,Capital Works - Land & Buildings,"240,241.45"
0000216324,09/08/2023,David Wilson Homes,Woodlands - Cap Wk L&B,Capital Works - Land & Buildings,"135,612.47"
0000216333,09/08/2023,Essex County Council,Specialists - Conservation - Consultants,Consultants - General,"9,906.13"
0000216334,09/08/2023,Carrington West Ltd,Dev't Control - Agency Staff,Agency Staff (Professional),"1,887.00"
0000216335,09/08/2023,Sarto Thomas Ltd,Dev't Control - Agency Staff,Agency Staff (Professional),"2,831.25"
0000216336,09/08/2023,Carrington West Ltd,Dev't Control - Agency Staff,Agency Staff (Professional),"1,887.00"
0000216337,09/08/2023,Perrin Myddelton Limited,Property Servs - Fees,Legal Services - Fees,967.5
0000216338,09/08/2023,Perrin Myddelton Limited,Property Servs - Fees,Legal Services - Fees,262.5
0000216339,09/08/2023,Perrin Myddelton Limited,Property Servs - Fees,Legal Services - Fees,525
0000216340,09/08/2023,Perrin Myddelton Limited,Property Servs - Fees,Legal Services - Fees,317.5
0000216342,09/08/2023,Perrin Myddelton Limited,Property Servs - Fees,Legal Services - Fees,595
0000216345,09/08/2023,N&P Crayford MRF Ltd,Waste Mgmt - Mat Rec Fac,Waste Recycling - Materials Recycling,"64,353.72"
0000216347,09/08/2023,Perrin Myddelton Limited,Property Servs - Fees,Legal Services - Fees,472.5
0000216348,09/08/2023,Perrin Myddelton Limited,Property Servs - Fees,Legal Services - Fees,"1,328.00"
0000216349,09/08/2023,Perrin Myddelton Limited,Housing Servs - Legal Fees,Legal Services - Legal Fees,560
0000216350,09/08/2023,Perrin Myddelton Limited,Housing Servs - Legal Fees,Legal Services - Legal Fees,665
0000216352,09/08/2023,Oak Tree Management & Training Limited,Waste Mgmt - Prof Training,Training,895
0000216353,09/08/2023,International Parking Systems (UK) Ltd,CP Overheads - Equip Rental,Office & Reprographics -Equipment Rental,332.5
0000216354,09/08/2023,International Parking Systems (UK) Ltd,CP Overheads - Bank Charges,Bank Charges,"5,430.56"
0000216357,09/08/2023,The Oyster Partnership Ltd,Dev't Control - Agency Staff,Agency Staff (Professional),"2,025.17"
0000216358,09/08/2023,Goodman Masson Ltd,Property Servs - Consultants,Consultants - General,"2,250.00"
0000216359,09/08/2023,Goodman Masson Ltd,Property Servs - Consultants,Consultants - General,"1,800.00"
0000216360,09/08/2023,Dennis Eagle Limited,Vehicle Maint - Other Mats,Waste Management - Materials,354.65
0000216361,09/08/2023,Driver Hire Chelmsford,Waste Mgmt - Agency Staff,Agency Staff (Professional),"1,162.26"
0000216362,09/08/2023,General Business Holdings Ltd,Waste Mgmt - Disposal Chg,Waste Disposal - Disposal Charge,"2,423.22"
0000216363,09/08/2023,Good People Recycling Ltd,Grounds Mtce  - Agency Staff,Agency Staff (Professional),"1,961.00"
0000216364,09/08/2023,Good People Recycling Ltd,Waste Mgmt - Agency Staff,Agency Staff (Professional),"4,080.07"
0000216371,09/08/2023,Safetykleen UK Ltd,Vehicle Maint - Other Mats,Waste Management - Materials,521.17
0000216372,09/08/2023,Source 24/7 LTD,Waste Mgmt - Agency Staff,Agency Staff (Professional),930.62
0000216375,09/08/2023,WTL Truck Centres,Vehicle Maint - Other Mats,Vehicle Parts - Other Materials,630
0000216378,09/08/2023,Goodman Masson Ltd,Property Servs - Consultants,Consultants - General,"2,925.00"
0000216379,09/08/2023,Tradition (UK) Ltd,Treasury Man - Fees,Financial Services - Borrowing Fees,"8,128.76"
0000216380,09/08/2023,Imperial Treasury Services Ltd,Treasury Man - Fees,Financial Services - Borrowing Fees,"1,715.07"
0000216382,09/08/2023,William I Sargent,Museum S/W - Other Agency,Agency&Temp Staff (Prof) -Other Agencies,"1,300.00"
0000216383,09/08/2023,Tullett Prebon Group Ltd,Treasury Man - Fees,Financial Services - Borrowing Fees,"11,295.89"
0000216386,09/08/2023,Haymarket Media Group Ltd,Dev't Control - Fees,Advertising - Fees,"3,250.00"
0000216387,09/08/2023,BGC Brokers,Treasury Man - Fees,Financial Services - Borrowing Fees,"3,753.42"
0000216389,09/08/2023,The Planning Officers Society,Dev't Control - Subscriptions,Subscriptions,250
0000216390,09/08/2023,PCG Projects,Air Pollution - Equip Maint,Monitoring (Environmental) - Equip Maint,"1,757.85"
0000216399,09/08/2023,Malthouse Security Ltd,Sheltered Hsg - Ad Hoc Repair,General Materials - Ad hoc Repair,"1,163.16"
0000216400,09/08/2023,Cornerstone Barristers,Plan Policy - Legal Fees,Legal Services - Legal Fees,"1,425.00"
0000216401,09/08/2023,Opus People Solution Ltd,Housing Servs - Agency Staff,Agency Staff (Professional),"3,400.00"
0000216402,09/08/2023,Park Avenue Recruitment Ltd,Plan Policy - Consultants,Consultants - General,"1,980.00"
0000216403,09/08/2023,Phil Jones Associates Ltd,Climate Change - Consultants,Consultants - General,"4,786.00"
0000216404,09/08/2023,The Oyster Partnership Ltd,Plan Policy - Consultants,Consultants - General,"2,720.00"
0000216405,09/08/2023,Novus Environmental,Border Inspect - Disposal Chg,Waste Collection - Waste Disposal,330.16
0000216409,09/08/2023,Gracelands CMS Ltd,Dis Facil Grt - Cap Grt L&B,Grants - S106 Cap Grt L&B,"5,860.59"
0000216410,09/08/2023,Gracelands CMS Ltd,Dis Facil Grt - Cap Grt L&B,Grants - S106 Cap Grt L&B,"1,510.00"
0000216411,09/08/2023,Terberg Matec UK Ltd,Waste Mgmt - Prof Training,Training,"1,200.00"
0000216416,09/08/2023,Buckingham Futures Ltd,Commercial Team - Agency Staff,Agency Staff (Professional),"1,680.00"
0000216417,09/08/2023,Vivid Resourcing Ltd,Env Protection - Consultants,Consultants - General,341.4
0000216418,30/08/2023,Keep IT Simple Stationery Ltd,Info Tech - Equipment,ICT Consumables - Equipment,"3,149.40"
0000216420,09/08/2023,WP Plumbing and Heating,S/W Offices - Cap Wk L&B,Capital Works - Land & Buildings,434
0000216421,09/08/2023,E-ON NEXT,Walpole Offices - Electricity,Utilities,745.18
0000216422,16/08/2023,Sarto Thomas Ltd,Dev't Control - Agency Staff,Agency Staff (Professional),"2,793.75"
0000216425,16/08/2023,V G Nash & Son,Waste Mgmt - Other Mats,Waste Management - Materials,410
0000216426,16/08/2023,Porterhouse Building & Fire Solutions Lt,S/W Offices - Cap Wk L&B,Capital Works - Land & Buildings,954.52
0000216427,16/08/2023,Porterhouse Building & Fire Solutions Lt,S/W Offices - Cap Wk L&B,Capital Works - Land & Buildings,"1,763.68"
0000216428,16/08/2023,Porterhouse Building & Fire Solutions Lt,S/W Offices - Cap Wk L&B,Capital Works - Land & Buildings,323.16
0000216432,16/08/2023,New Era Fuels Ltd,Fuel Stocks Purchases,Vehicle Fuel - Stock Purchases,"3,570.00"
0000216435,16/08/2023,Saffron Walden Town Council,NHB Ward Member - Grants,Grants,300
0000216436,23/08/2023,Sundry BACS,Hsg Rent Refunds Movements,Housing rent ,321.68
0000216437,16/08/2023,Newsquest Media Group Ltd,Dev't Control - Advertising,Advertising,933.2
0000216439,23/08/2023,Sundry BACS,Hsg Rent Refunds Movements,Housing rent ,300
0000216440,16/08/2023,Essex County Council,Garden Communities Delivery - Consultants,Consultants - General,"35,374.00"
0000216441,16/08/2023,Henry Riley,New Depot Associated Capital Costs,Consultancy - Associated Capital Costs,"2,000.00"
0000216442,16/08/2023,Henry Riley,New Depot Associated Capital Costs,Consultancy - Associated Capital Costs,"2,500.00"
0000216443,16/08/2023,Wavenet Ltd (Acquired Adept on 12/4/23),Info Tech - Support Costs,ICT Maintenance/Support - Support Costs,349.57
0000216444,16/08/2023,Mr Colin Banks,Street Signs    - Contractors,Works Consultancy - Contractors,905
0000216446,16/08/2023,Sellick Partnership Ltd,Legal Services - Agency Staff,Industrial Operatives - Agency Staff,"2,583.33"
0000216447,16/08/2023,Sellick Partnership Ltd,Legal Services - Agency Staff,Industrial Operatives - Agency Staff,"2,255.02"
0000216448,16/08/2023,Local Government Association,Democratic Rep - Prof Training,Training,"2,000.00"
0000216449,16/08/2023,Berendsen UK Ltd,Vehicle Maint - Other Mats,Waste Management - Materials,476.96
0000216452,16/08/2023,Saffron Vantage Ltd,Grounds Mtce  - Agency Staff,Agency Staff (Professional),"1,361.60"
0000216453,16/08/2023,Saffron Vantage Ltd,Street Clnsing - Agency Staff,Agency Staff (Professional),386.4
0000216454,16/08/2023,Terberg Matec UK Ltd,Vehicle Maint - Other Mats,Waste Management - Materials,"1,855.30"
0000216456,16/08/2023,WTL Truck Centres,Vehicle Maint - Other Mats,Vehicle Parts - Other Materials,690.1
0000216457,16/08/2023,G2 Recruitment Solutions,Legal Services - Legal Fees,Legal Services - Legal Fees,"2,437.50"
0000216458,16/08/2023,Print Image Facilities LLP,Town Centre Init - Printing,Printing,400
0000216459,23/08/2023,E Rand & Sons Ltd,Vehicle Maint - Other Mats,Vehicle Parts - Other Materials,"4,900.00"
0000216460,16/08/2023,Positive Waste Solutions Ltd,Street Clnsing - Disposal Chg,Waste Collection - Waste Disposal,"2,316.00"
0000216461,16/08/2023,Positive Waste Solutions Ltd,Street Clnsing - Disposal Chg,Waste Collection - Waste Disposal,"1,195.00"
0000216462,16/08/2023,Riverside Truck Rental Ltd,Green Waste - Contract Hire,Vehicle Hire,"5,040.00"
0000216463,16/08/2023,Haydens Heating Services Ltd,S/W Offices - Cap Wk L&B,Capital Works - Land & Buildings,"14,924.19"
0000216470,16/08/2023,Teignbridge District Council,KJA Project - Fees,Partnerships - Fees,583.33
0000216492,16/08/2023,Harrison Cantel,Economic Development - Consultants,Consultants - General,"2,000.00"
0000216494,23/08/2023,Mackman Ltd,Economic Development - Consultants,Consultants - General,"2,481.25"
0000216495,23/08/2023,Mackman Ltd,Economic Development - Consultants,Consultants - General,"2,481.25"
0000216496,16/08/2023,Calders Conferences Ltd,Homelessness - Emergency Response Supplies,Covid 19 - Emergency Response Supplies,"9,328.00"
0000216497,16/08/2023,Clavering Bowls Club,Community Grt - Cap Grt P&E,Grant,450
0000216499,23/08/2023,Print Image Network Limited,Electoral Reg - Printing,Printing,"5,436.95"
0000216500,16/08/2023,Lightwood Plc,New Depot Associated Capital Costs,Buildings Repair - Associated Cap Costs,"7,480.80"
0000216501,16/08/2023,Imperial Treasury Services Ltd,Treasury Man - Fees,Financial Services - Borrowing Fees,700
0000216503,16/08/2023,Regency Guarding & Events Ltd,Sheltered Hsg - Ad Hoc Repair,General Materials - Ad hoc Repair,"1,512.00"
0000216513,16/08/2023,Affinity Water,Common Servs - Water,Corporate Asset - Utilities ,"1,535.12"
0000216514,16/08/2023,Castle Water Limited,Thaxted CIC - Water,Corporate Asset - Utilities ,978.48
0000216515,16/08/2023,Wavenet Ltd (Acquired Adept on 12/4/23),Info Tech - Support Costs,ICT Maintenance/Support - Support Costs,"3,668.06"
0000216517,16/08/2023,Thaxted Day Centre,DC Thaxted - Other Mats,Soft Furnishing - Other Materials,"16,000.00"
0000216519,16/08/2023,Total Gas & Power Limited,Thaxted CIC - Gas,Corporate Asset - Utilities ,"20,244.99"
0000216520,16/08/2023,British Gas Business,Common Servs - Electricity,Corporate Asset - Utilities ,698.59
0000216521,16/08/2023,Nickolds HMO Management & Maintenance,Homelessness - Accommodation,Homelessness - Accommodation,315
0000216522,16/08/2023,Essex Pension Fund,Financial Srvs - Consultants,Consultants - General,"3,564.50"
0000216523,16/08/2023,Riverside Truck Rental Ltd,Green Waste - Contract Hire,Vehicle Hire,560
0000216524,16/08/2023,Braintree District Council,Street Clnsing - Disposal Chg,Recycling - Waste Disposal,"1,309.51"
0000216526,16/08/2023,Nickolds HMO Management & Maintenance,Homelessness - Accommodation,Homelessness - Accommodation,385
0000216527,16/08/2023,WFL (UK) Ltd,Fuel Stocks Purchases,Vehicle Fuel - Stock Purchases,"34,785.00"
0000216529,16/08/2023,Saffron Vantage Ltd,Waste Mgmt - Agency Staff,Agency Staff (Professional),"5,169.57"
0000216530,16/08/2023,Driver Hire Chelmsford,Waste Mgmt - Agency Staff,Agency Staff (Professional),664.15
0000216531,16/08/2023,Central Tyre Limited,Vehicle Maint - Other Mats,Waste Management - Materials,"1,244.76"
0000216532,16/08/2023,MSG Contracts Limited,Canfield Offices - Cleaning,Cleaning Service - Contract Cleaning,578.5
0000216533,16/08/2023,MSG Contracts Limited,Canfield Offices - Cleaning,Cleaning Service - Contract Cleaning,617.5
0000216534,16/08/2023,MSG Contracts Limited,Canfield Offices - Cleaning,Cleaning Service - Contract Cleaning,"1,679.97"
0000216536,16/08/2023,Npower Limited,Thaxted CIC - Electricity,Corporate Asset - Utilities ,"61,964.54"
0000216537,16/08/2023,One51 ES Plastics UK t/a MGB Plastics,Containers - Cap Pur P&E,Capital Purchases - Plant & Equipment,"16,308.00"
0000216538,16/08/2023,One51 ES Plastics UK t/a MGB Plastics,Containers - Cap Pur P&E,Capital Purchases - Plant & Equipment,"1,176.00"
0000216539,16/08/2023,One51 ES Plastics UK t/a MGB Plastics,Containers - Cap Pur P&E,Capital Purchases - Plant & Equipment,"7,056.00"
0000216540,16/08/2023,One51 ES Plastics UK t/a MGB Plastics,Containers - Cap Pur P&E,Capital Purchases - Plant & Equipment,"1,176.00"
0000216541,16/08/2023,One51 ES Plastics UK t/a MGB Plastics,Containers - Cap Pur P&E,Capital Purchases - Plant & Equipment,"7,056.00"
0000216543,23/08/2023,Class Affinity Projects Ltd,GF Asset Mgt - Mobiles,Corporate Mobile Phone ,"1,484.18"
0000216544,16/08/2023,Vivid Resourcing Ltd,Dev't Control - Agency Staff,Agency Staff (Professional),"1,517.00"
0000216545,16/08/2023,One51 ES Plastics UK t/a MGB Plastics,Containers - Cap Pur P&E,Capital Purchases - Plant & Equipment,"7,992.00"
0000216546,16/08/2023,One51 ES Plastics UK t/a MGB Plastics,Containers - Cap Pur P&E,Capital Purchases - Plant & Equipment,"2,405.00"
0000216547,16/08/2023,Carrington West Ltd,Dev't Control - Agency Staff,Agency Staff (Professional),"1,887.00"
0000216548,16/08/2023,Vivid Resourcing Ltd,Dev't Control - Agency Staff,Agency Staff (Professional),"1,517.00"
0000216549,16/08/2023,Carrington West Ltd,Dev't Control - Agency Staff,Agency Staff (Professional),"1,887.00"
0000216550,16/08/2023,Hall Mark Meat Hygiene Limited,Border Inspect - Oth Prof Fees,Veterinary Services - Other Prof Fees,"6,000.00"
0000216554,16/08/2023,The Oyster Partnership Ltd,Dev't Control - Agency Staff,Agency Staff (Professional),"1,878.20"
0000216555,16/08/2023,Good People Recycling Ltd,Waste Mgmt - Agency Staff,Agency Staff (Professional),"6,427.95"
